Workbook

Sheet CapitalSeguro
C8: Old Mutual | Capital Seguro
D11: Datos | AE11: Aportaciones Adicionales
V12: 45 | AE12: Año | AH12: Monto
D13: Nombre | V13: Edad
D16: Características de la Inversión Inicial
D17: 600000 | M17: Especulativo | V17: 25
D18: Monto | M18: Portafolio de Inversión (*) | V18: Término
N39: ="Simulación al"&" "&VLOOKUP($M$17,Calculo!$AO$3:$AP$6,2,FALSE)*100&"%" -> Simulación al 10% | AA39: ="Simulación al"&" "&VLOOKUP($M$17,Calculo!$AO$3:$AQ$6,3,FALSE)*100&"%" -> Simulación al 12%
G40: Año | K40: Edad | N40: ="Valor de Portafolio al"&" "&VLOOKUP($M$17,Calculo!$AO$3:$AP$6,2,FALSE)*100&"%" -> Valor de Portafolio al 10% | U40: Beneficio por fallecimiento | AA40: ="Valor de Portafolio al"&" "&VLOOKUP($M$17,Calculo!$AO$3:$AQ$6,3,FALSE)*100&"%" -> Valor de Portafolio al 12% | AH40: Beneficio por fallecimiento
G43: 0
G44: =IFERROR(IF(G43+1<=$V$17,G43+1,""),"") -> 1 | K44: =IFERROR(edad+(G44-1),"") -> 45 | N44: =IFERROR(VLOOKUP((G44*12),Calculo!$C$3:$N$302,12,FALSE),"") -> 639375.6001 | U44: =IFERROR(VLOOKUP((G44*12),Calculo!$C$3:$Q$302,15,FALSE),"") -> 1918126.8 | AA44: =IFERROR(VLOOKUP((G44*12),Calculo!$C$3:$X$302,21,FALSE),"") -> 651005.5928 | AH44: =IFERROR(VLOOKUP((G44*12),Calculo!$C$3:$Z$302,24,FALSE),"") -> 1953016.778
G45: =IFERROR(IF(G44+1<=$V$17,G44+1,""),"") -> 2 | K45: 46 | N45: =IFERROR(VLOOKUP((G45*12),Calculo!$C$3:$N$302,12,FALSE),"") -> 698830.8665 | U45: =IFERROR(VLOOKUP((G45*12),Calculo!$C$3:$Q$302,15,FALSE),"") -> 2096492.599 | AA45: =IFERROR(VLOOKUP((G45*12),Calculo!$C$3:$X$302,21,FALSE),"") -> 724489.5169 | AH45: =IFERROR(VLOOKUP((G45*12),Calculo!$C$3:$Z$302,24,FALSE),"") -> 2173468.551
G46: 3 | K46: 47 | N46: =IFERROR(VLOOKUP((G46*12),Calculo!$C$3:$N$302,12,FALSE),"") -> 780666.3938 | U46: =IFERROR(VLOOKUP((G46*12),Calculo!$C$3:$Q$302,15,FALSE),"") -> 2341999.181 | AA46: =IFERROR(VLOOKUP((G46*12),Calculo!$C$3:$X$302,21,FALSE),"") -> 806299.0557 | AH46: =IFERROR(VLOOKUP((G46*12),Calculo!$C$3:$Z$302,24,FALSE),"") -> 2470866.41
B47: 1 | G47: 4 | K47: 48 | N47: =IFERROR(VLOOKUP((G47*12),Calculo!$C$3:$N$302,12,FALSE),"") -> 853320.7805 | U47: =IFERROR(VLOOKUP((G47*12),Calculo!$C$3:$Q$302,15,FALSE),"") -> 2559962.341 | AA47: =IFERROR(VLOOKUP((G47*12),Calculo!$C$3:$X$302,21,FALSE),"") -> 916663.2475 | AH47: =IFERROR(VLOOKUP((G47*12),Calculo!$C$3:$Z$302,24,FALSE),"") -> 2749989.743
B48: 2 | G48: 5 | K48: 49 | N48: =IFERROR(VLOOKUP((G48*12),Calculo!$C$3:$N$302,12,FALSE),"") -> 932762.4034 | U48: =IFERROR(VLOOKUP((G48*12),Calculo!$C$3:$Q$302,15,FALSE),"") -> 2798287.21 | AA48: =IFERROR(VLOOKUP((G48*12),Calculo!$C$3:$X$302,21,FALSE),"") -> 1020245.772 | AH48: =IFERROR(VLOOKUP((G48*12),Calculo!$C$3:$Z$302,24,FALSE),"") -> 3020245.772
B49: 3 | G49: 6 | K49: 50 | N49: =IFERROR(VLOOKUP((G49*12),Calculo!$C$3:$N$302,12,FALSE),"") -> 1019625.313 | U49: =IFERROR(VLOOKUP((G49*12),Calculo!$C$3:$Q$302,15,FALSE),"") -> 3019625.313 | AA49: =IFERROR(VLOOKUP((G49*12),Calculo!$C$3:$X$302,21,FALSE),"") -> 1135564.036 | AH49: =IFERROR(VLOOKUP((G49*12),Calculo!$C$3:$Z$302,24,FALSE),"") -> 3135564.036
B50: 4 | G50: 7 | K50: 51 | N50: =IFERROR(VLOOKUP((G50*12),Calculo!$C$3:$N$302,12,FALSE),"") -> 1114602.793 | U50: =IFERROR(VLOOKUP((G50*12),Calculo!$C$3:$Q$302,15,FALSE),"") -> 3114602.793 | AA50: =IFERROR(VLOOKUP((G50*12),Calculo!$C$3:$X$302,21,FALSE),"") -> 1263947.68 | AH50: =IFERROR(VLOOKUP((G50*12),Calculo!$C$3:$Z$302,24,FALSE),"") -> 3263947.68
B51: 5 | G51: 8 | K51: 52 | N51: =IFERROR(VLOOKUP((G51*12),Calculo!$C$3:$N$302,12,FALSE),"") -> 1218452.89 | U51: =IFERROR(VLOOKUP((G51*12),Calculo!$C$3:$Q$302,15,FALSE),"") -> 3218452.89 | AA51: =IFERROR(VLOOKUP((G51*12),Calculo!$C$3:$X$302,21,FALSE),"") -> 1406876.992 | AH51: =IFERROR(VLOOKUP((G51*12),Calculo!$C$3:$Z$302,24,FALSE),"") -> 3406876.992
B52: 6 | G52: 9 | K52: 53 | N52: =IFERROR(VLOOKUP((G52*12),Calculo!$C$3:$N$302,12,FALSE),"") -> 1332004.468 | U52: =IFERROR(VLOOKUP((G52*12),Calculo!$C$3:$Q$302,15,FALSE),"") -> 3332004.468 | AA52: =IFERROR(VLOOKUP((G52*12),Calculo!$C$3:$X$302,21,FALSE),"") -> 1565999.974 | AH52: =IFERROR(VLOOKUP((G52*12),Calculo!$C$3:$Z$302,24,FALSE),"") -> 3565999.974
B53: 7 | G53: 10 | K53: 54 | N53: =IFERROR(VLOOKUP((G53*12),Calculo!$C$3:$N$302,12,FALSE),"") -> 1456163.821 | U53: =IFERROR(VLOOKUP((G53*12),Calculo!$C$3:$Q$302,15,FALSE),"") -> 3456163.821 | AA53: =IFERROR(VLOOKUP((G53*12),Calculo!$C$3:$X$302,21,FALSE),"") -> 1743151.342 | AH53: =IFERROR(VLOOKUP((G53*12),Calculo!$C$3:$Z$302,24,FALSE),"") -> 3743151.342
B54: 8 | G54: 11 | K54: 55 | N54: =IFERROR(VLOOKUP((G54*12),Calculo!$C$3:$N$302,12,FALSE),"") -> 1591921.907 | U54: =IFERROR(VLOOKUP((G54*12),Calculo!$C$3:$Q$302,15,FALSE),"") -> 3183843.815 | AA54: =IFERROR(VLOOKUP((G54*12),Calculo!$C$3:$X$302,21,FALSE),"") -> 1940373.686 | AH54: =IFERROR(VLOOKUP((G54*12),Calculo!$C$3:$Z$302,24,FALSE),"") -> 3880747.372
B55: 9 | G55: 12 | K55: 56 | N55: =IFERROR(VLOOKUP((G55*12),Calculo!$C$3:$N$302,12,FALSE),"") -> 1740362.259 | U55: =IFERROR(VLOOKUP((G55*12),Calculo!$C$3:$Q$302,15,FALSE),"") -> 3480724.518 | AA55: =IFERROR(VLOOKUP((G55*12),Calculo!$C$3:$X$302,21,FALSE),"") -> 2159941.015 | AH55: =IFERROR(VLOOKUP((G55*12),Calculo!$C$3:$Z$302,24,FALSE),"") -> 4159941.015
B56: 10 | G56: 13 | K56: 57 | N56: =IFERROR(VLOOKUP((G56*12),Calculo!$C$3:$N$302,12,FALSE),"") -> 1902669.629 | U56: =IFERROR(VLOOKUP((G56*12),Calculo!$C$3:$Q$302,15,FALSE),"") -> 3805339.258 | AA56: =IFERROR(VLOOKUP((G56*12),Calculo!$C$3:$X$302,21,FALSE),"") -> 2404384.983 | AH56: =IFERROR(VLOOKUP((G56*12),Calculo!$C$3:$Z$302,24,FALSE),"") -> 4404384.983
B57: 11 | G57: 14 | K57: 58 | N57: =IFERROR(VLOOKUP((G57*12),Calculo!$C$3:$N$302,12,FALSE),"") -> 2080139.448 | U57: =IFERROR(VLOOKUP((G57*12),Calculo!$C$3:$Q$302,15,FALSE),"") -> 4080139.448 | AA57: =IFERROR(VLOOKUP((G57*12),Calculo!$C$3:$X$302,21,FALSE),"") -> 2676524.073 | AH57: =IFERROR(VLOOKUP((G57*12),Calculo!$C$3:$Z$302,24,FALSE),"") -> 4676524.073
B58: 12 | G58: 15 | K58: 59 | N58: =IFERROR(VLOOKUP((G58*12),Calculo!$C$3:$N$302,12,FALSE),"") -> 2274188.164 | U58: =IFERROR(VLOOKUP((G58*12),Calculo!$C$3:$Q$302,15,FALSE),"") -> 4274188.164 | AA58: =IFERROR(VLOOKUP((G58*12),Calculo!$C$3:$X$302,21,FALSE),"") -> 2979496.1 | AH58: =IFERROR(VLOOKUP((G58*12),Calculo!$C$3:$Z$302,24,FALSE),"") -> 4979496.1
B59: 13 | G59: 16 | K59: 60 | N59: =IFERROR(VLOOKUP((G59*12),Calculo!$C$3:$N$302,12,FALSE),"") -> 2486364.547 | U59: =IFERROR(VLOOKUP((G59*12),Calculo!$C$3:$Q$302,15,FALSE),"") -> 4486364.547 | AA59: =IFERROR(VLOOKUP((G59*12),Calculo!$C$3:$X$302,21,FALSE),"") -> 3316794.387 | AH59: =IFERROR(VLOOKUP((G59*12),Calculo!$C$3:$Z$302,24,FALSE),"") -> 5316794.387
B60: 14 | G60: 17 | K60: 61 | N60: =IFERROR(VLOOKUP((G60*12),Calculo!$C$3:$N$302,12,FALSE),"") -> 2718362.048 | U60: =IFERROR(VLOOKUP((G60*12),Calculo!$C$3:$Q$302,15,FALSE),"") -> 2745545.668 | AA60: =IFERROR(VLOOKUP((G60*12),Calculo!$C$3:$X$302,21,FALSE),"") -> 3692308.048 | AH60: =IFERROR(VLOOKUP((G60*12),Calculo!$C$3:$Z$302,24,FALSE),"") -> 3729231.128
B61: 15 | G61: 18 | K61: 62 | N61: =IFERROR(VLOOKUP((G61*12),Calculo!$C$3:$N$302,12,FALSE),"") -> 2972032.319 | U61: =IFERROR(VLOOKUP((G61*12),Calculo!$C$3:$Q$302,15,FALSE),"") -> 3001752.642 | AA61: =IFERROR(VLOOKUP((G61*12),Calculo!$C$3:$X$302,21,FALSE),"") -> 4110366.824 | AH61: =IFERROR(VLOOKUP((G61*12),Calculo!$C$3:$Z$302,24,FALSE),"") -> 4151470.492
B62: 16 | G62: 19 | K62: 63 | N62: =IFERROR(VLOOKUP((G62*12),Calculo!$C$3:$N$302,12,FALSE),"") -> 3249399.99 | U62: =IFERROR(VLOOKUP((G62*12),Calculo!$C$3:$Q$302,15,FALSE),"") -> 3281893.99 | AA62: =IFERROR(VLOOKUP((G62*12),Calculo!$C$3:$X$302,21,FALSE),"") -> 4575791.01 | AH62: =IFERROR(VLOOKUP((G62*12),Calculo!$C$3:$Z$302,24,FALSE),"") -> 4621548.921
B63: 17 | G63: 20 | K63: 64 | N63: =IFERROR(VLOOKUP((G63*12),Calculo!$C$3:$N$302,12,FALSE),"") -> 3552678.828 | U63: =IFERROR(VLOOKUP((G63*12),Calculo!$C$3:$Q$302,15,FALSE),"") -> 3588205.616 | AA63: =IFERROR(VLOOKUP((G63*12),Calculo!$C$3:$X$302,21,FALSE),"") -> 5093947.036 | AH63: =IFERROR(VLOOKUP((G63*12),Calculo!$C$3:$Z$302,24,FALSE),"") -> 5144886.506
B64: 18 | G64: 21 | K64: 65 | N64: =IFERROR(VLOOKUP((G64*12),Calculo!$C$3:$N$302,12,FALSE),"") -> 3884289.404 | U64: =IFERROR(VLOOKUP((G64*12),Calculo!$C$3:$Q$302,15,FALSE),"") -> 3923132.298 | AA64: =IFERROR(VLOOKUP((G64*12),Calculo!$C$3:$X$302,21,FALSE),"") -> 5670809.336 | AH64: =IFERROR(VLOOKUP((G64*12),Calculo!$C$3:$Z$302,24,FALSE),"") -> 5727517.429
B65: 19 | G65: 22 | K65: 66 | N65: =IFERROR(VLOOKUP((G65*12),Calculo!$C$3:$N$302,12,FALSE),"") -> 4246878.417 | U65: =IFERROR(VLOOKUP((G65*12),Calculo!$C$3:$Q$302,15,FALSE),"") -> 4289347.201 | AA65: =IFERROR(VLOOKUP((G65*12),Calculo!$C$3:$X$302,21,FALSE),"") -> 6313029.239 | AH65: =IFERROR(VLOOKUP((G65*12),Calculo!$C$3:$Z$302,24,FALSE),"") -> 6376159.532
B66: 20 | G66: 23 | K66: 67 | N66: =IFERROR(VLOOKUP((G66*12),Calculo!$C$3:$N$302,12,FALSE),"") -> 4643339.814 | U66: =IFERROR(VLOOKUP((G66*12),Calculo!$C$3:$Q$302,15,FALSE),"") -> 4689773.212 | AA66: =IFERROR(VLOOKUP((G66*12),Calculo!$C$3:$X$302,21,FALSE),"") -> 7028011.662 | AH66: =IFERROR(VLOOKUP((G66*12),Calculo!$C$3:$Z$302,24,FALSE),"") -> 7098291.779
B67: 21 | G67: 24 | K67: 68 | N67: =IFERROR(VLOOKUP((G67*12),Calculo!$C$3:$N$302,12,FALSE),"") -> 5076837.888 | U67: =IFERROR(VLOOKUP((G67*12),Calculo!$C$3:$Q$302,15,FALSE),"") -> 5127606.267 | AA67: =IFERROR(VLOOKUP((G67*12),Calculo!$C$3:$X$302,21,FALSE),"") -> 7824000.485 | AH67: =IFERROR(VLOOKUP((G67*12),Calculo!$C$3:$Z$302,24,FALSE),"") -> 7902240.489
B68: 22 | G68: 25 | K68: 69 | N68: =IFERROR(VLOOKUP((G68*12),Calculo!$C$3:$N$302,12,FALSE),"") -> 5550832.538 | U68: =IFERROR(VLOOKUP((G68*12),Calculo!$C$3:$Q$302,15,FALSE),"") -> 5606340.864 | AA68: =IFERROR(VLOOKUP((G68*12),Calculo!$C$3:$X$302,21,FALSE),"") -> 8710173.606 | AH68: =IFERROR(VLOOKUP((G68*12),Calculo!$C$3:$Z$302,24,FALSE),"") -> 8797275.342
B69: 23
B70: 24 | Z70: Firma:
B71: 25 | AA71: =$D$12 -> 0
B72: 26
B73: 27
B74: 28
B75: 29
B76: 30
B77: 31
B78: 32
B79: 33
B80: 34
B81: 35
B82: 36
B83: 37
B84: 38
B85: 39
B86: 40

Sheet Calculo (hidden)
A1: AÑO | B1: Año2 | C1: Mes | D1: Edad | E1: Aportes | F1: Monto Inversión | G1: Cargo Inicial | I1: Valor de la cuenta rend minimo | J1: Costo Variable | K1: Saldo fin de mes sin costo fijo | L1: Costo fijo | M1: Saldo fin de mes menos costo fijo | N1: Saldo fin de mes menos costo fijo+bono perm | O1: Ganancia | P1: Seguro de Vida rend minimo | Q1: Beneficio por Fallecimiento rend minimo | S1: Valor de la cuenta rend maximo | T1: Costo Variable | U1: Saldo fin de mes sin costo fijo | V1: Costo Fijo | W1: Saldo fin de mes menos costo fijo | X1: Saldo fin de mes menos costo fijo+bono perm | Y1: Seguro de vida rend maximo | Z1: Beneficio por Fallecimiento rend maximo | AE1: Cargos | AJ1: Rendimiento anual | AL1: Mensualizado | AN1: Combo Edad | AO1: Combo Portafolio | AP1: Rend. Min | AQ1: Rend. Max | AR1: Combo Termino | AT1: Relativo a la inversion
A2: 0 | C2: 0 | D2: =edad -> 45 | E2: 0 | F2: =E2 -> 0 | I2: 0 | J2: 0 | K2: 0 | L2: 0 | M2: 0 | S2: 0 | T2: 0 | U2: 0 | V2: 0
A3: 1 | B3: 1 | C3: 1 | D3: =$D$2+(B3-1) -> 45 | E3: =invinicial -> 600000 | F3: =E3+F2 -> 600000 | G3: =F3*($AH$3) -> 15000 | I3: =(N2+E3-G3)*(1+$AL$3) -> 589664.8722 | J3: =IF(AND(invinicial>=$AE$7,invinicial<$AF$7),I3*$AH$7,IF(AND(invinicial>=$AE$8,invinicial<$AF$8),I3*$AH$8,IF(AND(invinicial>=$AE$9,invinicial<$AF$9),I3*$AH$9,IF(invinicial>=$AE$10,I3*$AH$10,"Error")))) -> 294.8324361 | K3: =I3-J3 -> 589370.0397 | L3: =IF(B3*12=C3,$AH$4,0) -> 0 | M3: =K3-L3 -> 589370.0397 | N3: =IF(C3=36,M3+bonopermconv,M3) -> 589370.0397 | O3: =N3-F3 -> -10629.96029 | P3: =MIN(2000000,IF(D3<$AU$4,N3*$AV$4,IF(AND(D3>=$AT$5,D3<=$AU$5),N3*$AV$5,IF(D3>$AT$6,N3*$AV$6,"")))) -> 1178740.079 | Q3: =P3+N3 -> 1768110.119 | S3: =(X2+E3-G3)*(1+$AL$4) -> 590550.9439 | T3: =IF(AND(invinicial>=$AE$7,invinicial<$AF$7),S3*$AH$7,IF(AND(invinicial>=$AE$8,invinicial<$AF$8),S3*$AH$8,IF(AND(invinicial>=$AE$9,invinicial<$AF$9),S3*$AH$9,IF(invinicial>=$AE$10,S3*$AH$10,"Error")))) -> 295.2754719 | U3: =S3-T3 -> 590255.6684 | V3: =IF(C3=B3*12,$AH$4,0) -> 0 | W3: =U3-V3 -> 590255.6684 | X3: =IF(C3=36,W3+bonopermopt,W3) -> 590255.6684 | Y3: =MIN(2000000,IF(D3<$AU$4,X3*$AV$4,IF(AND(D3>=$AT$5,D3<=$AU$5),X3*$AV$5,IF(D3>$AT$6,X3*$AV$6,"")))) -> 1180511.337 | Z3: =Y3+X3 -> 1770767.005 | AE3: Inicial | AH3: 0.025 | AJ3: Minimo | AK3: =VLOOKUP(CapitalSeguro!$M$17,Calculo!$AO$3:$AQ$6,2,FALSE) -> 0.1 | AL3: =((1+$AK$3)^(1/12))-1 -> 0.007974140429 | AN3: 18 | AO3: Estabilidad | AP3: 0.06 | AQ3: 0.08 | AR3: 10 | AT3: Edad min | AU3: Edad Max | AV3: Valor de cuenta X
B4: 1 | C4: =C3+1 -> 2 | D4: =$D$2+(B4-1) -> 45 | E4: =IF((((CapitalSeguro!$AE$13-1)*12)+1)=Calculo!C4,CapitalSeguro!$AH$13,0)+IF((((CapitalSeguro!$AE$14-1)*12)+1)=Calculo!C4,CapitalSeguro!$AH$14,0)+IF((((CapitalSeguro!$AE$15-1)*12)+1)=Calculo!C4,CapitalSeguro!$AH$15,0)+IF((((CapitalSeguro!$AE$16-1)*12)+1)=Calculo!C4,CapitalSeguro!$AH$16,0) -> 0 | F4: =E4+F3 -> 600000 | G4: 0 | I4: =(N3+E4-G4)*(1+$AL$3) -> 594069.7592 | J4: 297.0348796 | K4: =I4-J4 -> 593772.7243 | L4: =IF(B4*12=C4,$AH$4,0) -> 0 | M4: =K4-L4 -> 593772.7243 | N4: 593772.7243 | O4: =N4-F4 -> -6227.275703 | P4: 1187545.449 | Q4: =P4+N4 -> 1781318.173 | S4: =(X3+E4-G4)*(1+$AL$4) -> 595856.4822 | T4: =IF(AND(invinicial>=$AE$7,invinicial<$AF$7),S4*$AH$7,IF(AND(invinicial>=$AE$8,invinicial<$AF$8),S4*$AH$8,IF(AND(invinicial>=$AE$9,invinicial<$AF$9),S4*$AH$9,IF(invinicial>=$AE$10,S4*$AH$10,"Error")))) -> 297.9282411 | U4: 595558.554 | V4: =IF(C4=B4*12,$AH$4,0) -> 0 | W4: =U4-V4 -> 595558.554 | X4: 595558.554 | Y4: =MIN(2000000,IF(D4<$AU$4,X4*$AV$4,IF(AND(D4>=$AT$5,D4<=$AU$5),X4*$AV$5,IF(D4>$AT$6,X4*$AV$6,"")))) -> 1191117.108 | Z4: =Y4+X4 -> 1786675.662 | AE4: Fijo Anual | AH4: 274 | AJ4: Maximo | AK4: =VLOOKUP(CapitalSeguro!$M$17,Calculo!$AO$3:$AQ$6,3,FALSE) -> 0.12 | AL4: =((1+$AK$4)^(1/12))-1 -> 0.009488792935 | AN4: 19 | AO4: Moderado | AP4: 0.07 | AQ4: 0.09 | AR4: 11 | AU4: 55 | AV4: 2
B5: 1 | C5: =C4+1 -> 3 | D5: 45 | E5: =IF((((CapitalSeguro!$AE$13-1)*12)+1)=Calculo!C5,CapitalSeguro!$AH$13,0)+IF((((CapitalSeguro!$AE$14-1)*12)+1)=Calculo!C5,CapitalSeguro!$AH$14,0)+IF((((CapitalSeguro!$AE$15-1)*12)+1)=Calculo!C5,CapitalSeguro!$AH$15,0)+IF((((CapitalSeguro!$AE$16-1)*12)+1)=Calculo!C5,CapitalSeguro!$AH$16,0) -> 0 | F5: 600000 | G5: 0 | I5: 598507.5514 | J5: 299.2537757 | K5: 598208.2976 | L5: =IF(B5*12=C5,$AH$4,0) -> 0 | M5: 598208.2976 | N5: 598208.2976 | O5: -1791.702393 | P5: 1196416.595 | Q5: 1794624.893 | S5: 601209.6858 | T5: 300.6048429 | U5: 600909.0809 | V5: 0 | W5: 600909.0809 | X5: 600909.0809 | Y5: 1201818.162 | Z5: 1802727.243 | AE5: Relativo a la inversion | AN5: 20 | AO5: Dinámico | AP5: 0.08 | AQ5: 0.1 | AR5: 12 | AT5: 55 | AU5: 60 | AV5: 1
B6: 1 | C6: 4 | D6: 45 | E6: =IF((((CapitalSeguro!$AE$13-1)*12)+1)=Calculo!C6,CapitalSeguro!$AH$13,0)+IF((((CapitalSeguro!$AE$14-1)*12)+1)=Calculo!C6,CapitalSeguro!$AH$14,0)+IF((((CapitalSeguro!$AE$15-1)*12)+1)=Calculo!C6,CapitalSeguro!$AH$15,0)+IF((((CapitalSeguro!$AE$16-1)*12)+1)=Calculo!C6,CapitalSeguro!$AH$16,0) -> 0 | F6: 600000 | G6: 0 | I6: 602978.4946 | J6: 301.4892473 | K6: 602677.0053 | L6: 0 | M6: 602677.0053 | N6: 602677.0053 | O6: 2677.005331 | P6: 1205354.011 | Q6: 1808031.016 | S6: 606610.9828 | T6: 303.3054914 | U6: 606307.6773 | V6: 0 | W6: 606307.6773 | X6: 606307.6773 | Y6: 1212615.355 | Z6: 1818923.032 | AE6: Min | AF6: Max | AG6: Cargo anual | AH6: Mensualizado | AN6: 21 | AO6: Especulativo | AP6: 0.1 | AQ6: 0.12 | AR6: 13 | AT6: 60 | AV6: 0.01
B7: 1 | C7: 5 | D7: 45 | E7: =IF((((CapitalSeguro!$AE$13-1)*12)+1)=Calculo!C7,CapitalSeguro!$AH$13,0)+IF((((CapitalSeguro!$AE$14-1)*12)+1)=Calculo!C7,CapitalSeguro!$AH$14,0)+IF((((CapitalSeguro!$AE$15-1)*12)+1)=Calculo!C7,CapitalSeguro!$AH$15,0)+IF((((CapitalSeguro!$AE$16-1)*12)+1)=Calculo!C7,CapitalSeguro!$AH$16,0) -> 0 | F7: 600000 | G7: 0 | I7: 607482.8364 | J7: 303.7414182 | K7: 607179.095 | L7: 0 | M7: 607179.095 | N7: 607179.095 | O7: 7179.094986 | P7: 1214358.19 | Q7: 1821537.285 | S7: 612060.8053 | T7: 306.0304026 | U7: 611754.7749 | V7: 0 | W7: 611754.7749 | X7: 611754.7749 | Y7: 1223509.55 | Z7: 1835264.325 | AE7: 50000 | AF7: 75000 | AG7: 0.015 | AH7: =AG7/12 -> 0.00125 | AN7: 22 | AR7: 14
B8: 1 | C8: 6 | D8: 45 | E8: =IF((((CapitalSeguro!$AE$13-1)*12)+1)=Calculo!C8,CapitalSeguro!$AH$13,0)+IF((((CapitalSeguro!$AE$14-1)*12)+1)=Calculo!C8,CapitalSeguro!$AH$14,0)+IF((((CapitalSeguro!$AE$15-1)*12)+1)=Calculo!C8,CapitalSeguro!$AH$15,0)+IF((((CapitalSeguro!$AE$16-1)*12)+1)=Calculo!C8,CapitalSeguro!$AH$16,0) -> 0 | F8: 600000 | G8: 0 | I8: 612020.8264 | J8: 306.0104132 | K8: 611714.8159 | L8: 0 | M8: 611714.8159 | N8: 611714.8159 | O8: 11714.81594 | P8: 1223429.632 | Q8: 1835144.448 | S8: 617559.5893 | T8: 308.7797946 | U8: 617250.8095 | V8: 0 | W8: 617250.8095 | X8: 617250.8095 | Y8: 1234501.619 | Z8: 1851752.428 | AE8: 75000 | AF8: 500000 | AG8: 0.01 | AH8: =AG8/12 -> 0.0008333333333 | AN8: 23 | AR8: 15
B9: 1 | C9: 7 | D9: 45 | E9: =IF((((CapitalSeguro!$AE$13-1)*12)+1)=Calculo!C9,CapitalSeguro!$AH$13,0)+IF((((CapitalSeguro!$AE$14-1)*12)+1)=Calculo!C9,CapitalSeguro!$AH$14,0)+IF((((CapitalSeguro!$AE$15-1)*12)+1)=Calculo!C9,CapitalSeguro!$AH$15,0)+IF((((CapitalSeguro!$AE$16-1)*12)+1)=Calculo!C9,CapitalSeguro!$AH$16,0) -> 0 | F9: 600000 | G9: 0 | I9: 616592.7158 | J9: 308.2963579 | K9: 616284.4194 | L9: 0 | M9: 616284.4194 | N9: 616284.4194 | O9: 16284.41943 | P9: 1232568.839 | Q9: 1848853.258 | S9: 623107.7746 | T9: 311.5538873 | U9: 622796.2207 | V9: 0 | W9: 622796.2207 | X9: 622796.2207 | Y9: 1245592.441 | Z9: 1868388.662 | AE9: 500000 | AF9: 1000000 | AG9: 0.006 | AH9: 0.0005 | AN9: 24 | AR9: 16
B10: 1 | C10: 8 | D10: 45 | E10: =IF((((CapitalSeguro!$AE$13-1)*12)+1)=Calculo!C10,CapitalSeguro!$AH$13,0)+IF((((CapitalSeguro!$AE$14-1)*12)+1)=Calculo!C10,CapitalSeguro!$AH$14,0)+IF((((CapitalSeguro!$AE$15-1)*12)+1)=Calculo!C10,CapitalSeguro!$AH$15,0)+IF((((CapitalSeguro!$AE$16-1)*12)+1)=Calculo!C10,CapitalSeguro!$AH$16,0) -> 0 | F10: 600000 | G10: 0 | I10: 621198.7579 | J10: 310.599379 | K10: 620888.1586 | L10: 0 | M10: 620888.1586 | N10: 620888.1586 | O10: 20888.15855 | P10: 1241776.317 | Q10: 1862664.476 | S10: 628705.8051 | T10: 314.3529025 | U10: 628391.4522 | V10: 0 | W10: 628391.4522 | X10: 628391.4522 | Y10: 1256782.904 | Z10: 1885174.357 | AE10: 1000000 | AG10: 0.002 | AH10: 0.0001666666667 | AN10: 25 | AR10: 17
B11: 1 | C11: 9 | D11: 45 | E11: =IF((((CapitalSeguro!$AE$13-1)*12)+1)=Calculo!C11,CapitalSeguro!$AH$13,0)+IF((((CapitalSeguro!$AE$14-1)*12)+1)=Calculo!C11,CapitalSeguro!$AH$14,0)+IF((((CapitalSeguro!$AE$15-1)*12)+1)=Calculo!C11,CapitalSeguro!$AH$15,0)+IF((((CapitalSeguro!$AE$16-1)*12)+1)=Calculo!C11,CapitalSeguro!$AH$16,0) -> 0 | F11: 600000 | G11: 0 | I11: 625839.2079 | J11: 312.919604 | K11: 625526.2883 | L11: 0 | M11: 625526.2883 | N11: 625526.2883 | O11: 25526.28832 | P11: 1251052.577 | Q11: 1876578.865 | S11: 634354.1285 | T11: 317.1770643 | U11: 634036.9515 | V11: 0 | W11: 634036.9515 | X11: 634036.9515 | Y11: 1268073.903 | Z11: 1902110.854 | AN11: 26 | AR11: 18
B12: 1 | C12: 10 | D12: 45 | E12: =IF((((CapitalSeguro!$AE$13-1)*12)+1)=Calculo!C12,CapitalSeguro!$AH$13,0)+IF((((CapitalSeguro!$AE$14-1)*12)+1)=Calculo!C12,CapitalSeguro!$AH$14,0)+IF((((CapitalSeguro!$AE$15-1)*12)+1)=Calculo!C12,CapitalSeguro!$AH$15,0)+IF((((CapitalSeguro!$AE$16-1)*12)+1)=Calculo!C12,CapitalSeguro!$AH$16,0) -> 0 | F12: 600000 | G12: 0 | I12: 630514.3228 | J12: 315.2571614 | K12: 630199.0656 | L12: 0 | M12: 630199.0656 | N12: 630199.0656 | O12: 30199.06562 | P12: 1260398.131 | Q12: 1890597.197 | S12: 640053.1968 | T12: 320.0265984 | U12: 639733.1702 | V12: 0 | W12: 639733.1702 | X12: 639733.1702 | Y12: 1279466.34 | Z12: 1919199.511 | AN12: 27 | AR12: 19
B13: 1 | C13: 11 | D13: 45 | E13: =IF((((CapitalSeguro!$AE$13-1)*12)+1)=Calculo!C13,CapitalSeguro!$AH$13,0)+IF((((CapitalSeguro!$AE$14-1)*12)+1)=Calculo!C13,CapitalSeguro!$AH$14,0)+IF((((CapitalSeguro!$AE$15-1)*12)+1)=Calculo!C13,CapitalSeguro!$AH$15,0)+IF((((CapitalSeguro!$AE$16-1)*12)+1)=Calculo!C13,CapitalSeguro!$AH$16,0) -> 0 | F13: 600000 | G13: 0 | I13: 635224.3615 | J13: 317.6121807 | K13: 634906.7493 | L13: 0 | M13: 634906.7493 | N13: 634906.7493 | O13: 34906.74929 | P13: 1269813.499 | Q13: 1904720.248 | S13: 645803.4658 | T13: 322.9017329 | U13: 645480.5641 | V13: 0 | W13: 645480.5641 | X13: 645480.5641 | Y13: 1290961.128 | Z13: 1936441.692 | AE13: Bono de Permanencia (escenario conservador) | AJ13: =(AVERAGE($M$3:$M$38)*$AH$3)+(aporteadic2*2/3*2.5%)+(aportadic3*1/3*2.5%) -> 16826.06174 | AN13: 28 | AR13: 20
B14: 1 | C14: 12 | D14: 45 | E14: =IF((((CapitalSeguro!$AE$13-1)*12)+1)=Calculo!C14,CapitalSeguro!$AH$13,0)+IF((((CapitalSeguro!$AE$14-1)*12)+1)=Calculo!C14,CapitalSeguro!$AH$14,0)+IF((((CapitalSeguro!$AE$15-1)*12)+1)=Calculo!C14,CapitalSeguro!$AH$15,0)+IF((((CapitalSeguro!$AE$16-1)*12)+1)=Calculo!C14,CapitalSeguro!$AH$16,0) -> 0 | F14: 600000 | G14: 0 | I14: 639969.5849 | J14: 319.9847924 | K14: 639649.6001 | L14: 274 | M14: 639375.6001 | N14: 639375.6001 | O14: 39375.60007 | P14: 1278751.2 | Q14: 1918126.8 | S14: 651605.3955 | T14: 325.8026978 | U14: 651279.5928 | V14: 274 | W14: 651005.5928 | X14: 651005.5928 | Y14: 1302011.186 | Z14: 1953016.778 | AE14: Bono de Permanencia (escenario optimista) | AJ14: =AVERAGE($W$3:$W$38)*$AH$3+(aporteadic2*2/3*2.5%)+(aportadic3*1/3*2.5%) -> 17323.08103 | AN14: 29 | AR14: 21
A15: 2 | B15: 2 | C15: 13 | D15: 46 | E15: =IF((((CapitalSeguro!$AE$13-1)*12)+1)=Calculo!C15,CapitalSeguro!$AH$13,0)+IF((((CapitalSeguro!$AE$14-1)*12)+1)=Calculo!C15,CapitalSeguro!$AH$14,0)+IF((((CapitalSeguro!$AE$15-1)*12)+1)=Calculo!C15,CapitalSeguro!$AH$15,0)+IF((((CapitalSeguro!$AE$16-1)*12)+1)=Calculo!C15,CapitalSeguro!$AH$16,0) -> 0 | F15: 600000 | G15: 0 | I15: 644474.0709 | J15: 322.2370354 | K15: 644151.8339 | L15: 0 | M15: 644151.8339 | N15: 644151.8339 | O15: 44151.83386 | P15: 1288303.668 | Q15: 1932455.502 | S15: 657182.8501 | T15: 328.591425 | U15: 656854.2586 | V15: 0 | W15: 656854.2586 | X15: 656854.2586 | Y15: 1313708.517 | Z15: 1970562.776 | AN15: 30 | AR15: 22
B16: 2 | C16: 14 | D16: 46 | E16: =IF((((CapitalSeguro!$AE$13-1)*12)+1)=Calculo!C16,CapitalSeguro!$AH$13,0)+IF((((CapitalSeguro!$AE$14-1)*12)+1)=Calculo!C16,CapitalSeguro!$AH$14,0)+IF((((CapitalSeguro!$AE$15-1)*12)+1)=Calculo!C16,CapitalSeguro!$AH$15,0)+IF((((CapitalSeguro!$AE$16-1)*12)+1)=Calculo!C16,CapitalSeguro!$AH$16,0) -> 0 | F16: 600000 | G16: 0 | I16: 649288.391 | J16: 324.6441955 | K16: 648963.7468 | L16: 0 | M16: 648963.7468 | N16: 648963.7468 | O16: 48963.74685 | P16: 1297927.494 | Q16: 1946891.241 | S16: 663087.0127 | T16: 331.5435063 | U16: 662755.4692 | V16: 0 | W16: 662755.4692 | X16: 662755.4692 | Y16: 1325510.938 | Z16: 1988266.408 | AN16: 31 | AR16: 23
B17: 2 | C17: 15 | D17: 46 | E17: =IF((((CapitalSeguro!$AE$13-1)*12)+1)=Calculo!C17,CapitalSeguro!$AH$13,0)+IF((((CapitalSeguro!$AE$14-1)*12)+1)=Calculo!C17,CapitalSeguro!$AH$14,0)+IF((((CapitalSeguro!$AE$15-1)*12)+1)=Calculo!C17,CapitalSeguro!$AH$15,0)+IF((((CapitalSeguro!$AE$16-1)*12)+1)=Calculo!C17,CapitalSeguro!$AH$16,0) -> 0 | F17: 600000 | G17: 0 | I17: 654138.6749 | J17: 327.0693374 | K17: 653811.6056 | L17: 0 | M17: 653811.6056 | N17: 653811.6056 | O17: 53811.60556 | P17: 1307623.211 | Q17: 1961434.817 | S17: 669044.2186 | T17: 334.5221093 | U17: 668709.6965 | V17: 0 | W17: 668709.6965 | X17: 668709.6965 | Y17: 1337419.393 | Z17: 2006129.089 | AN17: 32 | AR17: 24
B18: 2 | C18: 16 | D18: 46 | E18: =IF((((CapitalSeguro!$AE$13-1)*12)+1)=Calculo!C18,CapitalSeguro!$AH$13,0)+IF((((CapitalSeguro!$AE$14-1)*12)+1)=Calculo!C18,CapitalSeguro!$AH$14,0)+IF((((CapitalSeguro!$AE$15-1)*12)+1)=Calculo!C18,CapitalSeguro!$AH$15,0)+IF((((CapitalSeguro!$AE$16-1)*12)+1)=Calculo!C18,CapitalSeguro!$AH$16,0) -> 0 | F18: 600000 | G18: 0 | I18: 659025.1911 | J18: 329.5125956 | K18: 658695.6785 | L18: 0 | M18: 658695.6785 | N18: 658695.6785 | O18: 58695.67852 | P18: 1317391.357 | Q18: 1976087.036 | S18: 675054.9443 | T18: 337.5274722 | U18: 674717.4169 | V18: 0 | W18: 674717.4169 | X18: 674717.4169 | Y18: 1349434.834 | Z18: 2024152.251 | AN18: 33 | AR18: 25
B19: 2 | C19: 17 | D19: 46 | E19: =IF((((CapitalSeguro!$AE$13-1)*12)+1)=Calculo!C19,CapitalSeguro!$AH$13,0)+IF((((CapitalSeguro!$AE$14-1)*12)+1)=Calculo!C19,CapitalSeguro!$AH$14,0)+IF((((CapitalSeguro!$AE$15-1)*12)+1)=Calculo!C19,CapitalSeguro!$AH$15,0)+IF((((CapitalSeguro!$AE$16-1)*12)+1)=Calculo!C19,CapitalSeguro!$AH$16,0) -> 0 | F19: 600000 | G19: 0 | I19: 663948.2104 | J19: 331.9741052 | K19: 663616.2363 | L19: 0 | M19: 663616.2363 | N19: 663616.2363 | O19: 63616.23625 | P19: 1327232.473 | Q19: 1990848.709 | S19: 681119.6707 | T19: 340.5598354 | U19: 680779.1109 | V19: 0 | W19: 680779.1109 | X19: 680779.1109 | Y19: 1361558.222 | Z19: 2042337.333 | AN19: 34
B20: 2 | C20: 18 | D20: 46 | E20: =IF((((CapitalSeguro!$AE$13-1)*12)+1)=Calculo!C20,CapitalSeguro!$AH$13,0)+IF((((CapitalSeguro!$AE$14-1)*12)+1)=Calculo!C20,CapitalSeguro!$AH$14,0)+IF((((CapitalSeguro!$AE$15-1)*12)+1)=Calculo!C20,CapitalSeguro!$AH$15,0)+IF((((CapitalSeguro!$AE$16-1)*12)+1)=Calculo!C20,CapitalSeguro!$AH$16,0) -> 0 | F20: 600000 | G20: 0 | I20: 668908.0053 | J20: 334.4540027 | K20: 668573.5513 | L20: 0 | M20: 668573.5513 | N20: 668573.5513 | O20: 68573.55131 | P20: 1337147.103 | Q20: 2005720.654 | S20: 687238.8829 | T20: 343.6194415 | U20: 686895.2635 | V20: 0 | W20: 686895.2635 | X20: 686895.2635 | Y20: 1373790.527 | Z20: 2060685.79 | AN20: 35
B21: 2 | C21: 19 | D21: 46 | E21: =IF((((CapitalSeguro!$AE$13-1)*12)+1)=Calculo!C21,CapitalSeguro!$AH$13,0)+IF((((CapitalSeguro!$AE$14-1)*12)+1)=Calculo!C21,CapitalSeguro!$AH$14,0)+IF((((CapitalSeguro!$AE$15-1)*12)+1)=Calculo!C21,CapitalSeguro!$AH$15,0)+IF((((CapitalSeguro!$AE$16-1)*12)+1)=Calculo!C21,CapitalSeguro!$AH$16,0) -> 0 | F21: 600000 | G21: 0 | I21: 673904.8507 | J21: 336.9524253 | K21: 673567.8983 | L21: 0 | M21: 673567.8983 | N21: 673567.8983 | O21: 73567.89827 | P21: 1347135.797 | Q21: 2020703.695 | S21: 693413.0704 | T21: 346.7065352 | U21: 693066.3639 | V21: 0 | W21: 693066.3639 | X21: 693066.3639 | Y21: 1386132.728 | Z21: 2079199.092 | AN21: 36
B22: 2 | C22: 20 | D22: 46 | E22: =IF((((CapitalSeguro!$AE$13-1)*12)+1)=Calculo!C22,CapitalSeguro!$AH$13,0)+IF((((CapitalSeguro!$AE$14-1)*12)+1)=Calculo!C22,CapitalSeguro!$AH$14,0)+IF((((CapitalSeguro!$AE$15-1)*12)+1)=Calculo!C22,CapitalSeguro!$AH$15,0)+IF((((CapitalSeguro!$AE$16-1)*12)+1)=Calculo!C22,CapitalSeguro!$AH$16,0) -> 0 | F22: 600000 | G22: 0 | I22: 678939.0233 | J22: 339.4695116 | K22: 678599.5538 | L22: 0 | M22: 678599.5538 | N22: 678599.5538 | O22: 78599.55377 | P22: 1357199.108 | Q22: 2035798.661 | S22: 699642.7271 | T22: 349.8213635 | U22: 699292.9057 | V22: 0 | W22: 699292.9057 | X22: 699292.9057 | Y22: 1398585.811 | Z22: 2097878.717 | AN22: 37
B23: 2 | C23: 21 | D23: 46 | E23: =IF((((CapitalSeguro!$AE$13-1)*12)+1)=Calculo!C23,CapitalSeguro!$AH$13,0)+IF((((CapitalSeguro!$AE$14-1)*12)+1)=Calculo!C23,CapitalSeguro!$AH$14,0)+IF((((CapitalSeguro!$AE$15-1)*12)+1)=Calculo!C23,CapitalSeguro!$AH$15,0)+IF((((CapitalSeguro!$AE$16-1)*12)+1)=Calculo!C23,CapitalSeguro!$AH$16,0) -> 0 | F23: 600000 | G23: 0 | I23: 684010.8019 | J23: 342.005401 | K23: 683668.7965 | L23: 0 | M23: 683668.7965 | N23: 683668.7965 | O23: 83668.7965 | P23: 1367337.593 | Q23: 2051006.39 | S23: 705928.3513 | T23: 352.9641756 | U23: 705575.3871 | V23: 0 | W23: 705575.3871 | X23: 705575.3871 | Y23: 1411150.774 | Z23: 2116726.161 | AN23: 38
B24: 2 | C24: 22 | D24: 46 | E24: =IF((((CapitalSeguro!$AE$13-1)*12)+1)=Calculo!C24,CapitalSeguro!$AH$13,0)+IF((((CapitalSeguro!$AE$14-1)*12)+1)=Calculo!C24,CapitalSeguro!$AH$14,0)+IF((((CapitalSeguro!$AE$15-1)*12)+1)=Calculo!C24,CapitalSeguro!$AH$15,0)+IF((((CapitalSeguro!$AE$16-1)*12)+1)=Calculo!C24,CapitalSeguro!$AH$16,0) -> 0 | F24: 600000 | G24: 0 | I24: 689120.4675 | J24: 344.5602337 | K24: 688775.9073 | L24: 0 | M24: 688775.9073 | N24: 688775.9073 | O24: 88775.90726 | P24: 1377551.815 | Q24: 2066327.722 | S24: 712270.4459 | T24: 356.1352229 | U24: 711914.3106 | V24: 0 | W24: 711914.3106 | X24: 711914.3106 | Y24: 1423828.621 | Z24: 2135742.932 | AN24: 39
B25: 2 | C25: 23 | D25: 46 | E25: =IF((((CapitalSeguro!$AE$13-1)*12)+1)=Calculo!C25,CapitalSeguro!$AH$13,0)+IF((((CapitalSeguro!$AE$14-1)*12)+1)=Calculo!C25,CapitalSeguro!$AH$14,0)+IF((((CapitalSeguro!$AE$15-1)*12)+1)=Calculo!C25,CapitalSeguro!$AH$15,0)+IF((((CapitalSeguro!$AE$16-1)*12)+1)=Calculo!C25,CapitalSeguro!$AH$16,0) -> 0 | F25: 600000 | G25: 0 | I25: 694268.3031 | J25: 347.1341515 | K25: 693921.1689 | L25: 0 | M25: 693921.1689 | N25: 693921.1689 | O25: 93921.16892 | P25: 1387842.338 | Q25: 2081763.507 | S25: 718669.5181 | T25: 359.3347591 | U25: 718310.1834 | V25: 0 | W25: 718310.1834 | X25: 718310.1834 | Y25: 1436620.367 | Z25: 2154930.55 | AN25: 40
B26: 2 | C26: 24 | D26: 46 | E26: =IF((((CapitalSeguro!$AE$13-1)*12)+1)=Calculo!C26,CapitalSeguro!$AH$13,0)+IF((((CapitalSeguro!$AE$14-1)*12)+1)=Calculo!C26,CapitalSeguro!$AH$14,0)+IF((((CapitalSeguro!$AE$15-1)*12)+1)=Calculo!C26,CapitalSeguro!$AH$15,0)+IF((((CapitalSeguro!$AE$16-1)*12)+1)=Calculo!C26,CapitalSeguro!$AH$16,0) -> 0 | F26: 600000 | G26: 0 | I26: 699454.5938 | J26: 349.7272969 | K26: 699104.8665 | L26: 274 | M26: 698830.8665 | N26: 698830.8665 | O26: 98830.86647 | P26: 1397661.733 | Q26: 2096492.599 | S26: 725126.0799 | T26: 362.56304 | U26: 724763.5169 | V26: 274 | W26: 724489.5169 | X26: 724489.5169 | Y26: 1448979.034 | Z26: 2173468.551 | AN26: 41
A27: 3 | B27: 3 | C27: 25 | D27: 47 | E27: =IF((((CapitalSeguro!$AE$13-1)*12)+1)=Calculo!C27,CapitalSeguro!$AH$13,0)+IF((((CapitalSeguro!$AE$14-1)*12)+1)=Calculo!C27,CapitalSeguro!$AH$14,0)+IF((((CapitalSeguro!$AE$15-1)*12)+1)=Calculo!C27,CapitalSeguro!$AH$15,0)+IF((((CapitalSeguro!$AE$16-1)*12)+1)=Calculo!C27,CapitalSeguro!$AH$16,0) -> 0 | F27: 600000 | G27: 0 | I27: 704403.4419 | J27: 352.201721 | K27: 704051.2402 | L27: 0 | M27: 704051.2402 | N27: 704051.2402 | O27: 104051.2402 | P27: 1408102.48 | Q27: 2112153.721 | S27: 731364.0479 | T27: 365.682024 | U27: 730998.3659 | V27: 0 | W27: 730998.3659 | X27: 730998.3659 | Y27: 1461996.732 | Z27: 2192995.098 | AN27: 42
B28: 3 | C28: 26 | D28: 47 | E28: =IF((((CapitalSeguro!$AE$13-1)*12)+1)=Calculo!C28,CapitalSeguro!$AH$13,0)+IF((((CapitalSeguro!$AE$14-1)*12)+1)=Calculo!C28,CapitalSeguro!$AH$14,0)+IF((((CapitalSeguro!$AE$15-1)*12)+1)=Calculo!C28,CapitalSeguro!$AH$15,0)+IF((((CapitalSeguro!$AE$16-1)*12)+1)=Calculo!C28,CapitalSeguro!$AH$16,0) -> 0 | F28: 600000 | G28: 0 | I28: 709665.4437 | J28: 354.8327218 | K28: 709310.6109 | L28: 0 | M28: 709310.6109 | N28: 709310.6109 | O28: 109310.6109 | P28: 1418621.222 | Q28: 2127931.833 | S28: 737934.658 | T28: 368.967329 | U28: 737565.6907 | V28: 0 | W28: 737565.6907 | X28: 737565.6907 | Y28: 1475131.381 | Z28: 2212697.072 | AN28: 43
B29: 3 | C29: 27 | D29: 47 | E29: =IF((((CapitalSeguro!$AE$13-1)*12)+1)=Calculo!C29,CapitalSeguro!$AH$13,0)+IF((((CapitalSeguro!$AE$14-1)*12)+1)=Calculo!C29,CapitalSeguro!$AH$14,0)+IF((((CapitalSeguro!$AE$15-1)*12)+1)=Calculo!C29,CapitalSeguro!$AH$15,0)+IF((((CapitalSeguro!$AE$16-1)*12)+1)=Calculo!C29,CapitalSeguro!$AH$16,0) -> 0 | F29: 600000 | G29: 0 | I29: 714966.7534 | J29: 357.4833767 | K29: 714609.27 | L29: 0 | M29: 714609.27 | N29: 714609.27 | O29: 114609.27 | P29: 1429218.54 | Q29: 2143827.81 | S29: 744564.2988 | T29: 372.2821494 | U29: 744192.0167 | V29: 0 | W29: 744192.0167 | X29: 744192.0167 | Y29: 1488384.033 | Z29: 2232576.05 | AN29: 44
B30: 3 | C30: 28 | D30: 47 | E30: =IF((((CapitalSeguro!$AE$13-1)*12)+1)=Calculo!C30,CapitalSeguro!$AH$13,0)+IF((((CapitalSeguro!$AE$14-1)*12)+1)=Calculo!C30,CapitalSeguro!$AH$14,0)+IF((((CapitalSeguro!$AE$15-1)*12)+1)=Calculo!C30,CapitalSeguro!$AH$15,0)+IF((((CapitalSeguro!$AE$16-1)*12)+1)=Calculo!C30,CapitalSeguro!$AH$16,0) -> 0 | F30: 600000 | G30: 0 | I30: 720307.6647 | J30: 360.1538323 | K30: 719947.5108 | L30: 0 | M30: 719947.5108 | N30: 719947.5108 | O30: 119947.5108 | P30: 1439895.022 | Q30: 2159842.532 | S30: 751253.5006 | T30: 375.6267503 | U30: 750877.8739 | V30: 0 | W30: 750877.8739 | X30: 750877.8739 | Y30: 1501755.748 | Z30: 2252633.622 | AN30: 45
B31: 3 | C31: 29 | D31: 47 | E31: =IF((((CapitalSeguro!$AE$13-1)*12)+1)=Calculo!C31,CapitalSeguro!$AH$13,0)+IF((((CapitalSeguro!$AE$14-1)*12)+1)=Calculo!C31,CapitalSeguro!$AH$14,0)+IF((((CapitalSeguro!$AE$15-1)*12)+1)=Calculo!C31,CapitalSeguro!$AH$15,0)+IF((((CapitalSeguro!$AE$16-1)*12)+1)=Calculo!C31,CapitalSeguro!$AH$16,0) -> 0 | F31: 600000 | G31: 0 | I31: 725688.4734 | J31: 362.8442367 | K31: 725325.6291 | L31: 0 | M31: 725325.6291 | N31: 725325.6291 | O31: 125325.6291 | P31: 1450651.258 | Q31: 2175976.887 | S31: 758002.7985 | T31: 379.0013993 | U31: 757623.7971 | V31: 0 | W31: 757623.7971 | X31: 757623.7971 | Y31: 1515247.594 | Z31: 2272871.391 | AN31: 46
B32: 3 | C32: 30 | D32: 47 | E32: =IF((((CapitalSeguro!$AE$13-1)*12)+1)=Calculo!C32,CapitalSeguro!$AH$13,0)+IF((((CapitalSeguro!$AE$14-1)*12)+1)=Calculo!C32,CapitalSeguro!$AH$14,0)+IF((((CapitalSeguro!$AE$15-1)*12)+1)=Calculo!C32,CapitalSeguro!$AH$15,0)+IF((((CapitalSeguro!$AE$16-1)*12)+1)=Calculo!C32,CapitalSeguro!$AH$16,0) -> 0 | F32: 600000 | G32: 0 | I32: 731109.4776 | J32: 365.5547388 | K32: 730743.9228 | L32: 0 | M32: 730743.9228 | N32: 730743.9228 | O32: 130743.9228 | P32: 1461487.846 | Q32: 2192231.768 | S32: 764812.7325 | T32: 382.4063662 | U32: 764430.3261 | V32: 0 | W32: 764430.3261 | X32: 764430.3261 | Y32: 1528860.652 | Z32: 2293290.978 | AN32: 47
B33: 3 | C33: 31 | D33: 47 | E33: =IF((((CapitalSeguro!$AE$13-1)*12)+1)=Calculo!C33,CapitalSeguro!$AH$13,0)+IF((((CapitalSeguro!$AE$14-1)*12)+1)=Calculo!C33,CapitalSeguro!$AH$14,0)+IF((((CapitalSeguro!$AE$15-1)*12)+1)=Calculo!C33,CapitalSeguro!$AH$15,0)+IF((((CapitalSeguro!$AE$16-1)*12)+1)=Calculo!C33,CapitalSeguro!$AH$16,0) -> 0 | F33: 600000 | G33: 0 | I33: 736570.9775 | J33: 368.2854887 | K33: 736202.692 | L33: 0 | M33: 736202.692 | N33: 736202.692 | O33: 136202.692 | P33: 1472405.384 | Q33: 2208608.076 | S33: 771683.8472 | T33: 385.8419236 | U33: 771298.0052 | V33: 0 | W33: 771298.0052 | X33: 771298.0052 | Y33: 1542596.01 | Z33: 2313894.016 | AN33: 48
B34: 3 | C34: 32 | D34: 47 | E34: =IF((((CapitalSeguro!$AE$13-1)*12)+1)=Calculo!C34,CapitalSeguro!$AH$13,0)+IF((((CapitalSeguro!$AE$14-1)*12)+1)=Calculo!C34,CapitalSeguro!$AH$14,0)+IF((((CapitalSeguro!$AE$15-1)*12)+1)=Calculo!C34,CapitalSeguro!$AH$15,0)+IF((((CapitalSeguro!$AE$16-1)*12)+1)=Calculo!C34,CapitalSeguro!$AH$16,0) -> 0 | F34: 600000 | G34: 0 | I34: 742073.2757 | J34: 371.0366378 | K34: 741702.239 | L34: 0 | M34: 741702.239 | N34: 741702.239 | O34: 141702.239 | P34: 1483404.478 | Q34: 2225106.717 | S34: 778616.6923 | T34: 389.3083462 | U34: 778227.384 | V34: 0 | W34: 778227.384 | X34: 778227.384 | Y34: 1556454.768 | Z34: 2334682.152 | AN34: 49
B35: 3 | C35: 33 | D35: 47 | E35: =IF((((CapitalSeguro!$AE$13-1)*12)+1)=Calculo!C35,CapitalSeguro!$AH$13,0)+IF((((CapitalSeguro!$AE$14-1)*12)+1)=Calculo!C35,CapitalSeguro!$AH$14,0)+IF((((CapitalSeguro!$AE$15-1)*12)+1)=Calculo!C35,CapitalSeguro!$AH$15,0)+IF((((CapitalSeguro!$AE$16-1)*12)+1)=Calculo!C35,CapitalSeguro!$AH$16,0) -> 0 | F35: 600000 | G35: 0 | I35: 747616.6768 | J35: =IF(AND(invinicial>=$AE$7,invinicial<$AF$7),I35*$AH$7,IF(AND(invinicial>=$AE$8,invinicial<$AF$8),I35*$AH$8,IF(AND(invinicial>=$AE$9,invinicial<$AF$9),I35*$AH$9,IF(invinicial>=$AE$10,I35*$AH$10,"Error")))) -> 373.8083384 | K35: 747242.8685 | L35: 0 | M35: 747242.8685 | N35: =IF(C35=36,M35+bonopermconv,M35) -> 747242.8685 | O35: 147242.8685 | P35: 1494485.737 | Q35: 2241728.605 | S35: 785611.8225 | T35: =IF(AND(invinicial>=$AE$7,invinicial<$AF$7),S35*$AH$7,IF(AND(invinicial>=$AE$8,invinicial<$AF$8),S35*$AH$8,IF(AND(invinicial>=$AE$9,invinicial<$AF$9),S35*$AH$9,IF(invinicial>=$AE$10,S35*$AH$10,"Error")))) -> 392.8059112 | U35: =S35-T35 -> 785219.0166 | V35: 0 | W35: 785219.0166 | X35: =IF(C35=36,W35+bonopermopt,W35) -> 785219.0166 | Y35: 1570438.033 | Z35: 2355657.05 | AN35: 50
B36: 3 | C36: 34 | D36: 47 | E36: =IF((((CapitalSeguro!$AE$13-1)*12)+1)=Calculo!C36,CapitalSeguro!$AH$13,0)+IF((((CapitalSeguro!$AE$14-1)*12)+1)=Calculo!C36,CapitalSeguro!$AH$14,0)+IF((((CapitalSeguro!$AE$15-1)*12)+1)=Calculo!C36,CapitalSeguro!$AH$15,0)+IF((((CapitalSeguro!$AE$16-1)*12)+1)=Calculo!C36,CapitalSeguro!$AH$16,0) -> 0 | F36: 600000 | G36: 0 | I36: 753201.4881 | J36: 376.600744 | K36: 752824.8873 | L36: 0 | M36: 752824.8873 | N36: 752824.8873 | O36: 152824.8873 | P36: 1505649.775 | Q36: 2258474.662 | S36: 792669.7972 | T36: 396.3348986 | U36: 792273.4623 | V36: 0 | W36: 792273.4623 | X36: 792273.4623 | Y36: 1584546.925 | Z36: 2376820.387 | AN36: 51
B37: 3 | C37: 35 | D37: 47 | E37: =IF((((CapitalSeguro!$AE$13-1)*12)+1)=Calculo!C37,CapitalSeguro!$AH$13,0)+IF((((CapitalSeguro!$AE$14-1)*12)+1)=Calculo!C37,CapitalSeguro!$AH$14,0)+IF((((CapitalSeguro!$AE$15-1)*12)+1)=Calculo!C37,CapitalSeguro!$AH$15,0)+IF((((CapitalSeguro!$AE$16-1)*12)+1)=Calculo!C37,CapitalSeguro!$AH$16,0) -> 0 | F37: 600000 | G37: 0 | I37: 758828.0187 | J37: 379.4140093 | K37: 758448.6047 | L37: 0 | M37: 758448.6047 | N37: 758448.6047 | O37: 158448.6047 | P37: 1516897.209 | Q37: 2275345.814 | S37: 799791.1811 | T37: 399.8955906 | U37: 799391.2856 | V37: 0 | W37: 799391.2856 | X37: 799391.2856 | Y37: 1598782.571 | Z37: 2398173.857 | AN37: 52
B38: 3 | C38: 36 | D38: 47 | E38: =IF((((CapitalSeguro!$AE$13-1)*12)+1)=Calculo!C38,CapitalSeguro!$AH$13,0)+IF((((CapitalSeguro!$AE$14-1)*12)+1)=Calculo!C38,CapitalSeguro!$AH$14,0)+IF((((CapitalSeguro!$AE$15-1)*12)+1)=Calculo!C38,CapitalSeguro!$AH$15,0)+IF((((CapitalSeguro!$AE$16-1)*12)+1)=Calculo!C38,CapitalSeguro!$AH$16,0) -> 0 | F38: 600000 | G38: 0 | I38: 764496.5804 | J38: 382.2482902 | K38: 764114.3321 | L38: 274 | M38: 763840.3321 | N38: 780666.3938 | O38: 180666.3938 | P38: =MIN(2000000,IF(D38<$AU$4,N38*$AV$4,IF(AND(D38>=$AT$5,D38<=$AU$5),N38*$AV$5,IF(D38>$AT$6,N38*$AV$6,"")))) -> 1561332.788 | Q38: 2341999.181 | S38: 806976.5439 | T38: 403.488272 | U38: 806573.0557 | V38: 274 | W38: 806299.0557 | X38: =IF(C38=36,W38+bonopermopt,W38) -> 823622.1367 | Y38: 1647244.273 | Z38: 2470866.41 | AN38: 53
A39: 4 | B39: 4 | C39: 37 | D39: 48 | E39: =IF((((CapitalSeguro!$AE$13-1)*12)+1)=Calculo!C39,CapitalSeguro!$AH$13,0)+IF((((CapitalSeguro!$AE$14-1)*12)+1)=Calculo!C39,CapitalSeguro!$AH$14,0)+IF((((CapitalSeguro!$AE$15-1)*12)+1)=Calculo!C39,CapitalSeguro!$AH$15,0)+IF((((CapitalSeguro!$AE$16-1)*12)+1)=Calculo!C39,CapitalSeguro!$AH$16,0) -> 0 | F39: 600000 | G39: 0 | I39: 786891.5373 | J39: 393.4457686 | K39: 786498.0915 | L39: 0 | M39: 786498.0915 | N39: 786498.0915 | O39: 186498.0915 | P39: =MIN(2000000,IF(D39<$AU$4,N39*$AV$4,IF(AND(D39>=$AT$5,D39<=$AU$5),N39*$AV$5,IF(D39>$AT$6,N39*$AV$6,"")))) -> 1572996.183 | Q39: 2359494.274 | S39: 831437.3166 | T39: 415.7186583 | U39: 831021.5979 | V39: 0 | W39: 831021.5979 | X39: 831021.5979 | Y39: 1662043.196 | Z39: 2493064.794 | AN39: 54
B40: 4 | C40: 38 | D40: 48 | E40: =IF((((CapitalSeguro!$AE$13-1)*12)+1)=Calculo!C40,CapitalSeguro!$AH$13,0)+IF((((CapitalSeguro!$AE$14-1)*12)+1)=Calculo!C40,CapitalSeguro!$AH$14,0)+IF((((CapitalSeguro!$AE$15-1)*12)+1)=Calculo!C40,CapitalSeguro!$AH$15,0)+IF((((CapitalSeguro!$AE$16-1)*12)+1)=Calculo!C40,CapitalSeguro!$AH$16,0) -> 0 | F40: 600000 | G40: 0 | I40: 792769.7377 | J40: 396.3848689 | K40: 792373.3528 | L40: 0 | M40: 792373.3528 | N40: 792373.3528 | O40: 192373.3528 | P40: 1584746.706 | Q40: 2377120.059 | S40: 838906.9898 | T40: 419.4534949 | U40: 838487.5363 | V40: 0 | W40: 838487.5363 | X40: 838487.5363 | Y40: 1676975.073 | Z40: 2515462.609 | AN40: 55
B41: 4 | C41: 39 | D41: 48 | E41: =IF((((CapitalSeguro!$AE$13-1)*12)+1)=Calculo!C41,CapitalSeguro!$AH$13,0)+IF((((CapitalSeguro!$AE$14-1)*12)+1)=Calculo!C41,CapitalSeguro!$AH$14,0)+IF((((CapitalSeguro!$AE$15-1)*12)+1)=Calculo!C41,CapitalSeguro!$AH$15,0)+IF((((CapitalSeguro!$AE$16-1)*12)+1)=Calculo!C41,CapitalSeguro!$AH$16,0) -> 0 | F41: 600000 | G41: 0 | I41: 798691.8492 | J41: 399.3459246 | K41: 798292.5033 | L41: 0 | M41: 798292.5033 | N41: 798292.5033 | O41: 198292.5033 | P41: 1596585.007 | Q41: 2394877.51 | S41: 846443.7709 | T41: 423.2218855 | U41: 846020.549 | V41: 0 | W41: 846020.549 | X41: 846020.549 | Y41: 1692041.098 | Z41: 2538061.647 | AN41: 56
B42: 4 | C42: 40 | D42: 48 | E42: =IF((((CapitalSeguro!$AE$13-1)*12)+1)=Calculo!C42,CapitalSeguro!$AH$13,0)+IF((((CapitalSeguro!$AE$14-1)*12)+1)=Calculo!C42,CapitalSeguro!$AH$14,0)+IF((((CapitalSeguro!$AE$15-1)*12)+1)=Calculo!C42,CapitalSeguro!$AH$15,0)+IF((((CapitalSeguro!$AE$16-1)*12)+1)=Calculo!C42,CapitalSeguro!$AH$16,0) -> 0 | F42: 600000 | G42: 0 | I42: 804658.1998 | J42: 402.3290999 | K42: 804255.8707 | L42: 0 | M42: 804255.8707 | N42: 804255.8707 | O42: 204255.8707 | P42: 1608511.741 | Q42: 2412767.612 | S42: 854048.2628 | T42: 427.0241314 | U42: 853621.2387 | V42: 0 | W42: 853621.2387 | X42: 853621.2387 | Y42: 1707242.477 | Z42: 2560863.716 | AN42: 57
B43: 4 | C43: 41 | D43: 48 | E43: =IF((((CapitalSeguro!$AE$13-1)*12)+1)=Calculo!C43,CapitalSeguro!$AH$13,0)+IF((((CapitalSeguro!$AE$14-1)*12)+1)=Calculo!C43,CapitalSeguro!$AH$14,0)+IF((((CapitalSeguro!$AE$15-1)*12)+1)=Calculo!C43,CapitalSeguro!$AH$15,0)+IF((((CapitalSeguro!$AE$16-1)*12)+1)=Calculo!C43,CapitalSeguro!$AH$16,0) -> 0 | F43: 600000 | G43: 0 | I43: 810669.12 | J43: 405.33456 | K43: 810263.7854 | L43: 0 | M43: 810263.7854 | N43: 810263.7854 | O43: 210263.7854 | P43: 1620527.571 | Q43: 2430791.356 | S43: 861721.0739 | T43: 430.8605369 | U43: 861290.2134 | V43: 0 | W43: 861290.2134 | X43: 861290.2134 | Y43: 1722580.427 | Z43: 2583870.64 | AN43: 58
B44: 4 | C44: 42 | D44: 48 | E44: =IF((((CapitalSeguro!$AE$13-1)*12)+1)=Calculo!C44,CapitalSeguro!$AH$13,0)+IF((((CapitalSeguro!$AE$14-1)*12)+1)=Calculo!C44,CapitalSeguro!$AH$14,0)+IF((((CapitalSeguro!$AE$15-1)*12)+1)=Calculo!C44,CapitalSeguro!$AH$15,0)+IF((((CapitalSeguro!$AE$16-1)*12)+1)=Calculo!C44,CapitalSeguro!$AH$16,0) -> 0 | F44: 600000 | G44: 0 | I44: 816724.9426 | J44: 408.3624713 | K44: 816316.5802 | L44: 0 | M44: 816316.5802 | N44: 816316.5802 | O44: 216316.5802 | P44: 1632633.16 | Q44: 2448949.741 | S44: 869462.8178 | T44: 434.7314089 | U44: 869028.0864 | V44: 0 | W44: 869028.0864 | X44: 869028.0864 | Y44: 1738056.173 | Z44: 2607084.259 | AN44: 59
B45: 4 | C45: 43 | D45: 48 | E45: =IF((((CapitalSeguro!$AE$13-1)*12)+1)=Calculo!C45,CapitalSeguro!$AH$13,0)+IF((((CapitalSeguro!$AE$14-1)*12)+1)=Calculo!C45,CapitalSeguro!$AH$14,0)+IF((((CapitalSeguro!$AE$15-1)*12)+1)=Calculo!C45,CapitalSeguro!$AH$15,0)+IF((((CapitalSeguro!$AE$16-1)*12)+1)=Calculo!C45,CapitalSeguro!$AH$16,0) -> 0 | F45: 600000 | G45: 0 | I45: 822826.0032 | J45: 411.4130016 | K45: 822414.5902 | L45: 0 | M45: 822414.5902 | N45: 822414.5902 | O45: 222414.5902 | P45: 1644829.18 | Q45: 2467243.771 | S45: 877274.114 | T45: 438.637057 | U45: 876835.477 | V45: 0 | W45: 876835.477 | X45: 876835.477 | Y45: 1753670.954 | Z45: 2630506.431 | AN45: 60
B46: 4 | C46: 44 | D46: 48 | E46: =IF((((CapitalSeguro!$AE$13-1)*12)+1)=Calculo!C46,CapitalSeguro!$AH$13,0)+IF((((CapitalSeguro!$AE$14-1)*12)+1)=Calculo!C46,CapitalSeguro!$AH$14,0)+IF((((CapitalSeguro!$AE$15-1)*12)+1)=Calculo!C46,CapitalSeguro!$AH$15,0)+IF((((CapitalSeguro!$AE$16-1)*12)+1)=Calculo!C46,CapitalSeguro!$AH$16,0) -> 0 | F46: 600000 | G46: 0 | I46: 828972.6396 | J46: 414.4863198 | K46: 828558.1533 | L46: 0 | M46: 828558.1533 | N46: 828558.1533 | O46: 228558.1533 | P46: 1657116.307 | Q46: 2485674.46 | S46: 885155.5872 | T46: 442.5777936 | U46: 884713.0094 | V46: 0 | W46: 884713.0094 | X46: 884713.0094 | Y46: 1769426.019 | Z46: 2654139.028 | AN46: 61
B47: 4 | C47: 45 | D47: 48 | E47: =IF((((CapitalSeguro!$AE$13-1)*12)+1)=Calculo!C47,CapitalSeguro!$AH$13,0)+IF((((CapitalSeguro!$AE$14-1)*12)+1)=Calculo!C47,CapitalSeguro!$AH$14,0)+IF((((CapitalSeguro!$AE$15-1)*12)+1)=Calculo!C47,CapitalSeguro!$AH$15,0)+IF((((CapitalSeguro!$AE$16-1)*12)+1)=Calculo!C47,CapitalSeguro!$AH$16,0) -> 0 | F47: 600000 | G47: 0 | I47: 835165.1924 | J47: 417.5825962 | K47: 834747.6098 | L47: 0 | M47: 834747.6098 | N47: 834747.6098 | O47: 234747.6098 | P47: 1669495.22 | Q47: 2504242.829 | S47: 893107.868 | T47: 446.553934 | U47: 892661.3141 | V47: 0 | W47: 892661.3141 | X47: 892661.3141 | Y47: 1785322.628 | Z47: 2677983.942 | AN47: 62
B48: 4 | C48: 46 | D48: 48 | E48: =IF((((CapitalSeguro!$AE$13-1)*12)+1)=Calculo!C48,CapitalSeguro!$AH$13,0)+IF((((CapitalSeguro!$AE$14-1)*12)+1)=Calculo!C48,CapitalSeguro!$AH$14,0)+IF((((CapitalSeguro!$AE$15-1)*12)+1)=Calculo!C48,CapitalSeguro!$AH$15,0)+IF((((CapitalSeguro!$AE$16-1)*12)+1)=Calculo!C48,CapitalSeguro!$AH$16,0) -> 0 | F48: 600000 | G48: 0 | I48: 841404.0045 | J48: 420.7020022 | K48: 840983.3025 | L48: 0 | M48: 840983.3025 | N48: 840983.3025 | O48: 240983.3025 | P48: 1681966.605 | Q48: 2522949.907 | S48: 901131.5924 | T48: 450.5657962 | U48: 900681.0266 | V48: 0 | W48: 900681.0266 | X48: 900681.0266 | Y48: 1801362.053 | Z48: 2702043.08 | AN48: 63
B49: 4 | C49: 47 | D49: 48 | E49: =IF((((CapitalSeguro!$AE$13-1)*12)+1)=Calculo!C49,CapitalSeguro!$AH$13,0)+IF((((CapitalSeguro!$AE$14-1)*12)+1)=Calculo!C49,CapitalSeguro!$AH$14,0)+IF((((CapitalSeguro!$AE$15-1)*12)+1)=Calculo!C49,CapitalSeguro!$AH$15,0)+IF((((CapitalSeguro!$AE$16-1)*12)+1)=Calculo!C49,CapitalSeguro!$AH$16,0) -> 0 | F49: 600000 | G49: 0 | I49: 847689.4214 | J49: 423.8447107 | K49: 847265.5767 | L49: 0 | M49: 847265.5767 | N49: 847265.5767 | O49: 247265.5767 | P49: 1694531.153 | Q49: 2541796.73 | S49: 909227.4024 | T49: 454.6137012 | U49: 908772.7887 | V49: 0 | W49: 908772.7887 | X49: 908772.7887 | Y49: 1817545.577 | Z49: 2726318.366 | AN49: 64
B50: 4 | C50: 48 | D50: 48 | E50: =IF((((CapitalSeguro!$AE$13-1)*12)+1)=Calculo!C50,CapitalSeguro!$AH$13,0)+IF((((CapitalSeguro!$AE$14-1)*12)+1)=Calculo!C50,CapitalSeguro!$AH$14,0)+IF((((CapitalSeguro!$AE$15-1)*12)+1)=Calculo!C50,CapitalSeguro!$AH$15,0)+IF((((CapitalSeguro!$AE$16-1)*12)+1)=Calculo!C50,CapitalSeguro!$AH$16,0) -> 0 | F50: 600000 | G50: 0 | I50: 854021.7914 | J50: 427.0108957 | K50: 853594.7805 | L50: 274 | M50: 853320.7805 | N50: 853320.7805 | O50: 253320.7805 | P50: 1706641.561 | Q50: 2559962.341 | S50: 917395.9455 | T50: 458.6979728 | U50: 916937.2475 | V50: 274 | W50: 916663.2475 | X50: 916663.2475 | Y50: 1833326.495 | Z50: 2749989.743 | AN50: 65
A51: 5 | B51: 5 | C51: 49 | D51: 49 | E51: =IF((((CapitalSeguro!$AE$13-1)*12)+1)=Calculo!C51,CapitalSeguro!$AH$13,0)+IF((((CapitalSeguro!$AE$14-1)*12)+1)=Calculo!C51,CapitalSeguro!$AH$14,0)+IF((((CapitalSeguro!$AE$15-1)*12)+1)=Calculo!C51,CapitalSeguro!$AH$15,0)+IF((((CapitalSeguro!$AE$16-1)*12)+1)=Calculo!C51,CapitalSeguro!$AH$16,0) -> 0 | F51: 600000 | G51: 0 | I51: 860125.2802 | J51: 430.0626401 | K51: 859695.2176 | L51: 0 | M51: 859695.2176 | N51: 859695.2176 | O51: 259695.2176 | P51: 1719390.435 | Q51: 2579085.653 | S51: 925361.2753 | T51: 462.6806376 | U51: 924898.5946 | V51: 0 | W51: 924898.5946 | X51: 924898.5946 | Y51: 1849797.189 | Z51: 2774695.784 | AN51: 66
B52: 5 | C52: 50 | D52: 49 | E52: =IF((((CapitalSeguro!$AE$13-1)*12)+1)=Calculo!C52,CapitalSeguro!$AH$13,0)+IF((((CapitalSeguro!$AE$14-1)*12)+1)=Calculo!C52,CapitalSeguro!$AH$14,0)+IF((((CapitalSeguro!$AE$15-1)*12)+1)=Calculo!C52,CapitalSeguro!$AH$15,0)+IF((((CapitalSeguro!$AE$16-1)*12)+1)=Calculo!C52,CapitalSeguro!$AH$16,0) -> 0 | F52: 600000 | G52: 0 | I52: 866550.548 | J52: 433.275274 | K52: 866117.2727 | L52: 0 | M52: 866117.2727 | N52: 866117.2727 | O52: 266117.2727 | P52: 1732234.545 | Q52: 2598351.818 | S52: 933674.7659 | T52: 466.8373829 | U52: 933207.9285 | V52: 0 | W52: 933207.9285 | X52: 933207.9285 | Y52: 1866415.857 | Z52: 2799623.786 | AN52: 67
B53: 5 | C53: 51 | D53: 49 | E53: =IF((((CapitalSeguro!$AE$13-1)*12)+1)=Calculo!C53,CapitalSeguro!$AH$13,0)+IF((((CapitalSeguro!$AE$14-1)*12)+1)=Calculo!C53,CapitalSeguro!$AH$14,0)+IF((((CapitalSeguro!$AE$15-1)*12)+1)=Calculo!C53,CapitalSeguro!$AH$15,0)+IF((((CapitalSeguro!$AE$16-1)*12)+1)=Calculo!C53,CapitalSeguro!$AH$16,0) -> 0 | F53: 600000 | G53: 0 | I53: 873023.8135 | J53: 436.5119067 | K53: 872587.3016 | L53: 0 | M53: 872587.3016 | N53: 872587.3016 | O53: 272587.3016 | P53: 1745174.603 | Q53: 2617761.905 | S53: 942062.9453 | T53: 471.0314727 | U53: 941591.9138 | V53: 0 | W53: 941591.9138 | X53: 941591.9138 | Y53: 1883183.828 | Z53: 2824775.742 | AN53: 68
B54: 5 | C54: 52 | D54: 49 | E54: =IF((((CapitalSeguro!$AE$13-1)*12)+1)=Calculo!C54,CapitalSeguro!$AH$13,0)+IF((((CapitalSeguro!$AE$14-1)*12)+1)=Calculo!C54,CapitalSeguro!$AH$14,0)+IF((((CapitalSeguro!$AE$15-1)*12)+1)=Calculo!C54,CapitalSeguro!$AH$15,0)+IF((((CapitalSeguro!$AE$16-1)*12)+1)=Calculo!C54,CapitalSeguro!$AH$16,0) -> 0 | F54: 600000 | G54: 0 | I54: 879545.4352 | J54: 439.7727176 | K54: 879105.6625 | L54: 0 | M54: 879105.6625 | N54: 879105.6625 | O54: 279105.6625 | P54: 1758211.325 | Q54: 2637316.988 | S54: 950526.4845 | T54: 475.2632423 | U54: 950051.2213 | V54: 0 | W54: 950051.2213 | X54: 950051.2213 | Y54: 1900102.443 | Z54: 2850153.664 | AN54: 69
B55: 5 | C55: 53 | D55: 49 | E55: =IF((((CapitalSeguro!$AE$13-1)*12)+1)=Calculo!C55,CapitalSeguro!$AH$13,0)+IF((((CapitalSeguro!$AE$14-1)*12)+1)=Calculo!C55,CapitalSeguro!$AH$14,0)+IF((((CapitalSeguro!$AE$15-1)*12)+1)=Calculo!C55,CapitalSeguro!$AH$15,0)+IF((((CapitalSeguro!$AE$16-1)*12)+1)=Calculo!C55,CapitalSeguro!$AH$16,0) -> 0 | F55: 600000 | G55: 0 | I55: 886115.7745 | J55: 443.0578873 | K55: 885672.7166 | L55: 0 | M55: 885672.7166 | N55: 885672.7166 | O55: 285672.7166 | P55: 1771345.433 | Q55: 2657018.15 | S55: 959066.0606 | T55: 479.5330303 | U55: 958586.5276 | V55: 0 | W55: 958586.5276 | X55: 958586.5276 | Y55: 1917173.055 | Z55: 2875759.583 | AN55: 70
B56: 5 | C56: 54 | D56: 49 | E56: =IF((((CapitalSeguro!$AE$13-1)*12)+1)=Calculo!C56,CapitalSeguro!$AH$13,0)+IF((((CapitalSeguro!$AE$14-1)*12)+1)=Calculo!C56,CapitalSeguro!$AH$14,0)+IF((((CapitalSeguro!$AE$15-1)*12)+1)=Calculo!C56,CapitalSeguro!$AH$15,0)+IF((((CapitalSeguro!$AE$16-1)*12)+1)=Calculo!C56,CapitalSeguro!$AH$16,0) -> 0 | F56: 600000 | G56: 0 | I56: 892735.1953 | J56: 446.3675976 | K56: 892288.8277 | L56: 0 | M56: 892288.8277 | N56: 892288.8277 | O56: 292288.8277 | P56: 1784577.655 | Q56: 2676866.483 | S56: 967682.3566 | T56: 483.8411783 | U56: 967198.5155 | V56: 0 | W56: 967198.5155 | X56: 967198.5155 | Y56: 1934397.031 | Z56: 2901595.546 | AN56: 71
B57: 5 | C57: 55 | D57: 49 | E57: =IF((((CapitalSeguro!$AE$13-1)*12)+1)=Calculo!C57,CapitalSeguro!$AH$13,0)+IF((((CapitalSeguro!$AE$14-1)*12)+1)=Calculo!C57,CapitalSeguro!$AH$14,0)+IF((((CapitalSeguro!$AE$15-1)*12)+1)=Calculo!C57,CapitalSeguro!$AH$15,0)+IF((((CapitalSeguro!$AE$16-1)*12)+1)=Calculo!C57,CapitalSeguro!$AH$16,0) -> 0 | F57: 600000 | G57: 0 | I57: 899404.0641 | J57: 449.702032 | K57: 898954.362 | L57: 0 | M57: 898954.362 | N57: 898954.362 | O57: 298954.362 | P57: 1797908.724 | Q57: 2696863.086 | S57: 976376.0619 | T57: 488.188031 | U57: 975887.8739 | V57: 0 | W57: 975887.8739 | X57: 975887.8739 | Y57: 1951775.748 | Z57: 2927663.622 | AN57: 72
B58: 5 | C58: 56 | D58: 49 | E58: =IF((((CapitalSeguro!$AE$13-1)*12)+1)=Calculo!C58,CapitalSeguro!$AH$13,0)+IF((((CapitalSeguro!$AE$14-1)*12)+1)=Calculo!C58,CapitalSeguro!$AH$14,0)+IF((((CapitalSeguro!$AE$15-1)*12)+1)=Calculo!C58,CapitalSeguro!$AH$15,0)+IF((((CapitalSeguro!$AE$16-1)*12)+1)=Calculo!C58,CapitalSeguro!$AH$16,0) -> 0 | F58: 600000 | G58: 0 | I58: 906122.7504 | J58: 453.0613752 | K58: 905669.689 | L58: 0 | M58: 905669.689 | N58: 905669.689 | O58: 305669.689 | P58: 1811339.378 | Q58: 2717009.067 | S58: 985147.8718 | T58: 492.5739359 | U58: 984655.2979 | V58: 0 | W58: 984655.2979 | X58: 984655.2979 | Y58: 1969310.596 | Z58: 2953965.894 | AN58: 73
B59: 5 | C59: 57 | D59: 49 | E59: =IF((((CapitalSeguro!$AE$13-1)*12)+1)=Calculo!C59,CapitalSeguro!$AH$13,0)+IF((((CapitalSeguro!$AE$14-1)*12)+1)=Calculo!C59,CapitalSeguro!$AH$14,0)+IF((((CapitalSeguro!$AE$15-1)*12)+1)=Calculo!C59,CapitalSeguro!$AH$15,0)+IF((((CapitalSeguro!$AE$16-1)*12)+1)=Calculo!C59,CapitalSeguro!$AH$16,0) -> 0 | F59: 600000 | G59: 0 | I59: 912891.6263 | J59: 456.4458131 | K59: 912435.1805 | L59: 0 | M59: 912435.1805 | N59: 912435.1805 | O59: 312435.1805 | P59: 1824870.361 | Q59: 2737305.541 | S59: 993998.4881 | T59: 496.9992441 | U59: 993501.4889 | V59: 0 | W59: 993501.4889 | X59: 993501.4889 | Y59: 1987002.978 | Z59: 2980504.467 | AN59: 74
B60: 5 | C60: 58 | D60: 49 | E60: =IF((((CapitalSeguro!$AE$13-1)*12)+1)=Calculo!C60,CapitalSeguro!$AH$13,0)+IF((((CapitalSeguro!$AE$14-1)*12)+1)=Calculo!C60,CapitalSeguro!$AH$14,0)+IF((((CapitalSeguro!$AE$15-1)*12)+1)=Calculo!C60,CapitalSeguro!$AH$15,0)+IF((((CapitalSeguro!$AE$16-1)*12)+1)=Calculo!C60,CapitalSeguro!$AH$16,0) -> 0 | F60: 600000 | G60: 0 | I60: 919711.0667 | J60: 459.8555334 | K60: 919251.2112 | L60: 0 | M60: 919251.2112 | N60: 919251.2112 | O60: 319251.2112 | P60: 1838502.422 | Q60: 2757753.634 | S60: 1002928.619 | T60: 501.4643094 | U60: 1002427.154 | V60: 0 | W60: 1002427.154 | X60: 1002427.154 | Y60: 2000000 | Z60: 3002427.154 | AN60: 75
B61: 5 | C61: 59 | D61: 49 | E61: =IF((((CapitalSeguro!$AE$13-1)*12)+1)=Calculo!C61,CapitalSeguro!$AH$13,0)+IF((((CapitalSeguro!$AE$14-1)*12)+1)=Calculo!C61,CapitalSeguro!$AH$14,0)+IF((((CapitalSeguro!$AE$15-1)*12)+1)=Calculo!C61,CapitalSeguro!$AH$15,0)+IF((((CapitalSeguro!$AE$16-1)*12)+1)=Calculo!C61,CapitalSeguro!$AH$16,0) -> 0 | F61: 600000 | G61: 0 | I61: 926581.4494 | J61: 463.2907247 | K61: 926118.1587 | L61: 0 | M61: 926118.1587 | N61: 926118.1587 | O61: 326118.1587 | P61: 1852236.317 | Q61: 2778354.476 | S61: 1011938.978 | T61: 505.9694891 | U61: 1011433.009 | V61: 0 | W61: 1011433.009 | X61: 1011433.009 | Y61: 2000000 | Z61: 3011433.009 | AN61: 76
B62: 5 | C62: 60 | D62: 49 | E62: =IF((((CapitalSeguro!$AE$13-1)*12)+1)=Calculo!C62,CapitalSeguro!$AH$13,0)+IF((((CapitalSeguro!$AE$14-1)*12)+1)=Calculo!C62,CapitalSeguro!$AH$14,0)+IF((((CapitalSeguro!$AE$15-1)*12)+1)=Calculo!C62,CapitalSeguro!$AH$15,0)+IF((((CapitalSeguro!$AE$16-1)*12)+1)=Calculo!C62,CapitalSeguro!$AH$16,0) -> 0 | F62: 600000 | G62: 0 | I62: 933503.155 | J62: 466.7515775 | K62: 933036.4034 | L62: 274 | M62: 932762.4034 | N62: 932762.4034 | O62: 332762.4034 | P62: 1865524.807 | Q62: 2798287.21 | S62: 1021030.287 | T62: 510.5151435 | U62: 1020519.772 | V62: 274 | W62: 1020245.772 | X62: 1020245.772 | Y62: 2000000 | Z62: 3020245.772 | AN62: 77
A63: 6 | B63: 6 | C63: 61 | D63: 50 | E63: =IF((((CapitalSeguro!$AE$13-1)*12)+1)=Calculo!C63,CapitalSeguro!$AH$13,0)+IF((((CapitalSeguro!$AE$14-1)*12)+1)=Calculo!C63,CapitalSeguro!$AH$14,0)+IF((((CapitalSeguro!$AE$15-1)*12)+1)=Calculo!C63,CapitalSeguro!$AH$15,0)+IF((((CapitalSeguro!$AE$16-1)*12)+1)=Calculo!C63,CapitalSeguro!$AH$16,0) -> 0 | F63: 600000 | G63: 0 | I63: 940200.3818 | J63: 470.1001909 | K63: 939730.2816 | L63: 0 | M63: 939730.2816 | N63: 939730.2816 | O63: 339730.2816 | P63: 1879460.563 | Q63: 2819190.845 | S63: 1029926.673 | T63: 514.9633364 | U63: 1029411.709 | V63: 0 | W63: 1029411.709 | X63: 1029411.709 | Y63: 2000000 | Z63: 3029411.709 | AN63: 78
B64: 6 | C64: 62 | D64: 50 | E64: =IF((((CapitalSeguro!$AE$13-1)*12)+1)=Calculo!C64,CapitalSeguro!$AH$13,0)+IF((((CapitalSeguro!$AE$14-1)*12)+1)=Calculo!C64,CapitalSeguro!$AH$14,0)+IF((((CapitalSeguro!$AE$15-1)*12)+1)=Calculo!C64,CapitalSeguro!$AH$15,0)+IF((((CapitalSeguro!$AE$16-1)*12)+1)=Calculo!C64,CapitalSeguro!$AH$16,0) -> 0 | F64: 600000 | G64: 0 | I64: 947223.8228 | J64: 473.6119114 | K64: 946750.2109 | L64: 0 | M64: 946750.2109 | N64: 946750.2109 | O64: 346750.2109 | P64: 1893500.422 | Q64: 2840250.633 | S64: 1039179.584 | T64: 519.589792 | U64: 1038659.994 | V64: 0 | W64: 1038659.994 | X64: 1038659.994 | Y64: 2000000 | Z64: 3038659.994 | AN64: 79
B65: 6 | C65: 63 | D65: 50 | E65: =IF((((CapitalSeguro!$AE$13-1)*12)+1)=Calculo!C65,CapitalSeguro!$AH$13,0)+IF((((CapitalSeguro!$AE$14-1)*12)+1)=Calculo!C65,CapitalSeguro!$AH$14,0)+IF((((CapitalSeguro!$AE$15-1)*12)+1)=Calculo!C65,CapitalSeguro!$AH$15,0)+IF((((CapitalSeguro!$AE$16-1)*12)+1)=Calculo!C65,CapitalSeguro!$AH$16,0) -> 0 | F65: 600000 | G65: 0 | I65: 954299.73 | J65: 477.149865 | K65: 953822.5802 | L65: 0 | M65: 953822.5802 | N65: 953822.5802 | O65: 353822.5802 | P65: 1907645.16 | Q65: 2861467.74 | S65: 1048515.624 | T65: 524.2578119 | U65: 1047991.366 | V65: 0 | W65: 1047991.366 | X65: 1047991.366 | Y65: 2000000 | Z65: 3047991.366 | AN65: 80
B66: 6 | C66: 64 | D66: 50 | E66: =IF((((CapitalSeguro!$AE$13-1)*12)+1)=Calculo!C66,CapitalSeguro!$AH$13,0)+IF((((CapitalSeguro!$AE$14-1)*12)+1)=Calculo!C66,CapitalSeguro!$AH$14,0)+IF((((CapitalSeguro!$AE$15-1)*12)+1)=Calculo!C66,CapitalSeguro!$AH$15,0)+IF((((CapitalSeguro!$AE$16-1)*12)+1)=Calculo!C66,CapitalSeguro!$AH$16,0) -> 0 | F66: 600000 | G66: 0 | I66: 961428.4954 | J66: 480.7142477 | K66: 960947.7811 | L66: 0 | M66: 960947.7811 | N66: 960947.7811 | O66: 360947.7811 | P66: 1921895.562 | Q66: 2882843.343 | S66: 1057935.539 | T66: 528.9677696 | U66: 1057406.571 | V66: 0 | W66: 1057406.571 | X66: 1057406.571 | Y66: 2000000 | Z66: 3057406.571 | AN66: 81
B67: 6 | C67: 65 | D67: 50 | E67: =IF((((CapitalSeguro!$AE$13-1)*12)+1)=Calculo!C67,CapitalSeguro!$AH$13,0)+IF((((CapitalSeguro!$AE$14-1)*12)+1)=Calculo!C67,CapitalSeguro!$AH$14,0)+IF((((CapitalSeguro!$AE$15-1)*12)+1)=Calculo!C67,CapitalSeguro!$AH$15,0)+IF((((CapitalSeguro!$AE$16-1)*12)+1)=Calculo!C67,CapitalSeguro!$AH$16,0) -> 0 | F67: 600000 | G67: 0 | I67: 968610.5137 | J67: =IF(AND(invinicial>=$AE$7,invinicial<$AF$7),I67*$AH$7,IF(AND(invinicial>=$AE$8,invinicial<$AF$8),I67*$AH$8,IF(AND(invinicial>=$AE$9,invinicial<$AF$9),I67*$AH$9,IF(invinicial>=$AE$10,I67*$AH$10,"Error")))) -> 484.3052568 | K67: 968126.2084 | L67: 0 | M67: 968126.2084 | N67: =IF(C67=36,M67+bonopermconv,M67) -> 968126.2084 | O67: 368126.2084 | P67: 1936252.417 | Q67: 2904378.625 | S67: 1067440.083 | T67: =IF(AND(invinicial>=$AE$7,invinicial<$AF$7),S67*$AH$7,IF(AND(invinicial>=$AE$8,invinicial<$AF$8),S67*$AH$8,IF(AND(invinicial>=$AE$9,invinicial<$AF$9),S67*$AH$9,IF(invinicial>=$AE$10,S67*$AH$10,"Error")))) -> 533.7200417 | U67: =S67-T67 -> 1066906.363 | V67: 0 | W67: 1066906.363 | X67: =IF(C67=36,W67+bonopermopt,W67) -> 1066906.363 | Y67: 2000000 | Z67: 3066906.363 | AN67: 82
B68: 6 | C68: 66 | D68: =$D$2+(B68-1) -> 50 | E68: =IF((((CapitalSeguro!$AE$13-1)*12)+1)=Calculo!C68,CapitalSeguro!$AH$13,0)+IF((((CapitalSeguro!$AE$14-1)*12)+1)=Calculo!C68,CapitalSeguro!$AH$14,0)+IF((((CapitalSeguro!$AE$15-1)*12)+1)=Calculo!C68,CapitalSeguro!$AH$15,0)+IF((((CapitalSeguro!$AE$16-1)*12)+1)=Calculo!C68,CapitalSeguro!$AH$16,0) -> 0 | F68: =E68+F67 -> 600000 | G68: 0 | I68: =(N67+E68-G68)*(1+$AL$3) -> 975846.1827 | J68: 487.9230914 | K68: =I68-J68 -> 975358.2597 | L68: =IF(B68*12=C68,$AH$4,0) -> 0 | M68: =K68-L68 -> 975358.2597 | N68: 975358.2597 | O68: =N68-F68 -> 375358.2597 | P68: 1950716.519 | Q68: =P68+N68 -> 2926074.779 | S68: =(X67+E68-G68)*(1+$AL$4) -> 1077030.017 | T68: 538.5150084 | U68: 1076491.502 | V68: =IF(C68=B68*12,$AH$4,0) -> 0 | W68: =U68-V68 -> 1076491.502 | X68: 1076491.502 | Y68: =MIN(2000000,IF(D68<$AU$4,X68*$AV$4,IF(AND(D68>=$AT$5,D68<=$AU$5),X68*$AV$5,IF(D68>$AT$6,X68*$AV$6,"")))) -> 2000000 | Z68: =Y68+X68 -> 3076491.502 | AN68: 83
B69: 6 | C69: =C68+1 -> 67 | D69: 50 | E69: =IF((((CapitalSeguro!$AE$13-1)*12)+1)=Calculo!C69,CapitalSeguro!$AH$13,0)+IF((((CapitalSeguro!$AE$14-1)*12)+1)=Calculo!C69,CapitalSeguro!$AH$14,0)+IF((((CapitalSeguro!$AE$15-1)*12)+1)=Calculo!C69,CapitalSeguro!$AH$15,0)+IF((((CapitalSeguro!$AE$16-1)*12)+1)=Calculo!C69,CapitalSeguro!$AH$16,0) -> 0 | F69: 600000 | G69: 0 | I69: 983135.9034 | J69: 491.5679517 | K69: 982644.3354 | L69: 0 | M69: 982644.3354 | N69: 982644.3354 | O69: 382644.3354 | P69: 1965288.671 | Q69: 2947933.006 | S69: 1086706.107 | T69: 543.3530534 | U69: 1086162.754 | V69: 0 | W69: 1086162.754 | X69: 1086162.754 | Y69: 2000000 | Z69: 3086162.754 | AN69: 84
B70: 6 | C70: 68 | D70: 50 | E70: =IF((((CapitalSeguro!$AE$13-1)*12)+1)=Calculo!C70,CapitalSeguro!$AH$13,0)+IF((((CapitalSeguro!$AE$14-1)*12)+1)=Calculo!C70,CapitalSeguro!$AH$14,0)+IF((((CapitalSeguro!$AE$15-1)*12)+1)=Calculo!C70,CapitalSeguro!$AH$15,0)+IF((((CapitalSeguro!$AE$16-1)*12)+1)=Calculo!C70,CapitalSeguro!$AH$16,0) -> 0 | F70: 600000 | G70: 0 | I70: 990480.0794 | J70: 495.2400397 | K70: 989984.8393 | L70: 0 | M70: 989984.8393 | N70: 989984.8393 | O70: 389984.8393 | P70: 1979969.679 | Q70: 2969954.518 | S70: 1096469.127 | T70: 548.2345636 | U70: 1095920.893 | V70: 0 | W70: 1095920.893 | X70: 1095920.893 | Y70: 2000000 | Z70: 3095920.893 | AN70: 85
B71: 6 | C71: 69 | D71: 50 | E71: =IF((((CapitalSeguro!$AE$13-1)*12)+1)=Calculo!C71,CapitalSeguro!$AH$13,0)+IF((((CapitalSeguro!$AE$14-1)*12)+1)=Calculo!C71,CapitalSeguro!$AH$14,0)+IF((((CapitalSeguro!$AE$15-1)*12)+1)=Calculo!C71,CapitalSeguro!$AH$15,0)+IF((((CapitalSeguro!$AE$16-1)*12)+1)=Calculo!C71,CapitalSeguro!$AH$16,0) -> 0 | F71: 600000 | G71: 0 | I71: 997879.1175 | J71: 498.9395587 | K71: 997380.1779 | L71: 0 | M71: 997380.1779 | N71: 997380.1779 | O71: 397380.1779 | P71: 1994760.356 | Q71: 2992140.534 | S71: 1106319.859 | T71: 553.1599295 | U71: 1105766.699 | V71: 0 | W71: 1105766.699 | X71: 1105766.699 | Y71: 2000000 | Z71: 3105766.699 | AN71: 86
B72: 6 | C72: 70 | D72: 50 | E72: =IF((((CapitalSeguro!$AE$13-1)*12)+1)=Calculo!C72,CapitalSeguro!$AH$13,0)+IF((((CapitalSeguro!$AE$14-1)*12)+1)=Calculo!C72,CapitalSeguro!$AH$14,0)+IF((((CapitalSeguro!$AE$15-1)*12)+1)=Calculo!C72,CapitalSeguro!$AH$15,0)+IF((((CapitalSeguro!$AE$16-1)*12)+1)=Calculo!C72,CapitalSeguro!$AH$16,0) -> 0 | F72: 600000 | G72: 0 | I72: 1005333.427 | J72: 502.6667137 | K72: 1004830.761 | L72: 0 | M72: 1004830.761 | N72: 1004830.761 | O72: 404830.7608 | P72: 2000000 | Q72: 3004830.761 | S72: 1116259.09 | T72: 558.1295452 | U72: 1115700.961 | V72: 0 | W72: 1115700.961 | X72: 1115700.961 | Y72: 2000000 | Z72: 3115700.961 | AN72: 87
B73: 6 | C73: 71 | D73: 50 | E73: =IF((((CapitalSeguro!$AE$13-1)*12)+1)=Calculo!C73,CapitalSeguro!$AH$13,0)+IF((((CapitalSeguro!$AE$14-1)*12)+1)=Calculo!C73,CapitalSeguro!$AH$14,0)+IF((((CapitalSeguro!$AE$15-1)*12)+1)=Calculo!C73,CapitalSeguro!$AH$15,0)+IF((((CapitalSeguro!$AE$16-1)*12)+1)=Calculo!C73,CapitalSeguro!$AH$16,0) -> 0 | F73: 600000 | G73: 0 | I73: 1012843.422 | J73: 506.4217112 | K73: 1012337.001 | L73: 0 | M73: 1012337.001 | N73: 1012337.001 | O73: 412337.0007 | P73: 2000000 | Q73: 3012337.001 | S73: 1126287.616 | T73: 563.1438081 | U73: 1125724.472 | V73: 0 | W73: 1125724.472 | X73: 1125724.472 | Y73: 2000000 | Z73: 3125724.472 | AN73: 88
B74: 6 | C74: 72 | D74: 50 | E74: =IF((((CapitalSeguro!$AE$13-1)*12)+1)=Calculo!C74,CapitalSeguro!$AH$13,0)+IF((((CapitalSeguro!$AE$14-1)*12)+1)=Calculo!C74,CapitalSeguro!$AH$14,0)+IF((((CapitalSeguro!$AE$15-1)*12)+1)=Calculo!C74,CapitalSeguro!$AH$15,0)+IF((((CapitalSeguro!$AE$16-1)*12)+1)=Calculo!C74,CapitalSeguro!$AH$16,0) -> 0 | F74: 600000 | G74: 0 | I74: 1020409.518 | J74: 510.204759 | K74: 1019899.313 | L74: 274 | M74: 1019625.313 | N74: 1019625.313 | O74: 419625.3133 | P74: 2000000 | Q74: 3019625.313 | S74: 1136406.239 | T74: 568.2031194 | U74: 1135838.036 | V74: 274 | W74: 1135564.036 | X74: 1135564.036 | Y74: 2000000 | Z74: 3135564.036 | AN74: 89
A75: 7 | B75: 7 | C75: 73 | D75: 51 | E75: =IF((((CapitalSeguro!$AE$13-1)*12)+1)=Calculo!C75,CapitalSeguro!$AH$13,0)+IF((((CapitalSeguro!$AE$14-1)*12)+1)=Calculo!C75,CapitalSeguro!$AH$14,0)+IF((((CapitalSeguro!$AE$15-1)*12)+1)=Calculo!C75,CapitalSeguro!$AH$15,0)+IF((((CapitalSeguro!$AE$16-1)*12)+1)=Calculo!C75,CapitalSeguro!$AH$16,0) -> 0 | F75: 600000 | G75: 0 | I75: 1027755.949 | J75: 513.8779744 | K75: 1027242.071 | L75: 0 | M75: 1027242.071 | N75: 1027242.071 | O75: 427242.0708 | P75: 2000000 | Q75: 3027242.071 | S75: 1146339.168 | T75: 573.1695839 | U75: 1145765.998 | V75: 0 | W75: 1145765.998 | X75: 1145765.998 | Y75: 2000000 | Z75: 3145765.998 | AN75: 90
B76: 7 | C76: 74 | D76: 51 | E76: =IF((((CapitalSeguro!$AE$13-1)*12)+1)=Calculo!C76,CapitalSeguro!$AH$13,0)+IF((((CapitalSeguro!$AE$14-1)*12)+1)=Calculo!C76,CapitalSeguro!$AH$14,0)+IF((((CapitalSeguro!$AE$15-1)*12)+1)=Calculo!C76,CapitalSeguro!$AH$15,0)+IF((((CapitalSeguro!$AE$16-1)*12)+1)=Calculo!C76,CapitalSeguro!$AH$16,0) -> 0 | F76: 600000 | G76: 0 | I76: 1035433.443 | J76: 517.7167216 | K76: 1034915.727 | L76: 0 | M76: 1034915.727 | N76: 1034915.727 | O76: 434915.7266 | P76: 2000000 | Q76: 3034915.727 | S76: 1156637.934 | T76: 578.3189672 | U76: 1156059.616 | V76: 0 | W76: 1156059.616 | X76: 1156059.616 | Y76: 2000000 | Z76: 3156059.616 | AN76: 91
B77: 7 | C77: 75 | D77: 51 | E77: =IF((((CapitalSeguro!$AE$13-1)*12)+1)=Calculo!C77,CapitalSeguro!$AH$13,0)+IF((((CapitalSeguro!$AE$14-1)*12)+1)=Calculo!C77,CapitalSeguro!$AH$14,0)+IF((((CapitalSeguro!$AE$15-1)*12)+1)=Calculo!C77,CapitalSeguro!$AH$15,0)+IF((((CapitalSeguro!$AE$16-1)*12)+1)=Calculo!C77,CapitalSeguro!$AH$16,0) -> 0 | F77: 600000 | G77: 0 | I77: 1043168.29 | J77: 521.584145 | K77: 1042646.706 | L77: 0 | M77: 1042646.706 | N77: 1042646.706 | O77: 442646.7058 | P77: 2000000 | Q77: 3042646.706 | S77: 1167029.226 | T77: 583.5146129 | U77: 1166445.711 | V77: 0 | W77: 1166445.711 | X77: 1166445.711 | Y77: 2000000 | Z77: 3166445.711 | AN77: 92
B78: 7 | C78: 76 | D78: 51 | E78: =IF((((CapitalSeguro!$AE$13-1)*12)+1)=Calculo!C78,CapitalSeguro!$AH$13,0)+IF((((CapitalSeguro!$AE$14-1)*12)+1)=Calculo!C78,CapitalSeguro!$AH$14,0)+IF((((CapitalSeguro!$AE$15-1)*12)+1)=Calculo!C78,CapitalSeguro!$AH$15,0)+IF((((CapitalSeguro!$AE$16-1)*12)+1)=Calculo!C78,CapitalSeguro!$AH$16,0) -> 0 | F78: 600000 | G78: 0 | I78: 1050960.917 | J78: 525.4804585 | K78: 1050435.437 | L78: 0 | M78: 1050435.437 | N78: 1050435.437 | O78: 450435.4366 | P78: 2000000 | Q78: 3050435.437 | S78: 1177513.873 | T78: 588.7569365 | U78: 1176925.116 | V78: 0 | W78: 1176925.116 | X78: 1176925.116 | Y78: 2000000 | Z78: 3176925.116 | AN78: 93
B79: 7 | C79: 77 | D79: 51 | E79: =IF((((CapitalSeguro!$AE$13-1)*12)+1)=Calculo!C79,CapitalSeguro!$AH$13,0)+IF((((CapitalSeguro!$AE$14-1)*12)+1)=Calculo!C79,CapitalSeguro!$AH$14,0)+IF((((CapitalSeguro!$AE$15-1)*12)+1)=Calculo!C79,CapitalSeguro!$AH$15,0)+IF((((CapitalSeguro!$AE$16-1)*12)+1)=Calculo!C79,CapitalSeguro!$AH$16,0) -> 0 | F79: 600000 | G79: 0 | I79: 1058811.756 | J79: 529.4058781 | K79: 1058282.35 | L79: 0 | M79: 1058282.35 | N79: 1058282.35 | O79: 458282.3504 | P79: 2000000 | Q79: 3058282.35 | S79: 1188092.715 | T79: 594.0463574 | U79: 1187498.668 | V79: 0 | W79: 1187498.668 | X79: 1187498.668 | Y79: 2000000 | Z79: 3187498.668 | AN79: 94
B80: 7 | C80: 78 | D80: 51 | E80: =IF((((CapitalSeguro!$AE$13-1)*12)+1)=Calculo!C80,CapitalSeguro!$AH$13,0)+IF((((CapitalSeguro!$AE$14-1)*12)+1)=Calculo!C80,CapitalSeguro!$AH$14,0)+IF((((CapitalSeguro!$AE$15-1)*12)+1)=Calculo!C80,CapitalSeguro!$AH$15,0)+IF((((CapitalSeguro!$AE$16-1)*12)+1)=Calculo!C80,CapitalSeguro!$AH$16,0) -> 0 | F80: 600000 | G80: 0 | I80: 1066721.242 | J80: 533.3606212 | K80: 1066187.882 | L80: 0 | M80: 1066187.882 | N80: 1066187.882 | O80: 466187.8818 | P80: 2000000 | Q80: 3066187.882 | S80: 1198766.597 | T80: 599.3832987 | U80: 1198167.214 | V80: 0 | W80: 1198167.214 | X80: 1198167.214 | Y80: 2000000 | Z80: 3198167.214 | AN80: 95
B81: 7 | C81: 79 | D81: 51 | E81: =IF((((CapitalSeguro!$AE$13-1)*12)+1)=Calculo!C81,CapitalSeguro!$AH$13,0)+IF((((CapitalSeguro!$AE$14-1)*12)+1)=Calculo!C81,CapitalSeguro!$AH$14,0)+IF((((CapitalSeguro!$AE$15-1)*12)+1)=Calculo!C81,CapitalSeguro!$AH$15,0)+IF((((CapitalSeguro!$AE$16-1)*12)+1)=Calculo!C81,CapitalSeguro!$AH$16,0) -> 0 | F81: 600000 | G81: 0 | I81: 1074689.814 | J81: 537.3449069 | K81: 1074152.469 | L81: 0 | M81: 1074152.469 | N81: 1074152.469 | O81: 474152.4688 | P81: 2000000 | Q81: 3074152.469 | S81: 1209536.375 | T81: 604.7681874 | U81: 1208931.607 | V81: 0 | W81: 1208931.607 | X81: 1208931.607 | Y81: 2000000 | Z81: 3208931.607 | AN81: 96
B82: 7 | C82: 80 | D82: 51 | E82: =IF((((CapitalSeguro!$AE$13-1)*12)+1)=Calculo!C82,CapitalSeguro!$AH$13,0)+IF((((CapitalSeguro!$AE$14-1)*12)+1)=Calculo!C82,CapitalSeguro!$AH$14,0)+IF((((CapitalSeguro!$AE$15-1)*12)+1)=Calculo!C82,CapitalSeguro!$AH$15,0)+IF((((CapitalSeguro!$AE$16-1)*12)+1)=Calculo!C82,CapitalSeguro!$AH$16,0) -> 0 | F82: 600000 | G82: 0 | I82: 1082717.911 | J82: 541.3589557 | K82: 1082176.552 | L82: 0 | M82: 1082176.552 | N82: 1082176.552 | O82: 482176.5525 | P82: 2000000 | Q82: 3082176.552 | S82: 1220402.908 | T82: 610.2014541 | U82: 1219792.707 | V82: 0 | W82: 1219792.707 | X82: 1219792.707 | Y82: 2000000 | Z82: 3219792.707 | AN82: 97
B83: 7 | C83: 81 | D83: 51 | E83: =IF((((CapitalSeguro!$AE$13-1)*12)+1)=Calculo!C83,CapitalSeguro!$AH$13,0)+IF((((CapitalSeguro!$AE$14-1)*12)+1)=Calculo!C83,CapitalSeguro!$AH$14,0)+IF((((CapitalSeguro!$AE$15-1)*12)+1)=Calculo!C83,CapitalSeguro!$AH$15,0)+IF((((CapitalSeguro!$AE$16-1)*12)+1)=Calculo!C83,CapitalSeguro!$AH$16,0) -> 0 | F83: 600000 | G83: 0 | I83: 1090805.98 | J83: 545.4029901 | K83: 1090260.577 | L83: 0 | M83: 1090260.577 | N83: 1090260.577 | O83: 490260.5773 | P83: 2000000 | Q83: 3090260.577 | S83: 1231367.067 | T83: 615.6835336 | U83: 1230751.384 | V83: 0 | W83: 1230751.384 | X83: 1230751.384 | Y83: 2000000 | Z83: 3230751.384 | AN83: 98
B84: 7 | C84: 82 | D84: 51 | E84: =IF((((CapitalSeguro!$AE$13-1)*12)+1)=Calculo!C84,CapitalSeguro!$AH$13,0)+IF((((CapitalSeguro!$AE$14-1)*12)+1)=Calculo!C84,CapitalSeguro!$AH$14,0)+IF((((CapitalSeguro!$AE$15-1)*12)+1)=Calculo!C84,CapitalSeguro!$AH$15,0)+IF((((CapitalSeguro!$AE$16-1)*12)+1)=Calculo!C84,CapitalSeguro!$AH$16,0) -> 0 | F84: 600000 | G84: 0 | I84: 1098954.468 | J84: 549.4772341 | K84: 1098404.991 | L84: 0 | M84: 1098404.991 | N84: 1098404.991 | O84: 498404.991 | P84: 2000000 | Q84: 3098404.991 | S84: 1242429.729 | T84: 621.2148643 | U84: 1241808.514 | V84: 0 | W84: 1241808.514 | X84: 1241808.514 | Y84: 2000000 | Z84: 3241808.514 | AN84: 99
B85: 7 | C85: 83 | D85: 51 | E85: =IF((((CapitalSeguro!$AE$13-1)*12)+1)=Calculo!C85,CapitalSeguro!$AH$13,0)+IF((((CapitalSeguro!$AE$14-1)*12)+1)=Calculo!C85,CapitalSeguro!$AH$14,0)+IF((((CapitalSeguro!$AE$15-1)*12)+1)=Calculo!C85,CapitalSeguro!$AH$15,0)+IF((((CapitalSeguro!$AE$16-1)*12)+1)=Calculo!C85,CapitalSeguro!$AH$16,0) -> 0 | F85: 600000 | G85: 0 | I85: 1107163.827 | J85: 553.5819133 | K85: 1106610.245 | L85: 0 | M85: 1106610.245 | N85: 1106610.245 | O85: 506610.2447 | P85: 2000000 | Q85: 3106610.245 | S85: 1253591.778 | T85: 626.7958888 | U85: 1252964.982 | V85: 0 | W85: 1252964.982 | X85: 1252964.982 | Y85: 2000000 | Z85: 3252964.982
B86: 7 | C86: 84 | D86: 51 | E86: =IF((((CapitalSeguro!$AE$13-1)*12)+1)=Calculo!C86,CapitalSeguro!$AH$13,0)+IF((((CapitalSeguro!$AE$14-1)*12)+1)=Calculo!C86,CapitalSeguro!$AH$14,0)+IF((((CapitalSeguro!$AE$15-1)*12)+1)=Calculo!C86,CapitalSeguro!$AH$15,0)+IF((((CapitalSeguro!$AE$16-1)*12)+1)=Calculo!C86,CapitalSeguro!$AH$16,0) -> 0 | F86: 600000 | G86: 0 | I86: 1115434.51 | J86: 557.7172551 | K86: 1114876.793 | L86: 274 | M86: 1114602.793 | N86: 1114602.793 | O86: 514602.793 | P86: 2000000 | Q86: 3114602.793 | S86: 1264854.107 | T86: 632.4270535 | U86: 1264221.68 | V86: 274 | W86: 1263947.68 | X86: 1263947.68 | Y86: 2000000 | Z86: 3263947.68
A87: 8 | B87: 8 | C87: 85 | D87: 52 | E87: =IF((((CapitalSeguro!$AE$13-1)*12)+1)=Calculo!C87,CapitalSeguro!$AH$13,0)+IF((((CapitalSeguro!$AE$14-1)*12)+1)=Calculo!C87,CapitalSeguro!$AH$14,0)+IF((((CapitalSeguro!$AE$15-1)*12)+1)=Calculo!C87,CapitalSeguro!$AH$15,0)+IF((((CapitalSeguro!$AE$16-1)*12)+1)=Calculo!C87,CapitalSeguro!$AH$16,0) -> 0 | F87: 600000 | G87: 0 | I87: 1123490.792 | J87: 561.7453961 | K87: 1122929.047 | L87: 0 | M87: 1122929.047 | N87: 1122929.047 | O87: 522929.0468 | P87: 2000000 | Q87: 3122929.047 | S87: 1275941.018 | T87: 637.9705089 | U87: 1275303.047 | V87: 0 | W87: 1275303.047 | X87: 1275303.047 | Y87: 2000000 | Z87: 3275303.047
B88: 8 | C88: 86 | D88: 52 | E88: =IF((((CapitalSeguro!$AE$13-1)*12)+1)=Calculo!C88,CapitalSeguro!$AH$13,0)+IF((((CapitalSeguro!$AE$14-1)*12)+1)=Calculo!C88,CapitalSeguro!$AH$14,0)+IF((((CapitalSeguro!$AE$15-1)*12)+1)=Calculo!C88,CapitalSeguro!$AH$15,0)+IF((((CapitalSeguro!$AE$16-1)*12)+1)=Calculo!C88,CapitalSeguro!$AH$16,0) -> 0 | F88: 600000 | G88: 0 | I88: 1131883.441 | J88: 565.9417203 | K88: 1131317.499 | L88: 0 | M88: 1131317.499 | N88: 1131317.499 | O88: 531317.4989 | P88: 2000000 | Q88: 3131317.499 | S88: 1287404.134 | T88: 643.7020669 | U88: 1286760.432 | V88: 0 | W88: 1286760.432 | X88: 1286760.432 | Y88: 2000000 | Z88: 3286760.432
B89: 8 | C89: 87 | D89: 52 | E89: =IF((((CapitalSeguro!$AE$13-1)*12)+1)=Calculo!C89,CapitalSeguro!$AH$13,0)+IF((((CapitalSeguro!$AE$14-1)*12)+1)=Calculo!C89,CapitalSeguro!$AH$14,0)+IF((((CapitalSeguro!$AE$15-1)*12)+1)=Calculo!C89,CapitalSeguro!$AH$15,0)+IF((((CapitalSeguro!$AE$16-1)*12)+1)=Calculo!C89,CapitalSeguro!$AH$16,0) -> 0 | F89: 600000 | G89: 0 | I89: 1140338.784 | J89: 570.1693918 | K89: 1139768.614 | L89: 0 | M89: 1139768.614 | N89: 1139768.614 | O89: 539768.6142 | P89: 2000000 | Q89: 3139768.614 | S89: 1298970.235 | T89: 649.4851175 | U89: 1298320.75 | V89: 0 | W89: 1298320.75 | X89: 1298320.75 | Y89: 2000000 | Z89: 3298320.75
B90: 8 | C90: 88 | D90: 52 | E90: =IF((((CapitalSeguro!$AE$13-1)*12)+1)=Calculo!C90,CapitalSeguro!$AH$13,0)+IF((((CapitalSeguro!$AE$14-1)*12)+1)=Calculo!C90,CapitalSeguro!$AH$14,0)+IF((((CapitalSeguro!$AE$15-1)*12)+1)=Calculo!C90,CapitalSeguro!$AH$15,0)+IF((((CapitalSeguro!$AE$16-1)*12)+1)=Calculo!C90,CapitalSeguro!$AH$16,0) -> 0 | F90: 600000 | G90: 0 | I90: 1148857.289 | J90: 574.4286446 | K90: 1148282.861 | L90: 0 | M90: 1148282.861 | N90: 1148282.861 | O90: 548282.8605 | P90: 2000000 | Q90: 3148282.861 | S90: 1310640.247 | T90: 655.3201234 | U90: 1309984.927 | V90: 0 | W90: 1309984.927 | X90: 1309984.927 | Y90: 2000000 | Z90: 3309984.927
B91: 8 | C91: 89 | D91: 52 | E91: =IF((((CapitalSeguro!$AE$13-1)*12)+1)=Calculo!C91,CapitalSeguro!$AH$13,0)+IF((((CapitalSeguro!$AE$14-1)*12)+1)=Calculo!C91,CapitalSeguro!$AH$14,0)+IF((((CapitalSeguro!$AE$15-1)*12)+1)=Calculo!C91,CapitalSeguro!$AH$15,0)+IF((((CapitalSeguro!$AE$16-1)*12)+1)=Calculo!C91,CapitalSeguro!$AH$16,0) -> 0 | F91: 600000 | G91: 0 | I91: 1157439.429 | J91: 578.7197146 | K91: 1156860.71 | L91: 0 | M91: 1156860.71 | N91: 1156860.71 | O91: 556860.7096 | P91: 2000000 | Q91: 3156860.71 | S91: 1322415.102 | T91: 661.2075512 | U91: 1321753.895 | V91: 0 | W91: 1321753.895 | X91: 1321753.895 | Y91: 2000000 | Z91: 3321753.895
B92: 8 | C92: 90 | D92: 52 | E92: =IF((((CapitalSeguro!$AE$13-1)*12)+1)=Calculo!C92,CapitalSeguro!$AH$13,0)+IF((((CapitalSeguro!$AE$14-1)*12)+1)=Calculo!C92,CapitalSeguro!$AH$14,0)+IF((((CapitalSeguro!$AE$15-1)*12)+1)=Calculo!C92,CapitalSeguro!$AH$15,0)+IF((((CapitalSeguro!$AE$16-1)*12)+1)=Calculo!C92,CapitalSeguro!$AH$16,0) -> 0 | F92: 600000 | G92: 0 | I92: 1166085.679 | J92: 583.0428397 | K92: 1165502.636 | L92: 0 | M92: 1165502.636 | N92: 1165502.636 | O92: 565502.6365 | P92: 2000000 | Q92: 3165502.636 | S92: 1334295.744 | T92: 667.1478719 | U92: 1333628.596 | V92: 0 | W92: 1333628.596 | X92: 1333628.596 | Y92: 2000000 | Z92: 3333628.596
B93: 8 | C93: 91 | D93: 52 | E93: =IF((((CapitalSeguro!$AE$13-1)*12)+1)=Calculo!C93,CapitalSeguro!$AH$13,0)+IF((((CapitalSeguro!$AE$14-1)*12)+1)=Calculo!C93,CapitalSeguro!$AH$14,0)+IF((((CapitalSeguro!$AE$15-1)*12)+1)=Calculo!C93,CapitalSeguro!$AH$15,0)+IF((((CapitalSeguro!$AE$16-1)*12)+1)=Calculo!C93,CapitalSeguro!$AH$16,0) -> 0 | F93: 600000 | G93: 0 | I93: 1174796.518 | J93: 587.3982591 | K93: 1174209.12 | L93: 0 | M93: 1174209.12 | N93: 1174209.12 | O93: 574209.1199 | P93: 2000000 | Q93: 3174209.12 | S93: 1346283.122 | T93: 673.1415608 | U93: 1345609.98 | V93: 0 | W93: 1345609.98 | X93: 1345609.98 | Y93: 2000000 | Z93: 3345609.98
B94: 8 | C94: 92 | D94: 52 | E94: =IF((((CapitalSeguro!$AE$13-1)*12)+1)=Calculo!C94,CapitalSeguro!$AH$13,0)+IF((((CapitalSeguro!$AE$14-1)*12)+1)=Calculo!C94,CapitalSeguro!$AH$14,0)+IF((((CapitalSeguro!$AE$15-1)*12)+1)=Calculo!C94,CapitalSeguro!$AH$15,0)+IF((((CapitalSeguro!$AE$16-1)*12)+1)=Calculo!C94,CapitalSeguro!$AH$16,0) -> 0 | F94: 600000 | G94: 0 | I94: 1183572.428 | J94: 591.7862142 | K94: 1182980.642 | L94: 0 | M94: 1182980.642 | N94: 1182980.642 | O94: 582980.6421 | P94: 2000000 | Q94: 3182980.642 | S94: 1358378.194 | T94: 679.1890972 | U94: 1357699.005 | V94: 0 | W94: 1357699.005 | X94: 1357699.005 | Y94: 2000000 | Z94: 3357699.005
B95: 8 | C95: 93 | D95: 52 | E95: =IF((((CapitalSeguro!$AE$13-1)*12)+1)=Calculo!C95,CapitalSeguro!$AH$13,0)+IF((((CapitalSeguro!$AE$14-1)*12)+1)=Calculo!C95,CapitalSeguro!$AH$14,0)+IF((((CapitalSeguro!$AE$15-1)*12)+1)=Calculo!C95,CapitalSeguro!$AH$15,0)+IF((((CapitalSeguro!$AE$16-1)*12)+1)=Calculo!C95,CapitalSeguro!$AH$16,0) -> 0 | F95: 600000 | G95: 0 | I95: 1192413.896 | J95: 596.2069479 | K95: 1191817.689 | L95: 0 | M95: 1191817.689 | N95: 1191817.689 | O95: 591817.6889 | P95: 2000000 | Q95: 3191817.689 | S95: 1370581.93 | T95: 685.290965 | U95: 1369896.639 | V95: 0 | W95: 1369896.639 | X95: 1369896.639 | Y95: 2000000 | Z95: 3369896.639
B96: 8 | C96: 94 | D96: 52 | E96: =IF((((CapitalSeguro!$AE$13-1)*12)+1)=Calculo!C96,CapitalSeguro!$AH$13,0)+IF((((CapitalSeguro!$AE$14-1)*12)+1)=Calculo!C96,CapitalSeguro!$AH$14,0)+IF((((CapitalSeguro!$AE$15-1)*12)+1)=Calculo!C96,CapitalSeguro!$AH$15,0)+IF((((CapitalSeguro!$AE$16-1)*12)+1)=Calculo!C96,CapitalSeguro!$AH$16,0) -> 0 | F96: 600000 | G96: 0 | I96: 1201321.411 | J96: 600.6607053 | K96: 1200720.75 | L96: 0 | M96: 1200720.75 | N96: 1200720.75 | O96: 600720.7498 | P96: 2000000 | Q96: 3200720.75 | S96: 1382895.305 | T96: 691.4476523 | U96: 1382203.857 | V96: 0 | W96: 1382203.857 | X96: 1382203.857 | Y96: 2000000 | Z96: 3382203.857
B97: 8 | C97: 95 | D97: 52 | E97: =IF((((CapitalSeguro!$AE$13-1)*12)+1)=Calculo!C97,CapitalSeguro!$AH$13,0)+IF((((CapitalSeguro!$AE$14-1)*12)+1)=Calculo!C97,CapitalSeguro!$AH$14,0)+IF((((CapitalSeguro!$AE$15-1)*12)+1)=Calculo!C97,CapitalSeguro!$AH$15,0)+IF((((CapitalSeguro!$AE$16-1)*12)+1)=Calculo!C97,CapitalSeguro!$AH$16,0) -> 0 | F97: 600000 | G97: 0 | I97: 1210295.466 | J97: 605.1477329 | K97: 1209690.318 | L97: 0 | M97: 1209690.318 | N97: 1209690.318 | O97: 609690.318 | P97: 2000000 | Q97: 3209690.318 | S97: 1395319.303 | T97: 697.6596516 | U97: 1394621.644 | V97: 0 | W97: 1394621.644 | X97: 1394621.644 | Y97: 2000000 | Z97: 3394621.644
B98: 8 | C98: 96 | D98: 52 | E98: =IF((((CapitalSeguro!$AE$13-1)*12)+1)=Calculo!C98,CapitalSeguro!$AH$13,0)+IF((((CapitalSeguro!$AE$14-1)*12)+1)=Calculo!C98,CapitalSeguro!$AH$14,0)+IF((((CapitalSeguro!$AE$15-1)*12)+1)=Calculo!C98,CapitalSeguro!$AH$15,0)+IF((((CapitalSeguro!$AE$16-1)*12)+1)=Calculo!C98,CapitalSeguro!$AH$16,0) -> 0 | F98: 600000 | G98: 0 | I98: 1219336.558 | J98: 609.6682792 | K98: 1218726.89 | L98: 274 | M98: 1218452.89 | N98: 1218452.89 | O98: 618452.8902 | P98: 2000000 | Q98: 3218452.89 | S98: 1407854.92 | T98: 703.9274598 | U98: 1407150.992 | V98: 274 | W98: 1406876.992 | X98: 1406876.992 | Y98: 2000000 | Z98: 3406876.992
A99: 9 | B99: 9 | C99: 97 | D99: 53 | E99: =IF((((CapitalSeguro!$AE$13-1)*12)+1)=Calculo!C99,CapitalSeguro!$AH$13,0)+IF((((CapitalSeguro!$AE$14-1)*12)+1)=Calculo!C99,CapitalSeguro!$AH$14,0)+IF((((CapitalSeguro!$AE$15-1)*12)+1)=Calculo!C99,CapitalSeguro!$AH$15,0)+IF((((CapitalSeguro!$AE$16-1)*12)+1)=Calculo!C99,CapitalSeguro!$AH$16,0) -> 0 | F99: 600000 | G99: 0 | I99: 1228169.005 | J99: =IF(AND(invinicial>=$AE$7,invinicial<$AF$7),I99*$AH$7,IF(AND(invinicial>=$AE$8,invinicial<$AF$8),I99*$AH$8,IF(AND(invinicial>=$AE$9,invinicial<$AF$9),I99*$AH$9,IF(invinicial>=$AE$10,I99*$AH$10,"Error")))) -> 614.0845023 | K99: 1227554.92 | L99: 0 | M99: 1227554.92 | N99: =IF(C99=36,M99+bonopermconv,M99) -> 1227554.92 | O99: 627554.9201 | P99: 2000000 | Q99: 3227554.92 | S99: 1420226.557 | T99: =IF(AND(invinicial>=$AE$7,invinicial<$AF$7),S99*$AH$7,IF(AND(invinicial>=$AE$8,invinicial<$AF$8),S99*$AH$8,IF(AND(invinicial>=$AE$9,invinicial<$AF$9),S99*$AH$9,IF(invinicial>=$AE$10,S99*$AH$10,"Error")))) -> 710.1132783 | U99: =S99-T99 -> 1419516.443 | V99: 0 | W99: 1419516.443 | X99: =IF(C99=36,W99+bonopermopt,W99) -> 1419516.443 | Y99: 2000000 | Z99: 3419516.443
B100: 9 | C100: 98 | D100: 53 | E100: =IF((((CapitalSeguro!$AE$13-1)*12)+1)=Calculo!C100,CapitalSeguro!$AH$13,0)+IF((((CapitalSeguro!$AE$14-1)*12)+1)=Calculo!C100,CapitalSeguro!$AH$14,0)+IF((((CapitalSeguro!$AE$15-1)*12)+1)=Calculo!C100,CapitalSeguro!$AH$15,0)+IF((((CapitalSeguro!$AE$16-1)*12)+1)=Calculo!C100,CapitalSeguro!$AH$16,0) -> 0 | F100: 600000 | G100: 0 | I100: 1237343.615 | J100: 618.6718077 | K100: 1236724.944 | L100: 0 | M100: 1236724.944 | N100: 1236724.944 | O100: 636724.9436 | P100: 2000000 | Q100: 3236724.944 | S100: 1432985.941 | T100: 716.4929704 | U100: 1432269.448 | V100: 0 | W100: 1432269.448 | X100: 1432269.448 | Y100: 2000000 | Z100: 3432269.448
B101: 9 | C101: 99 | D101: 53 | E101: =IF((((CapitalSeguro!$AE$13-1)*12)+1)=Calculo!C101,CapitalSeguro!$AH$13,0)+IF((((CapitalSeguro!$AE$14-1)*12)+1)=Calculo!C101,CapitalSeguro!$AH$14,0)+IF((((CapitalSeguro!$AE$15-1)*12)+1)=Calculo!C101,CapitalSeguro!$AH$15,0)+IF((((CapitalSeguro!$AE$16-1)*12)+1)=Calculo!C101,CapitalSeguro!$AH$16,0) -> 0 | F101: 600000 | G101: 0 | I101: 1246586.762 | J101: 623.293381 | K101: 1245963.469 | L101: 0 | M101: 1245963.469 | N101: 1245963.469 | O101: 645963.4686 | P101: 2000000 | Q101: 3245963.469 | S101: 1445859.956 | T101: 722.929978 | U101: 1445137.026 | V101: 0 | W101: 1445137.026 | X101: 1445137.026 | Y101: 2000000 | Z101: 3445137.026
B102: 9 | C102: 100 | D102: 53 | E102: =IF((((CapitalSeguro!$AE$13-1)*12)+1)=Calculo!C102,CapitalSeguro!$AH$13,0)+IF((((CapitalSeguro!$AE$14-1)*12)+1)=Calculo!C102,CapitalSeguro!$AH$14,0)+IF((((CapitalSeguro!$AE$15-1)*12)+1)=Calculo!C102,CapitalSeguro!$AH$15,0)+IF((((CapitalSeguro!$AE$16-1)*12)+1)=Calculo!C102,CapitalSeguro!$AH$16,0) -> 0 | F102: 600000 | G102: 0 | I102: 1255898.956 | J102: 627.9494782 | K102: 1255271.007 | L102: 0 | M102: 1255271.007 | N102: 1255271.007 | O102: 655271.0068 | P102: 2000000 | Q102: 3255271.007 | S102: 1458849.632 | T102: 729.4248161 | U102: 1458120.207 | V102: 0 | W102: 1458120.207 | X102: 1458120.207 | Y102: 2000000 | Z102: 3458120.207
B103: 9 | C103: 101 | D103: 53 | E103: =IF((((CapitalSeguro!$AE$13-1)*12)+1)=Calculo!C103,CapitalSeguro!$AH$13,0)+IF((((CapitalSeguro!$AE$14-1)*12)+1)=Calculo!C103,CapitalSeguro!$AH$14,0)+IF((((CapitalSeguro!$AE$15-1)*12)+1)=Calculo!C103,CapitalSeguro!$AH$15,0)+IF((((CapitalSeguro!$AE$16-1)*12)+1)=Calculo!C103,CapitalSeguro!$AH$16,0) -> 0 | F103: 600000 | G103: 0 | I103: 1265280.714 | J103: 632.6403571 | K103: 1264648.074 | L103: 0 | M103: 1264648.074 | N103: 1264648.074 | O103: 664648.0738 | P103: =MIN(2000000,IF(D103<$AU$4,N103*$AV$4,IF(AND(D103>=$AT$5,D103<=$AU$5),N103*$AV$5,IF(D103>$AT$6,N103*$AV$6,"")))) -> 2000000 | Q103: 3264648.074 | S103: 1471956.008 | T103: 735.978004 | U103: 1471220.03 | V103: 0 | W103: 1471220.03 | X103: 1471220.03 | Y103: 2000000 | Z103: 3471220.03
B104: 9 | C104: 102 | D104: 53 | E104: =IF((((CapitalSeguro!$AE$13-1)*12)+1)=Calculo!C104,CapitalSeguro!$AH$13,0)+IF((((CapitalSeguro!$AE$14-1)*12)+1)=Calculo!C104,CapitalSeguro!$AH$14,0)+IF((((CapitalSeguro!$AE$15-1)*12)+1)=Calculo!C104,CapitalSeguro!$AH$15,0)+IF((((CapitalSeguro!$AE$16-1)*12)+1)=Calculo!C104,CapitalSeguro!$AH$16,0) -> 0 | F104: 600000 | G104: 0 | I104: 1274732.555 | J104: 637.3662775 | K104: 1274095.189 | L104: 0 | M104: 1274095.189 | N104: 1274095.189 | O104: 674095.1888 | P104: 2000000 | Q104: 3274095.189 | S104: 1485180.132 | T104: 742.5900661 | U104: 1484437.542 | V104: 0 | W104: 1484437.542 | X104: 1484437.542 | Y104: 2000000 | Z104: 3484437.542
B105: 9 | C105: 103 | D105: 53 | E105: =IF((((CapitalSeguro!$AE$13-1)*12)+1)=Calculo!C105,CapitalSeguro!$AH$13,0)+IF((((CapitalSeguro!$AE$14-1)*12)+1)=Calculo!C105,CapitalSeguro!$AH$14,0)+IF((((CapitalSeguro!$AE$15-1)*12)+1)=Calculo!C105,CapitalSeguro!$AH$15,0)+IF((((CapitalSeguro!$AE$16-1)*12)+1)=Calculo!C105,CapitalSeguro!$AH$16,0) -> 0 | F105: 600000 | G105: 0 | I105: 1284255.003 | J105: 642.1275014 | K105: 1283612.875 | L105: 0 | M105: 1283612.875 | N105: 1283612.875 | O105: 683612.8753 | P105: 2000000 | Q105: 3283612.875 | S105: 1498523.063 | T105: 749.2615313 | U105: 1497773.801 | V105: 0 | W105: 1497773.801 | X105: 1497773.801 | Y105: 2000000 | Z105: 3497773.801
B106: 9 | C106: 104 | D106: 53 | E106: =IF((((CapitalSeguro!$AE$13-1)*12)+1)=Calculo!C106,CapitalSeguro!$AH$13,0)+IF((((CapitalSeguro!$AE$14-1)*12)+1)=Calculo!C106,CapitalSeguro!$AH$14,0)+IF((((CapitalSeguro!$AE$15-1)*12)+1)=Calculo!C106,CapitalSeguro!$AH$15,0)+IF((((CapitalSeguro!$AE$16-1)*12)+1)=Calculo!C106,CapitalSeguro!$AH$16,0) -> 0 | F106: 600000 | G106: 0 | I106: 1293848.585 | J106: 646.9242923 | K106: 1293201.66 | L106: 0 | M106: 1293201.66 | N106: 1293201.66 | O106: 693201.6603 | P106: 2000000 | Q106: 3293201.66 | S106: 1511985.867 | T106: 755.9929333 | U106: 1511229.874 | V106: 0 | W106: 1511229.874 | X106: 1511229.874 | Y106: 2000000 | Z106: 3511229.874
B107: 9 | C107: 105 | D107: 53 | E107: =IF((((CapitalSeguro!$AE$13-1)*12)+1)=Calculo!C107,CapitalSeguro!$AH$13,0)+IF((((CapitalSeguro!$AE$14-1)*12)+1)=Calculo!C107,CapitalSeguro!$AH$14,0)+IF((((CapitalSeguro!$AE$15-1)*12)+1)=Calculo!C107,CapitalSeguro!$AH$15,0)+IF((((CapitalSeguro!$AE$16-1)*12)+1)=Calculo!C107,CapitalSeguro!$AH$16,0) -> 0 | F107: 600000 | G107: 0 | I107: 1303513.832 | J107: 651.756916 | K107: 1302862.075 | L107: 0 | M107: 1302862.075 | N107: 1302862.075 | O107: 702862.075 | P107: 2000000 | Q107: 3302862.075 | S107: 1525569.621 | T107: 762.7848105 | U107: 1524806.836 | V107: 0 | W107: 1524806.836 | X107: 1524806.836 | Y107: 2000000 | Z107: 3524806.836
B108: 9 | C108: 106 | D108: 53 | E108: =IF((((CapitalSeguro!$AE$13-1)*12)+1)=Calculo!C108,CapitalSeguro!$AH$13,0)+IF((((CapitalSeguro!$AE$14-1)*12)+1)=Calculo!C108,CapitalSeguro!$AH$14,0)+IF((((CapitalSeguro!$AE$15-1)*12)+1)=Calculo!C108,CapitalSeguro!$AH$15,0)+IF((((CapitalSeguro!$AE$16-1)*12)+1)=Calculo!C108,CapitalSeguro!$AH$16,0) -> 0 | F108: 600000 | G108: 0 | I108: 1313251.28 | J108: 656.6256401 | K108: 1312594.655 | L108: 0 | M108: 1312594.655 | N108: 1312594.655 | O108: 712594.6545 | P108: 2000000 | Q108: 3312594.655 | S108: 1539275.413 | T108: 769.6377063 | U108: 1538505.775 | V108: 0 | W108: 1538505.775 | X108: 1538505.775 | Y108: 2000000 | Z108: 3538505.775
B109: 9 | C109: 107 | D109: 53 | E109: =IF((((CapitalSeguro!$AE$13-1)*12)+1)=Calculo!C109,CapitalSeguro!$AH$13,0)+IF((((CapitalSeguro!$AE$14-1)*12)+1)=Calculo!C109,CapitalSeguro!$AH$14,0)+IF((((CapitalSeguro!$AE$15-1)*12)+1)=Calculo!C109,CapitalSeguro!$AH$15,0)+IF((((CapitalSeguro!$AE$16-1)*12)+1)=Calculo!C109,CapitalSeguro!$AH$16,0) -> 0 | F109: 600000 | G109: 0 | I109: 1323061.469 | J109: 661.5307343 | K109: 1322399.938 | L109: 0 | M109: 1322399.938 | N109: 1322399.938 | O109: 722399.9379 | P109: 2000000 | Q109: 3322399.938 | S109: 1553104.338 | T109: 776.5521688 | U109: 1552327.785 | V109: 0 | W109: 1552327.785 | X109: 1552327.785 | Y109: 2000000 | Z109: 3552327.785
B110: 9 | C110: 108 | D110: 53 | E110: =IF((((CapitalSeguro!$AE$13-1)*12)+1)=Calculo!C110,CapitalSeguro!$AH$13,0)+IF((((CapitalSeguro!$AE$14-1)*12)+1)=Calculo!C110,CapitalSeguro!$AH$14,0)+IF((((CapitalSeguro!$AE$15-1)*12)+1)=Calculo!C110,CapitalSeguro!$AH$15,0)+IF((((CapitalSeguro!$AE$16-1)*12)+1)=Calculo!C110,CapitalSeguro!$AH$16,0) -> 0 | F110: 600000 | G110: 0 | I110: 1332944.941 | J110: 666.4724704 | K110: 1332278.468 | L110: 274 | M110: 1332004.468 | N110: 1332004.468 | O110: 732004.4682 | P110: 2000000 | Q110: 3332004.468 | S110: 1567057.502 | T110: 783.5287511 | U110: 1566273.974 | V110: 274 | W110: 1565999.974 | X110: 1565999.974 | Y110: 2000000 | Z110: 3565999.974
A111: 10 | B111: 10 | C111: 109 | D111: 54 | E111: =IF((((CapitalSeguro!$AE$13-1)*12)+1)=Calculo!C111,CapitalSeguro!$AH$13,0)+IF((((CapitalSeguro!$AE$14-1)*12)+1)=Calculo!C111,CapitalSeguro!$AH$14,0)+IF((((CapitalSeguro!$AE$15-1)*12)+1)=Calculo!C111,CapitalSeguro!$AH$15,0)+IF((((CapitalSeguro!$AE$16-1)*12)+1)=Calculo!C111,CapitalSeguro!$AH$16,0) -> 0 | F111: 600000 | G111: 0 | I111: 1342626.059 | J111: 671.3130295 | K111: 1341954.746 | L111: 0 | M111: 1341954.746 | N111: 1341954.746 | O111: 741954.7459 | P111: 2000000 | Q111: 3341954.746 | S111: 1580859.423 | T111: 790.4297115 | U111: 1580068.993 | V111: 0 | W111: 1580068.993 | X111: 1580068.993 | Y111: 2000000 | Z111: 3580068.993
B112: 10 | C112: 110 | D112: 54 | E112: =IF((((CapitalSeguro!$AE$13-1)*12)+1)=Calculo!C112,CapitalSeguro!$AH$13,0)+IF((((CapitalSeguro!$AE$14-1)*12)+1)=Calculo!C112,CapitalSeguro!$AH$14,0)+IF((((CapitalSeguro!$AE$15-1)*12)+1)=Calculo!C112,CapitalSeguro!$AH$15,0)+IF((((CapitalSeguro!$AE$16-1)*12)+1)=Calculo!C112,CapitalSeguro!$AH$16,0) -> 0 | F112: 600000 | G112: 0 | I112: 1352655.681 | J112: 676.3278407 | K112: 1351979.354 | L112: 0 | M112: 1351979.354 | N112: 1351979.354 | O112: 751979.3536 | P112: 2000000 | Q112: 3351979.354 | S112: 1595061.941 | T112: 797.5309704 | U112: 1594264.41 | V112: 0 | W112: 1594264.41 | X112: 1594264.41 | Y112: 2000000 | Z112: 3594264.41
B113: 10 | C113: 111 | D113: 54 | E113: =IF((((CapitalSeguro!$AE$13-1)*12)+1)=Calculo!C113,CapitalSeguro!$AH$13,0)+IF((((CapitalSeguro!$AE$14-1)*12)+1)=Calculo!C113,CapitalSeguro!$AH$14,0)+IF((((CapitalSeguro!$AE$15-1)*12)+1)=Calculo!C113,CapitalSeguro!$AH$15,0)+IF((((CapitalSeguro!$AE$16-1)*12)+1)=Calculo!C113,CapitalSeguro!$AH$16,0) -> 0 | F113: 600000 | G113: 0 | I113: 1362760.227 | J113: 681.3801134 | K113: 1362078.847 | L113: 0 | M113: 1362078.847 | N113: 1362078.847 | O113: 762078.8467 | P113: 2000000 | Q113: 3362078.847 | S113: 1609392.055 | T113: 804.6960273 | U113: 1608587.359 | V113: 0 | W113: 1608587.359 | X113: 1608587.359 | Y113: 2000000 | Z113: 3608587.359
B114: 10 | C114: 112 | D114: 54 | E114: =IF((((CapitalSeguro!$AE$13-1)*12)+1)=Calculo!C114,CapitalSeguro!$AH$13,0)+IF((((CapitalSeguro!$AE$14-1)*12)+1)=Calculo!C114,CapitalSeguro!$AH$14,0)+IF((((CapitalSeguro!$AE$15-1)*12)+1)=Calculo!C114,CapitalSeguro!$AH$15,0)+IF((((CapitalSeguro!$AE$16-1)*12)+1)=Calculo!C114,CapitalSeguro!$AH$16,0) -> 0 | F114: 600000 | G114: 0 | I114: 1372940.255 | J114: 686.4701274 | K114: 1372253.785 | L114: 0 | M114: 1372253.785 | N114: 1372253.785 | O114: 772253.7846 | P114: 2000000 | Q114: 3372253.785 | S114: 1623850.911 | T114: 811.9254555 | U114: 1623038.986 | V114: 0 | W114: 1623038.986 | X114: 1623038.986 | Y114: 2000000 | Z114: 3623038.986
B115: 10 | C115: 113 | D115: 54 | E115: =IF((((CapitalSeguro!$AE$13-1)*12)+1)=Calculo!C115,CapitalSeguro!$AH$13,0)+IF((((CapitalSeguro!$AE$14-1)*12)+1)=Calculo!C115,CapitalSeguro!$AH$14,0)+IF((((CapitalSeguro!$AE$15-1)*12)+1)=Calculo!C115,CapitalSeguro!$AH$15,0)+IF((((CapitalSeguro!$AE$16-1)*12)+1)=Calculo!C115,CapitalSeguro!$AH$16,0) -> 0 | F115: 600000 | G115: 0 | I115: 1383196.329 | J115: 691.5981645 | K115: 1382504.731 | L115: 0 | M115: 1382504.731 | N115: 1382504.731 | O115: 782504.7308 | P115: 2000000 | Q115: 3382504.731 | S115: 1638439.666 | T115: 819.2198332 | U115: 1637620.447 | V115: 0 | W115: 1637620.447 | X115: 1637620.447 | Y115: 2000000 | Z115: 3637620.447
B116: 10 | C116: 114 | D116: 54 | E116: =IF((((CapitalSeguro!$AE$13-1)*12)+1)=Calculo!C116,CapitalSeguro!$AH$13,0)+IF((((CapitalSeguro!$AE$14-1)*12)+1)=Calculo!C116,CapitalSeguro!$AH$14,0)+IF((((CapitalSeguro!$AE$15-1)*12)+1)=Calculo!C116,CapitalSeguro!$AH$15,0)+IF((((CapitalSeguro!$AE$16-1)*12)+1)=Calculo!C116,CapitalSeguro!$AH$16,0) -> 0 | F116: 600000 | G116: 0 | I116: 1393529.018 | J116: 696.7645089 | K116: 1392832.253 | L116: 0 | M116: 1392832.253 | N116: 1392832.253 | O116: 792832.2532 | P116: 2000000 | Q116: 3392832.253 | S116: 1653159.488 | T116: 826.579744 | U116: 1652332.908 | V116: 0 | W116: 1652332.908 | X116: 1652332.908 | Y116: 2000000 | Z116: 3652332.908
B117: 10 | C117: 115 | D117: 54 | E117: =IF((((CapitalSeguro!$AE$13-1)*12)+1)=Calculo!C117,CapitalSeguro!$AH$13,0)+IF((((CapitalSeguro!$AE$14-1)*12)+1)=Calculo!C117,CapitalSeguro!$AH$14,0)+IF((((CapitalSeguro!$AE$15-1)*12)+1)=Calculo!C117,CapitalSeguro!$AH$15,0)+IF((((CapitalSeguro!$AE$16-1)*12)+1)=Calculo!C117,CapitalSeguro!$AH$16,0) -> 0 | F117: 600000 | G117: 0 | I117: 1403938.893 | J117: 701.9694466 | K117: 1403236.924 | L117: 0 | M117: 1403236.924 | N117: 1403236.924 | O117: 803236.9237 | P117: 2000000 | Q117: 3403236.924 | S117: 1668011.553 | T117: 834.0057765 | U117: 1667177.547 | V117: 0 | W117: 1667177.547 | X117: 1667177.547 | Y117: 2000000 | Z117: 3667177.547
B118: 10 | C118: 116 | D118: 54 | E118: =IF((((CapitalSeguro!$AE$13-1)*12)+1)=Calculo!C118,CapitalSeguro!$AH$13,0)+IF((((CapitalSeguro!$AE$14-1)*12)+1)=Calculo!C118,CapitalSeguro!$AH$14,0)+IF((((CapitalSeguro!$AE$15-1)*12)+1)=Calculo!C118,CapitalSeguro!$AH$15,0)+IF((((CapitalSeguro!$AE$16-1)*12)+1)=Calculo!C118,CapitalSeguro!$AH$16,0) -> 0 | F118: 600000 | G118: 0 | I118: 1414426.532 | J118: 707.213266 | K118: 1413719.319 | L118: 0 | M118: 1413719.319 | N118: 1413719.319 | O118: 813719.3187 | P118: 2000000 | Q118: 3413719.319 | S118: 1682997.05 | T118: 841.4985249 | U118: 1682155.551 | V118: 0 | W118: 1682155.551 | X118: 1682155.551 | Y118: 2000000 | Z118: 3682155.551
B119: 10 | C119: 117 | D119: 54 | E119: =IF((((CapitalSeguro!$AE$13-1)*12)+1)=Calculo!C119,CapitalSeguro!$AH$13,0)+IF((((CapitalSeguro!$AE$14-1)*12)+1)=Calculo!C119,CapitalSeguro!$AH$14,0)+IF((((CapitalSeguro!$AE$15-1)*12)+1)=Calculo!C119,CapitalSeguro!$AH$15,0)+IF((((CapitalSeguro!$AE$16-1)*12)+1)=Calculo!C119,CapitalSeguro!$AH$16,0) -> 0 | F119: 600000 | G119: 0 | I119: 1424992.515 | J119: 712.4962576 | K119: 1424280.019 | L119: 0 | M119: 1424280.019 | N119: 1424280.019 | O119: 824280.0189 | P119: 2000000 | Q119: 3424280.019 | S119: 1698117.177 | T119: 849.0585885 | U119: 1697268.118 | V119: 0 | W119: 1697268.118 | X119: 1697268.118 | Y119: 2000000 | Z119: 3697268.118
B120: 10 | C120: 118 | D120: 54 | E120: =IF((((CapitalSeguro!$AE$13-1)*12)+1)=Calculo!C120,CapitalSeguro!$AH$13,0)+IF((((CapitalSeguro!$AE$14-1)*12)+1)=Calculo!C120,CapitalSeguro!$AH$14,0)+IF((((CapitalSeguro!$AE$15-1)*12)+1)=Calculo!C120,CapitalSeguro!$AH$15,0)+IF((((CapitalSeguro!$AE$16-1)*12)+1)=Calculo!C120,CapitalSeguro!$AH$16,0) -> 0 | F120: 600000 | G120: 0 | I120: 1435637.428 | J120: 717.8187139 | K120: 1434919.609 | L120: 0 | M120: 1434919.609 | N120: 1434919.609 | O120: 834919.609 | P120: 2000000 | Q120: 3434919.609 | S120: 1713373.144 | T120: 856.686572 | U120: 1712516.458 | V120: 0 | W120: 1712516.458 | X120: 1712516.458 | Y120: 2000000 | Z120: 3712516.458
B121: 10 | C121: 119 | D121: 54 | E121: =IF((((CapitalSeguro!$AE$13-1)*12)+1)=Calculo!C121,CapitalSeguro!$AH$13,0)+IF((((CapitalSeguro!$AE$14-1)*12)+1)=Calculo!C121,CapitalSeguro!$AH$14,0)+IF((((CapitalSeguro!$AE$15-1)*12)+1)=Calculo!C121,CapitalSeguro!$AH$15,0)+IF((((CapitalSeguro!$AE$16-1)*12)+1)=Calculo!C121,CapitalSeguro!$AH$16,0) -> 0 | F121: 600000 | G121: 0 | I121: 1446361.859 | J121: 723.1809297 | K121: 1445638.679 | L121: 0 | M121: 1445638.679 | N121: 1445638.679 | O121: 845638.6786 | P121: 2000000 | Q121: 3445638.679 | S121: 1728766.172 | T121: 864.3830858 | U121: 1727901.788 | V121: 0 | W121: 1727901.788 | X121: 1727901.788 | Y121: 2000000 | Z121: 3727901.788
B122: 10 | C122: =C121+1 -> 120 | D122: 54 | E122: =IF((((CapitalSeguro!$AE$13-1)*12)+1)=Calculo!C122,CapitalSeguro!$AH$13,0)+IF((((CapitalSeguro!$AE$14-1)*12)+1)=Calculo!C122,CapitalSeguro!$AH$14,0)+IF((((CapitalSeguro!$AE$15-1)*12)+1)=Calculo!C122,CapitalSeguro!$AH$15,0)+IF((((CapitalSeguro!$AE$16-1)*12)+1)=Calculo!C122,CapitalSeguro!$AH$16,0) -> 0 | F122: 600000 | G122: 0 | I122: 1457166.404 | J122: 728.5832022 | K122: 1456437.821 | L122: 274 | M122: 1456163.821 | N122: 1456163.821 | O122: 856163.8212 | P122: 2000000 | Q122: 3456163.821 | S122: 1744297.491 | T122: 872.1487454 | U122: 1743425.342 | V122: 274 | W122: 1743151.342 | X122: 1743151.342 | Y122: 2000000 | Z122: 3743151.342
A123: 11 | B123: 11 | C123: 121 | D123: =$D$2+(B123-1) -> 55 | E123: =IF((((CapitalSeguro!$AE$13-1)*12)+1)=Calculo!C123,CapitalSeguro!$AH$13,0)+IF((((CapitalSeguro!$AE$14-1)*12)+1)=Calculo!C123,CapitalSeguro!$AH$14,0)+IF((((CapitalSeguro!$AE$15-1)*12)+1)=Calculo!C123,CapitalSeguro!$AH$15,0)+IF((((CapitalSeguro!$AE$16-1)*12)+1)=Calculo!C123,CapitalSeguro!$AH$16,0) -> 0 | F123: =E123+F122 -> 600000 | G123: 0 | I123: =(N122+E123-G123)*(1+$AL$3) -> 1467775.476 | J123: =IF(AND(invinicial>=$AE$7,invinicial<$AF$7),I123*$AH$7,IF(AND(invinicial>=$AE$8,invinicial<$AF$8),I123*$AH$8,IF(AND(invinicial>=$AE$9,invinicial<$AF$9),I123*$AH$9,IF(invinicial>=$AE$10,I123*$AH$10,"Error")))) -> 733.887738 | K123: =I123-J123 -> 1467041.588 | L123: =IF(B123*12=C123,$AH$4,0) -> 0 | M123: =K123-L123 -> 1467041.588 | N123: =IF(C123=36,M123+bonopermconv,M123) -> 1467041.588 | O123: =N123-F123 -> 867041.5883 | P123: 1467041.588 | Q123: 2934083.177 | S123: =(X122+E123-G123)*(1+$AL$4) -> 1759691.744 | T123: =IF(AND(invinicial>=$AE$7,invinicial<$AF$7),S123*$AH$7,IF(AND(invinicial>=$AE$8,invinicial<$AF$8),S123*$AH$8,IF(AND(invinicial>=$AE$9,invinicial<$AF$9),S123*$AH$9,IF(invinicial>=$AE$10,S123*$AH$10,"Error")))) -> 879.8458721 | U123: =S123-T123 -> 1758811.898 | V123: =IF(C123=B123*12,$AH$4,0) -> 0 | W123: =U123-V123 -> 1758811.898 | X123: =IF(C123=36,W123+bonopermopt,W123) -> 1758811.898 | Y123: 1758811.898 | Z123: 3517623.797
B124: 11 | C124: 122 | D124: 55 | E124: =IF((((CapitalSeguro!$AE$13-1)*12)+1)=Calculo!C124,CapitalSeguro!$AH$13,0)+IF((((CapitalSeguro!$AE$14-1)*12)+1)=Calculo!C124,CapitalSeguro!$AH$14,0)+IF((((CapitalSeguro!$AE$15-1)*12)+1)=Calculo!C124,CapitalSeguro!$AH$15,0)+IF((((CapitalSeguro!$AE$16-1)*12)+1)=Calculo!C124,CapitalSeguro!$AH$16,0) -> 0 | F124: 600000 | G124: 0 | I124: 1478739.984 | J124: 739.3699919 | K124: 1478000.614 | L124: 0 | M124: 1478000.614 | N124: 1478000.614 | O124: 878000.6139 | P124: 1478000.614 | Q124: 2956001.228 | S124: 1775500.9 | T124: 887.7504501 | U124: 1774613.15 | V124: 0 | W124: 1774613.15 | X124: 1774613.15 | Y124: 1774613.15 | Z124: 3549226.3
B125: 11 | C125: 123 | D125: 55 | E125: =IF((((CapitalSeguro!$AE$13-1)*12)+1)=Calculo!C125,CapitalSeguro!$AH$13,0)+IF((((CapitalSeguro!$AE$14-1)*12)+1)=Calculo!C125,CapitalSeguro!$AH$14,0)+IF((((CapitalSeguro!$AE$15-1)*12)+1)=Calculo!C125,CapitalSeguro!$AH$15,0)+IF((((CapitalSeguro!$AE$16-1)*12)+1)=Calculo!C125,CapitalSeguro!$AH$16,0) -> 0 | F125: 600000 | G125: 0 | I125: 1489786.398 | J125: 744.8931992 | K125: 1489041.505 | L125: 0 | M125: 1489041.505 | N125: 1489041.505 | O125: 889041.5052 | P125: 1489041.505 | Q125: 2978083.01 | S125: 1791452.086 | T125: 895.7260432 | U125: 1790556.36 | V125: 0 | W125: 1790556.36 | X125: 1790556.36 | Y125: 1790556.36 | Z125: 3581112.721
B126: 11 | C126: 124 | D126: 55 | E126: =IF((((CapitalSeguro!$AE$13-1)*12)+1)=Calculo!C126,CapitalSeguro!$AH$13,0)+IF((((CapitalSeguro!$AE$14-1)*12)+1)=Calculo!C126,CapitalSeguro!$AH$14,0)+IF((((CapitalSeguro!$AE$15-1)*12)+1)=Calculo!C126,CapitalSeguro!$AH$15,0)+IF((((CapitalSeguro!$AE$16-1)*12)+1)=Calculo!C126,CapitalSeguro!$AH$16,0) -> 0 | F126: 600000 | G126: 0 | I126: 1500915.331 | J126: 750.4576656 | K126: 1500164.874 | L126: 0 | M126: 1500164.874 | N126: 1500164.874 | O126: 900164.8736 | P126: 1500164.874 | Q126: 3000329.747 | S126: 1807546.579 | T126: 903.7732895 | U126: 1806642.806 | V126: 0 | W126: 1806642.806 | X126: 1806642.806 | Y126: 1806642.806 | Z126: 3613285.611
B127: 11 | C127: 125 | D127: 55 | E127: =IF((((CapitalSeguro!$AE$13-1)*12)+1)=Calculo!C127,CapitalSeguro!$AH$13,0)+IF((((CapitalSeguro!$AE$14-1)*12)+1)=Calculo!C127,CapitalSeguro!$AH$14,0)+IF((((CapitalSeguro!$AE$15-1)*12)+1)=Calculo!C127,CapitalSeguro!$AH$15,0)+IF((((CapitalSeguro!$AE$16-1)*12)+1)=Calculo!C127,CapitalSeguro!$AH$16,0) -> 0 | F127: 600000 | G127: 0 | I127: 1512127.399 | J127: 756.0636995 | K127: 1511371.335 | L127: 0 | M127: 1511371.335 | N127: 1511371.335 | O127: 911371.3352 | P127: 1511371.335 | Q127: 3022742.67 | S127: 1823785.665 | T127: 911.8928326 | U127: 1822873.772 | V127: 0 | W127: 1822873.772 | X127: 1822873.772 | Y127: 1822873.772 | Z127: 3645747.545
B128: 11 | C128: 126 | D128: 55 | E128: =IF((((CapitalSeguro!$AE$13-1)*12)+1)=Calculo!C128,CapitalSeguro!$AH$13,0)+IF((((CapitalSeguro!$AE$14-1)*12)+1)=Calculo!C128,CapitalSeguro!$AH$14,0)+IF((((CapitalSeguro!$AE$15-1)*12)+1)=Calculo!C128,CapitalSeguro!$AH$15,0)+IF((((CapitalSeguro!$AE$16-1)*12)+1)=Calculo!C128,CapitalSeguro!$AH$16,0) -> 0 | F128: 600000 | G128: 0 | I128: 1523423.222 | J128: 761.7116112 | K128: 1522661.511 | L128: 0 | M128: 1522661.511 | N128: 1522661.511 | O128: 922661.5109 | P128: 1522661.511 | Q128: 3045323.022 | S128: 1840170.644 | T128: 920.0853221 | U128: 1839250.559 | V128: 0 | W128: 1839250.559 | X128: 1839250.559 | Y128: 1839250.559 | Z128: 3678501.118
B129: 11 | C129: 127 | D129: 55 | E129: =IF((((CapitalSeguro!$AE$13-1)*12)+1)=Calculo!C129,CapitalSeguro!$AH$13,0)+IF((((CapitalSeguro!$AE$14-1)*12)+1)=Calculo!C129,CapitalSeguro!$AH$14,0)+IF((((CapitalSeguro!$AE$15-1)*12)+1)=Calculo!C129,CapitalSeguro!$AH$15,0)+IF((((CapitalSeguro!$AE$16-1)*12)+1)=Calculo!C129,CapitalSeguro!$AH$16,0) -> 0 | F129: 600000 | G129: 0 | I129: 1534803.428 | J129: 767.4017138 | K129: 1534036.026 | L129: 0 | M129: 1534036.026 | N129: 1534036.026 | O129: 934036.0259 | P129: 1534036.026 | Q129: 3068072.052 | S129: 1856702.826 | T129: 928.3514132 | U129: 1855774.475 | V129: 0 | W129: 1855774.475 | X129: 1855774.475 | Y129: 1855774.475 | Z129: 3711548.95
B130: 11 | C130: 128 | D130: 55 | E130: =IF((((CapitalSeguro!$AE$13-1)*12)+1)=Calculo!C130,CapitalSeguro!$AH$13,0)+IF((((CapitalSeguro!$AE$14-1)*12)+1)=Calculo!C130,CapitalSeguro!$AH$14,0)+IF((((CapitalSeguro!$AE$15-1)*12)+1)=Calculo!C130,CapitalSeguro!$AH$15,0)+IF((((CapitalSeguro!$AE$16-1)*12)+1)=Calculo!C130,CapitalSeguro!$AH$16,0) -> 0 | F130: 600000 | G130: 0 | I130: 1546268.645 | J130: 773.1343223 | K130: 1545495.51 | L130: 0 | M130: 1545495.51 | N130: 1545495.51 | O130: 945495.5103 | P130: 1545495.51 | Q130: 3090991.021 | S130: 1873383.535 | T130: 936.6917674 | U130: 1872446.843 | V130: 0 | W130: 1872446.843 | X130: 1872446.843 | Y130: 1872446.843 | Z130: 3744893.686
B131: 11 | C131: 129 | D131: 55 | E131: =IF((((CapitalSeguro!$AE$13-1)*12)+1)=Calculo!C131,CapitalSeguro!$AH$13,0)+IF((((CapitalSeguro!$AE$14-1)*12)+1)=Calculo!C131,CapitalSeguro!$AH$14,0)+IF((((CapitalSeguro!$AE$15-1)*12)+1)=Calculo!C131,CapitalSeguro!$AH$15,0)+IF((((CapitalSeguro!$AE$16-1)*12)+1)=Calculo!C131,CapitalSeguro!$AH$16,0) -> 0 | F131: 600000 | G131: 0 | I131: 1557819.508 | J131: 778.9097542 | K131: 1557040.599 | L131: 0 | M131: 1557040.599 | N131: 1557040.599 | O131: 957040.5987 | P131: 1557040.599 | Q131: 3114081.197 | S131: 1890214.103 | T131: 945.1070517 | U131: 1889268.996 | V131: 0 | W131: 1889268.996 | X131: 1889268.996 | Y131: 1889268.996 | Z131: 3778537.993
B132: 11 | C132: 130 | D132: 55 | E132: =IF((((CapitalSeguro!$AE$13-1)*12)+1)=Calculo!C132,CapitalSeguro!$AH$13,0)+IF((((CapitalSeguro!$AE$14-1)*12)+1)=Calculo!C132,CapitalSeguro!$AH$14,0)+IF((((CapitalSeguro!$AE$15-1)*12)+1)=Calculo!C132,CapitalSeguro!$AH$15,0)+IF((((CapitalSeguro!$AE$16-1)*12)+1)=Calculo!C132,CapitalSeguro!$AH$16,0) -> 0 | F132: 600000 | G132: 0 | I132: 1569456.659 | J132: 784.7283296 | K132: 1568671.931 | L132: 0 | M132: 1568671.931 | N132: 1568671.931 | O132: 968671.9308 | P132: 1568671.931 | Q132: =P132+N132 -> 3137343.862 | S132: 1907195.879 | T132: 953.5979393 | U132: 1906242.281 | V132: 0 | W132: 1906242.281 | X132: 1906242.281 | Y132: =MIN(2000000,IF(D132<$AU$4,X132*$AV$4,IF(AND(D132>=$AT$5,D132<=$AU$5),X132*$AV$5,IF(D132>$AT$6,X132*$AV$6,"")))) -> 1906242.281 | Z132: =Y132+X132 -> 3812484.561
B133: 11 | C133: =C132+1 -> 131 | D133: 55 | E133: =IF((((CapitalSeguro!$AE$13-1)*12)+1)=Calculo!C133,CapitalSeguro!$AH$13,0)+IF((((CapitalSeguro!$AE$14-1)*12)+1)=Calculo!C133,CapitalSeguro!$AH$14,0)+IF((((CapitalSeguro!$AE$15-1)*12)+1)=Calculo!C133,CapitalSeguro!$AH$15,0)+IF((((CapitalSeguro!$AE$16-1)*12)+1)=Calculo!C133,CapitalSeguro!$AH$16,0) -> 0 | F133: 600000 | G133: 0 | I133: 1581180.741 | J133: 790.5903705 | K133: 1580390.151 | L133: 0 | M133: 1580390.151 | N133: 1580390.151 | O133: 980390.1507 | P133: 1580390.151 | Q133: 3160780.301 | S133: 1924330.219 | T133: 962.1651095 | U133: 1923368.054 | V133: 0 | W133: 1923368.054 | X133: 1923368.054 | Y133: 1923368.054 | Z133: 3846736.108
B134: 11 | C134: 132 | D134: 55 | E134: =IF((((CapitalSeguro!$AE$13-1)*12)+1)=Calculo!C134,CapitalSeguro!$AH$13,0)+IF((((CapitalSeguro!$AE$14-1)*12)+1)=Calculo!C134,CapitalSeguro!$AH$14,0)+IF((((CapitalSeguro!$AE$15-1)*12)+1)=Calculo!C134,CapitalSeguro!$AH$15,0)+IF((((CapitalSeguro!$AE$16-1)*12)+1)=Calculo!C134,CapitalSeguro!$AH$16,0) -> 0 | F134: 600000 | G134: 0 | I134: 1592992.404 | J134: 796.4962018 | K134: 1592195.907 | L134: 274 | M134: 1591921.907 | N134: 1591921.907 | O134: 991921.9075 | P134: 1591921.907 | Q134: 3183843.815 | S134: 1941618.495 | T134: 970.8092476 | U134: 1940647.686 | V134: 274 | W134: 1940373.686 | X134: 1940373.686 | Y134: 1940373.686 | Z134: 3880747.372
A135: 12 | B135: 12 | C135: 133 | D135: 56 | E135: =IF((((CapitalSeguro!$AE$13-1)*12)+1)=Calculo!C135,CapitalSeguro!$AH$13,0)+IF((((CapitalSeguro!$AE$14-1)*12)+1)=Calculo!C135,CapitalSeguro!$AH$14,0)+IF((((CapitalSeguro!$AE$15-1)*12)+1)=Calculo!C135,CapitalSeguro!$AH$15,0)+IF((((CapitalSeguro!$AE$16-1)*12)+1)=Calculo!C135,CapitalSeguro!$AH$16,0) -> 0 | F135: 600000 | G135: 0 | I135: 1604616.116 | J135: 802.3080582 | K135: 1603813.808 | L135: 0 | M135: 1603813.808 | N135: 1603813.808 | O135: 1003813.808 | P135: 1603813.808 | Q135: 3207627.617 | S135: 1958785.49 | T135: 979.392745 | U135: 1957806.097 | V135: 0 | W135: 1957806.097 | X135: 1957806.097 | Y135: 1957806.097 | Z135: 3915612.194
B136: 12 | C136: 134 | D136: 56 | E136: =IF((((CapitalSeguro!$AE$13-1)*12)+1)=Calculo!C136,CapitalSeguro!$AH$13,0)+IF((((CapitalSeguro!$AE$14-1)*12)+1)=Calculo!C136,CapitalSeguro!$AH$14,0)+IF((((CapitalSeguro!$AE$15-1)*12)+1)=Calculo!C136,CapitalSeguro!$AH$15,0)+IF((((CapitalSeguro!$AE$16-1)*12)+1)=Calculo!C136,CapitalSeguro!$AH$16,0) -> 0 | F136: 600000 | G136: 0 | I136: 1616602.845 | J136: 808.3014224 | K136: 1615794.543 | L136: 0 | M136: 1615794.543 | N136: 1615794.543 | O136: 1015794.543 | P136: 1615794.543 | Q136: 3231589.087 | S136: 1976383.314 | T136: 988.191657 | U136: 1975395.122 | V136: 0 | W136: 1975395.122 | X136: 1975395.122 | Y136: 1975395.122 | Z136: 3950790.244
B137: 12 | C137: 135 | D137: 56 | E137: =IF((((CapitalSeguro!$AE$13-1)*12)+1)=Calculo!C137,CapitalSeguro!$AH$13,0)+IF((((CapitalSeguro!$AE$14-1)*12)+1)=Calculo!C137,CapitalSeguro!$AH$14,0)+IF((((CapitalSeguro!$AE$15-1)*12)+1)=Calculo!C137,CapitalSeguro!$AH$15,0)+IF((((CapitalSeguro!$AE$16-1)*12)+1)=Calculo!C137,CapitalSeguro!$AH$16,0) -> 0 | F137: 600000 | G137: 0 | I137: 1628679.116 | J137: 814.339558 | K137: 1627864.776 | L137: 0 | M137: 1627864.776 | N137: 1627864.776 | O137: 1027864.776 | P137: 1627864.776 | Q137: 3255729.553 | S137: 1994139.238 | T137: 997.0696188 | U137: 1993142.168 | V137: 0 | W137: 1993142.168 | X137: 1993142.168 | Y137: 1993142.168 | Z137: 3986284.336
B138: 12 | C138: 136 | D138: 56 | E138: =IF((((CapitalSeguro!$AE$13-1)*12)+1)=Calculo!C138,CapitalSeguro!$AH$13,0)+IF((((CapitalSeguro!$AE$14-1)*12)+1)=Calculo!C138,CapitalSeguro!$AH$14,0)+IF((((CapitalSeguro!$AE$15-1)*12)+1)=Calculo!C138,CapitalSeguro!$AH$15,0)+IF((((CapitalSeguro!$AE$16-1)*12)+1)=Calculo!C138,CapitalSeguro!$AH$16,0) -> 0 | F138: 600000 | G138: 0 | I138: 1640845.599 | J138: 820.4227994 | K138: 1640025.176 | L138: 0 | M138: 1640025.176 | N138: 1640025.176 | O138: 1040025.176 | P138: 1640025.176 | Q138: 3280050.352 | S138: 2012054.681 | T138: 1006.027341 | U138: 2011048.654 | V138: 0 | W138: 2011048.654 | X138: 2011048.654 | Y138: 2000000 | Z138: 4011048.654
B139: 12 | C139: 137 | D139: 56 | E139: =IF((((CapitalSeguro!$AE$13-1)*12)+1)=Calculo!C139,CapitalSeguro!$AH$13,0)+IF((((CapitalSeguro!$AE$14-1)*12)+1)=Calculo!C139,CapitalSeguro!$AH$14,0)+IF((((CapitalSeguro!$AE$15-1)*12)+1)=Calculo!C139,CapitalSeguro!$AH$15,0)+IF((((CapitalSeguro!$AE$16-1)*12)+1)=Calculo!C139,CapitalSeguro!$AH$16,0) -> 0 | F139: 600000 | G139: 0 | I139: 1653102.967 | J139: 826.5514835 | K139: 1652276.415 | L139: 0 | M139: 1652276.415 | N139: 1652276.415 | O139: 1052276.415 | P139: 1652276.415 | Q139: 3304552.831 | S139: 2030131.078 | T139: 1015.065539 | U139: 2029116.013 | V139: 0 | W139: 2029116.013 | X139: 2029116.013 | Y139: 2000000 | Z139: 4029116.013
B140: 12 | C140: 138 | D140: 56 | E140: =IF((((CapitalSeguro!$AE$13-1)*12)+1)=Calculo!C140,CapitalSeguro!$AH$13,0)+IF((((CapitalSeguro!$AE$14-1)*12)+1)=Calculo!C140,CapitalSeguro!$AH$14,0)+IF((((CapitalSeguro!$AE$15-1)*12)+1)=Calculo!C140,CapitalSeguro!$AH$15,0)+IF((((CapitalSeguro!$AE$16-1)*12)+1)=Calculo!C140,CapitalSeguro!$AH$16,0) -> 0 | F140: 600000 | G140: 0 | I140: 1665451.9 | J140: 832.7259498 | K140: 1664619.174 | L140: 0 | M140: 1664619.174 | N140: 1664619.174 | O140: 1064619.174 | P140: 1664619.174 | Q140: 3329238.347 | S140: 2048369.874 | T140: 1024.184937 | U140: 2047345.689 | V140: 0 | W140: 2047345.689 | X140: 2047345.689 | Y140: 2000000 | Z140: 4047345.689
B141: 12 | C141: 139 | D141: 56 | E141: =IF((((CapitalSeguro!$AE$13-1)*12)+1)=Calculo!C141,CapitalSeguro!$AH$13,0)+IF((((CapitalSeguro!$AE$14-1)*12)+1)=Calculo!C141,CapitalSeguro!$AH$14,0)+IF((((CapitalSeguro!$AE$15-1)*12)+1)=Calculo!C141,CapitalSeguro!$AH$15,0)+IF((((CapitalSeguro!$AE$16-1)*12)+1)=Calculo!C141,CapitalSeguro!$AH$16,0) -> 0 | F141: 600000 | G141: 0 | I141: 1677893.081 | J141: 838.9465404 | K141: 1677054.134 | L141: 0 | M141: 1677054.134 | N141: 1677054.134 | O141: 1077054.134 | P141: 1677054.134 | Q141: 3354108.268 | S141: 2066772.529 | T141: 1033.386264 | U141: 2065739.142 | V141: 0 | W141: 2065739.142 | X141: 2065739.142 | Y141: 2000000 | Z141: 4065739.142
B142: 12 | C142: 140 | D142: 56 | E142: =IF((((CapitalSeguro!$AE$13-1)*12)+1)=Calculo!C142,CapitalSeguro!$AH$13,0)+IF((((CapitalSeguro!$AE$14-1)*12)+1)=Calculo!C142,CapitalSeguro!$AH$14,0)+IF((((CapitalSeguro!$AE$15-1)*12)+1)=Calculo!C142,CapitalSeguro!$AH$15,0)+IF((((CapitalSeguro!$AE$16-1)*12)+1)=Calculo!C142,CapitalSeguro!$AH$16,0) -> 0 | F142: 600000 | G142: 0 | I142: 1690427.199 | J142: 845.2135997 | K142: 1689581.986 | L142: 0 | M142: 1689581.986 | N142: 1689581.986 | O142: 1089581.986 | P142: 1689581.986 | Q142: 3379163.972 | S142: 2085340.513 | T142: 1042.670257 | U142: 2084297.843 | V142: 0 | W142: 2084297.843 | X142: 2084297.843 | Y142: 2000000 | Z142: 4084297.843
B143: 12 | C143: 141 | D143: 56 | E143: =IF((((CapitalSeguro!$AE$13-1)*12)+1)=Calculo!C143,CapitalSeguro!$AH$13,0)+IF((((CapitalSeguro!$AE$14-1)*12)+1)=Calculo!C143,CapitalSeguro!$AH$14,0)+IF((((CapitalSeguro!$AE$15-1)*12)+1)=Calculo!C143,CapitalSeguro!$AH$15,0)+IF((((CapitalSeguro!$AE$16-1)*12)+1)=Calculo!C143,CapitalSeguro!$AH$16,0) -> 0 | F143: 600000 | G143: 0 | I143: 1703054.95 | J143: 851.5274749 | K143: 1702203.422 | L143: 0 | M143: 1702203.422 | N143: 1702203.422 | O143: 1102203.422 | P143: 1702203.422 | Q143: 3404406.845 | S143: 2104075.314 | T143: 1052.037657 | U143: 2103023.276 | V143: 0 | W143: 2103023.276 | X143: 2103023.276 | Y143: 2000000 | Z143: 4103023.276
B144: 12 | C144: 142 | D144: 56 | E144: =IF((((CapitalSeguro!$AE$13-1)*12)+1)=Calculo!C144,CapitalSeguro!$AH$13,0)+IF((((CapitalSeguro!$AE$14-1)*12)+1)=Calculo!C144,CapitalSeguro!$AH$14,0)+IF((((CapitalSeguro!$AE$15-1)*12)+1)=Calculo!C144,CapitalSeguro!$AH$15,0)+IF((((CapitalSeguro!$AE$16-1)*12)+1)=Calculo!C144,CapitalSeguro!$AH$16,0) -> 0 | F144: 600000 | G144: 0 | I144: 1715777.031 | J144: 857.8885157 | K144: 1714919.143 | L144: 0 | M144: 1714919.143 | N144: 1714919.143 | O144: 1114919.143 | P144: 1714919.143 | Q144: 3429838.286 | S144: 2122978.429 | T144: 1061.489214 | U144: 2121916.939 | V144: 0 | W144: 2121916.939 | X144: 2121916.939 | Y144: 2000000 | Z144: 4121916.939
B145: 12 | C145: 143 | D145: 56 | E145: =IF((((CapitalSeguro!$AE$13-1)*12)+1)=Calculo!C145,CapitalSeguro!$AH$13,0)+IF((((CapitalSeguro!$AE$14-1)*12)+1)=Calculo!C145,CapitalSeguro!$AH$14,0)+IF((((CapitalSeguro!$AE$15-1)*12)+1)=Calculo!C145,CapitalSeguro!$AH$15,0)+IF((((CapitalSeguro!$AE$16-1)*12)+1)=Calculo!C145,CapitalSeguro!$AH$16,0) -> 0 | F145: 600000 | G145: 0 | I145: 1728594.149 | J145: 864.2970745 | K145: 1727729.852 | L145: 0 | M145: 1727729.852 | N145: 1727729.852 | O145: 1127729.852 | P145: 1727729.852 | Q145: 3455459.704 | S145: 2142051.37 | T145: 1071.025685 | U145: 2140980.344 | V145: 0 | W145: 2140980.344 | X145: 2140980.344 | Y145: 2000000 | Z145: 4140980.344
B146: 12 | C146: 144 | D146: 56 | E146: =IF((((CapitalSeguro!$AE$13-1)*12)+1)=Calculo!C146,CapitalSeguro!$AH$13,0)+IF((((CapitalSeguro!$AE$14-1)*12)+1)=Calculo!C146,CapitalSeguro!$AH$14,0)+IF((((CapitalSeguro!$AE$15-1)*12)+1)=Calculo!C146,CapitalSeguro!$AH$15,0)+IF((((CapitalSeguro!$AE$16-1)*12)+1)=Calculo!C146,CapitalSeguro!$AH$16,0) -> 0 | F146: 600000 | G146: 0 | I146: 1741507.012 | J146: 870.7535062 | K146: 1740636.259 | L146: 274 | M146: 1740362.259 | N146: 1740362.259 | O146: 1140362.259 | P146: 1740362.259 | Q146: 3480724.518 | S146: 2161295.663 | T146: 1080.647832 | U146: 2160215.015 | V146: 274 | W146: 2159941.015 | X146: 2159941.015 | Y146: 2000000 | Z146: 4159941.015
A147: 13 | B147: 13 | C147: 145 | D147: 57 | E147: =IF((((CapitalSeguro!$AE$13-1)*12)+1)=Calculo!C147,CapitalSeguro!$AH$13,0)+IF((((CapitalSeguro!$AE$14-1)*12)+1)=Calculo!C147,CapitalSeguro!$AH$14,0)+IF((((CapitalSeguro!$AE$15-1)*12)+1)=Calculo!C147,CapitalSeguro!$AH$15,0)+IF((((CapitalSeguro!$AE$16-1)*12)+1)=Calculo!C147,CapitalSeguro!$AH$16,0) -> 0 | F147: 600000 | G147: 0 | I147: 1754240.152 | J147: 877.120076 | K147: 1753363.032 | L147: 0 | M147: 1753363.032 | N147: 1753363.032 | O147: 1153363.032 | P147: 1753363.032 | Q147: 3506726.064 | S147: 2180436.248 | T147: 1090.218124 | U147: 2179346.03 | V147: 0 | W147: 2179346.03 | X147: 2179346.03 | Y147: 2000000 | Z147: 4179346.03
B148: 13 | C148: 146 | D148: 57 | E148: =IF((((CapitalSeguro!$AE$13-1)*12)+1)=Calculo!C148,CapitalSeguro!$AH$13,0)+IF((((CapitalSeguro!$AE$14-1)*12)+1)=Calculo!C148,CapitalSeguro!$AH$14,0)+IF((((CapitalSeguro!$AE$15-1)*12)+1)=Calculo!C148,CapitalSeguro!$AH$15,0)+IF((((CapitalSeguro!$AE$16-1)*12)+1)=Calculo!C148,CapitalSeguro!$AH$16,0) -> 0 | F148: 600000 | G148: 0 | I148: 1767344.595 | J148: 883.6722975 | K148: 1766460.923 | L148: 0 | M148: 1766460.923 | N148: 1766460.923 | O148: 1166460.923 | P148: 1766460.923 | Q148: 3532921.845 | S148: 2200025.394 | T148: 1100.012697 | U148: 2198925.381 | V148: 0 | W148: 2198925.381 | X148: 2198925.381 | Y148: 2000000 | Z148: 4198925.381
B149: 13 | C149: 147 | D149: 57 | E149: =IF((((CapitalSeguro!$AE$13-1)*12)+1)=Calculo!C149,CapitalSeguro!$AH$13,0)+IF((((CapitalSeguro!$AE$14-1)*12)+1)=Calculo!C149,CapitalSeguro!$AH$14,0)+IF((((CapitalSeguro!$AE$15-1)*12)+1)=Calculo!C149,CapitalSeguro!$AH$15,0)+IF((((CapitalSeguro!$AE$16-1)*12)+1)=Calculo!C149,CapitalSeguro!$AH$16,0) -> 0 | F149: 600000 | G149: 0 | I149: 1780546.93 | J149: 890.273465 | K149: 1779656.657 | L149: 0 | M149: 1779656.657 | N149: 1779656.657 | O149: 1179656.657 | P149: 1779656.657 | Q149: 3559313.313 | S149: 2219790.528 | T149: 1109.895264 | U149: 2218680.633 | V149: 0 | W149: 2218680.633 | X149: 2218680.633 | Y149: 2000000 | Z149: 4218680.633
B150: 13 | C150: 148 | D150: 57 | E150: =IF((((CapitalSeguro!$AE$13-1)*12)+1)=Calculo!C150,CapitalSeguro!$AH$13,0)+IF((((CapitalSeguro!$AE$14-1)*12)+1)=Calculo!C150,CapitalSeguro!$AH$14,0)+IF((((CapitalSeguro!$AE$15-1)*12)+1)=Calculo!C150,CapitalSeguro!$AH$15,0)+IF((((CapitalSeguro!$AE$16-1)*12)+1)=Calculo!C150,CapitalSeguro!$AH$16,0) -> 0 | F150: 600000 | G150: 0 | I150: 1793847.889 | J150: 896.9239444 | K150: 1792950.965 | L150: 0 | M150: 1792950.965 | N150: 1792950.965 | O150: 1192950.965 | P150: 1792950.965 | Q150: 3585901.93 | S150: 2239733.234 | T150: 1119.866617 | U150: 2238613.368 | V150: 0 | W150: 2238613.368 | X150: 2238613.368 | Y150: 2000000 | Z150: 4238613.368
B151: 13 | C151: 149 | D151: 57 | E151: =IF((((CapitalSeguro!$AE$13-1)*12)+1)=Calculo!C151,CapitalSeguro!$AH$13,0)+IF((((CapitalSeguro!$AE$14-1)*12)+1)=Calculo!C151,CapitalSeguro!$AH$14,0)+IF((((CapitalSeguro!$AE$15-1)*12)+1)=Calculo!C151,CapitalSeguro!$AH$15,0)+IF((((CapitalSeguro!$AE$16-1)*12)+1)=Calculo!C151,CapitalSeguro!$AH$16,0) -> 0 | F151: 600000 | G151: 0 | I151: 1807248.208 | J151: 903.6241038 | K151: 1806344.583 | L151: 0 | M151: 1806344.583 | N151: 1806344.583 | O151: 1206344.583 | P151: 1806344.583 | Q151: 3612689.167 | S151: 2259855.106 | T151: 1129.927553 | U151: 2258725.179 | V151: 0 | W151: 2258725.179 | X151: 2258725.179 | Y151: 2000000 | Z151: 4258725.179
B152: 13 | C152: 150 | D152: 57 | E152: =IF((((CapitalSeguro!$AE$13-1)*12)+1)=Calculo!C152,CapitalSeguro!$AH$13,0)+IF((((CapitalSeguro!$AE$14-1)*12)+1)=Calculo!C152,CapitalSeguro!$AH$14,0)+IF((((CapitalSeguro!$AE$15-1)*12)+1)=Calculo!C152,CapitalSeguro!$AH$15,0)+IF((((CapitalSeguro!$AE$16-1)*12)+1)=Calculo!C152,CapitalSeguro!$AH$16,0) -> 0 | F152: 600000 | G152: 0 | I152: 1820748.629 | J152: 910.3743144 | K152: 1819838.254 | L152: 0 | M152: 1819838.254 | N152: 1819838.254 | O152: 1219838.254 | P152: 1819838.254 | Q152: 3639676.509 | S152: 2280157.754 | T152: 1140.078877 | U152: 2279017.675 | V152: 0 | W152: 2279017.675 | X152: 2279017.675 | Y152: 2000000 | Z152: 4279017.675
B153: 13 | C153: 151 | D153: 57 | E153: =IF((((CapitalSeguro!$AE$13-1)*12)+1)=Calculo!C153,CapitalSeguro!$AH$13,0)+IF((((CapitalSeguro!$AE$14-1)*12)+1)=Calculo!C153,CapitalSeguro!$AH$14,0)+IF((((CapitalSeguro!$AE$15-1)*12)+1)=Calculo!C153,CapitalSeguro!$AH$15,0)+IF((((CapitalSeguro!$AE$16-1)*12)+1)=Calculo!C153,CapitalSeguro!$AH$16,0) -> 0 | F153: 600000 | G153: 0 | I153: 1834349.9 | J153: 917.1749501 | K153: 1833432.725 | L153: 0 | M153: 1833432.725 | N153: 1833432.725 | O153: 1233432.725 | P153: 1833432.725 | Q153: 3666865.451 | S153: 2300642.802 | T153: 1150.321401 | U153: 2299492.481 | V153: 0 | W153: 2299492.481 | X153: 2299492.481 | Y153: 2000000 | Z153: 4299492.481
B154: 13 | C154: 152 | D154: 57 | E154: =IF((((CapitalSeguro!$AE$13-1)*12)+1)=Calculo!C154,CapitalSeguro!$AH$13,0)+IF((((CapitalSeguro!$AE$14-1)*12)+1)=Calculo!C154,CapitalSeguro!$AH$14,0)+IF((((CapitalSeguro!$AE$15-1)*12)+1)=Calculo!C154,CapitalSeguro!$AH$15,0)+IF((((CapitalSeguro!$AE$16-1)*12)+1)=Calculo!C154,CapitalSeguro!$AH$16,0) -> 0 | F154: 600000 | G154: 0 | I154: 1848052.775 | J154: 924.0263877 | K154: 1847128.749 | L154: 0 | M154: 1847128.749 | N154: 1847128.749 | O154: 1247128.749 | P154: 1847128.749 | Q154: 3694257.498 | S154: 2321311.889 | T154: 1160.655944 | U154: 2320151.233 | V154: 0 | W154: 2320151.233 | X154: 2320151.233 | Y154: 2000000 | Z154: 4320151.233
B155: 13 | C155: 153 | D155: 57 | E155: =IF((((CapitalSeguro!$AE$13-1)*12)+1)=Calculo!C155,CapitalSeguro!$AH$13,0)+IF((((CapitalSeguro!$AE$14-1)*12)+1)=Calculo!C155,CapitalSeguro!$AH$14,0)+IF((((CapitalSeguro!$AE$15-1)*12)+1)=Calculo!C155,CapitalSeguro!$AH$15,0)+IF((((CapitalSeguro!$AE$16-1)*12)+1)=Calculo!C155,CapitalSeguro!$AH$16,0) -> 0 | F155: 600000 | G155: 0 | I155: 1861858.013 | J155: 930.9290065 | K155: 1860927.084 | L155: 0 | M155: 1860927.084 | N155: 1860927.084 | O155: 1260927.084 | P155: 1860927.084 | Q155: 3721854.168 | S155: 2342166.668 | T155: 1171.083334 | U155: 2340995.584 | V155: 0 | W155: 2340995.584 | X155: 2340995.584 | Y155: 2000000 | Z155: 4340995.584
B156: 13 | C156: 154 | D156: 57 | E156: =IF((((CapitalSeguro!$AE$13-1)*12)+1)=Calculo!C156,CapitalSeguro!$AH$13,0)+IF((((CapitalSeguro!$AE$14-1)*12)+1)=Calculo!C156,CapitalSeguro!$AH$14,0)+IF((((CapitalSeguro!$AE$15-1)*12)+1)=Calculo!C156,CapitalSeguro!$AH$15,0)+IF((((CapitalSeguro!$AE$16-1)*12)+1)=Calculo!C156,CapitalSeguro!$AH$16,0) -> 0 | F156: 600000 | G156: 0 | I156: 1875766.378 | J156: 937.883189 | K156: 1874828.495 | L156: 0 | M156: 1874828.495 | N156: 1874828.495 | O156: 1274828.495 | P156: 1874828.495 | Q156: 3749656.989 | S156: 2363208.807 | T156: 1181.604403 | U156: 2362027.202 | V156: 0 | W156: 2362027.202 | X156: 2362027.202 | Y156: 2000000 | Z156: 4362027.202
B157: 13 | C157: 155 | D157: 57 | E157: =IF((((CapitalSeguro!$AE$13-1)*12)+1)=Calculo!C157,CapitalSeguro!$AH$13,0)+IF((((CapitalSeguro!$AE$14-1)*12)+1)=Calculo!C157,CapitalSeguro!$AH$14,0)+IF((((CapitalSeguro!$AE$15-1)*12)+1)=Calculo!C157,CapitalSeguro!$AH$15,0)+IF((((CapitalSeguro!$AE$16-1)*12)+1)=Calculo!C157,CapitalSeguro!$AH$16,0) -> 0 | F157: 600000 | G157: 0 | I157: 1889778.64 | J157: 944.8893202 | K157: 1888833.751 | L157: 0 | M157: 1888833.751 | N157: 1888833.751 | O157: 1288833.751 | P157: 1888833.751 | Q157: 3777667.502 | S157: 2384439.989 | T157: 1192.219995 | U157: 2383247.769 | V157: 0 | W157: 2383247.769 | X157: 2383247.769 | Y157: 2000000 | Z157: 4383247.769
B158: 13 | C158: =C157+1 -> 156 | D158: 57 | E158: =IF((((CapitalSeguro!$AE$13-1)*12)+1)=Calculo!C158,CapitalSeguro!$AH$13,0)+IF((((CapitalSeguro!$AE$14-1)*12)+1)=Calculo!C158,CapitalSeguro!$AH$14,0)+IF((((CapitalSeguro!$AE$15-1)*12)+1)=Calculo!C158,CapitalSeguro!$AH$15,0)+IF((((CapitalSeguro!$AE$16-1)*12)+1)=Calculo!C158,CapitalSeguro!$AH$16,0) -> 0 | F158: 600000 | G158: 0 | I158: 1903895.577 | J158: 951.9477883 | K158: 1902943.629 | L158: 274 | M158: 1902669.629 | N158: 1902669.629 | O158: 1302669.629 | P158: 1902669.629 | Q158: 3805339.258 | S158: 2405861.914 | T158: 1202.930957 | U158: 2404658.983 | V158: 274 | W158: 2404384.983 | X158: 2404384.983 | Y158: 2000000 | Z158: 4404384.983
A159: 14 | B159: 14 | C159: 157 | D159: =$D$2+(B159-1) -> 58 | E159: =IF((((CapitalSeguro!$AE$13-1)*12)+1)=Calculo!C159,CapitalSeguro!$AH$13,0)+IF((((CapitalSeguro!$AE$14-1)*12)+1)=Calculo!C159,CapitalSeguro!$AH$14,0)+IF((((CapitalSeguro!$AE$15-1)*12)+1)=Calculo!C159,CapitalSeguro!$AH$15,0)+IF((((CapitalSeguro!$AE$16-1)*12)+1)=Calculo!C159,CapitalSeguro!$AH$16,0) -> 0 | F159: =E159+F158 -> 600000 | G159: 0 | I159: =(N158+E159-G159)*(1+$AL$3) -> 1917841.784 | J159: =IF(AND(invinicial>=$AE$7,invinicial<$AF$7),I159*$AH$7,IF(AND(invinicial>=$AE$8,invinicial<$AF$8),I159*$AH$8,IF(AND(invinicial>=$AE$9,invinicial<$AF$9),I159*$AH$9,IF(invinicial>=$AE$10,I159*$AH$10,"Error")))) -> 958.9208918 | K159: =I159-J159 -> 1916882.863 | L159: =IF(B159*12=C159,$AH$4,0) -> 0 | M159: =K159-L159 -> 1916882.863 | N159: =IF(C159=36,M159+bonopermconv,M159) -> 1916882.863 | O159: =N159-F159 -> 1316882.863 | P159: 1916882.863 | Q159: 3833765.726 | S159: =(X158+E159-G159)*(1+$AL$4) -> 2427199.694 | T159: =IF(AND(invinicial>=$AE$7,invinicial<$AF$7),S159*$AH$7,IF(AND(invinicial>=$AE$8,invinicial<$AF$8),S159*$AH$8,IF(AND(invinicial>=$AE$9,invinicial<$AF$9),S159*$AH$9,IF(invinicial>=$AE$10,S159*$AH$10,"Error")))) -> 1213.599847 | U159: =S159-T159 -> 2425986.094 | V159: =IF(C159=B159*12,$AH$4,0) -> 0 | W159: =U159-V159 -> 2425986.094 | X159: =IF(C159=36,W159+bonopermopt,W159) -> 2425986.094 | Y159: 2000000 | Z159: 4425986.094
B160: 14 | C160: 158 | D160: 58 | E160: =IF((((CapitalSeguro!$AE$13-1)*12)+1)=Calculo!C160,CapitalSeguro!$AH$13,0)+IF((((CapitalSeguro!$AE$14-1)*12)+1)=Calculo!C160,CapitalSeguro!$AH$14,0)+IF((((CapitalSeguro!$AE$15-1)*12)+1)=Calculo!C160,CapitalSeguro!$AH$15,0)+IF((((CapitalSeguro!$AE$16-1)*12)+1)=Calculo!C160,CapitalSeguro!$AH$16,0) -> 0 | F160: 600000 | G160: 0 | I160: 1932168.356 | J160: 966.084178 | K160: 1931202.272 | L160: 0 | M160: 1931202.272 | N160: 1931202.272 | O160: 1331202.272 | P160: 1931202.272 | Q160: 3862404.544 | S160: 2449005.774 | T160: 1224.502887 | U160: 2447781.271 | V160: 0 | W160: 2447781.271 | X160: 2447781.271 | Y160: 2000000 | Z160: 4447781.271
B161: 14 | C161: 159 | D161: 58 | E161: =IF((((CapitalSeguro!$AE$13-1)*12)+1)=Calculo!C161,CapitalSeguro!$AH$13,0)+IF((((CapitalSeguro!$AE$14-1)*12)+1)=Calculo!C161,CapitalSeguro!$AH$14,0)+IF((((CapitalSeguro!$AE$15-1)*12)+1)=Calculo!C161,CapitalSeguro!$AH$15,0)+IF((((CapitalSeguro!$AE$16-1)*12)+1)=Calculo!C161,CapitalSeguro!$AH$16,0) -> 0 | F161: 600000 | G161: 0 | I161: 1946601.95 | J161: 973.3009749 | K161: 1945628.649 | L161: 0 | M161: 1945628.649 | N161: 1945628.649 | O161: 1345628.649 | P161: 1945628.649 | Q161: 3891257.298 | S161: 2471007.761 | T161: 1235.50388 | U161: 2469772.257 | V161: 0 | W161: 2469772.257 | X161: 2469772.257 | Y161: 2000000 | Z161: 4469772.257
B162: 14 | C162: 160 | D162: 58 | E162: =IF((((CapitalSeguro!$AE$13-1)*12)+1)=Calculo!C162,CapitalSeguro!$AH$13,0)+IF((((CapitalSeguro!$AE$14-1)*12)+1)=Calculo!C162,CapitalSeguro!$AH$14,0)+IF((((CapitalSeguro!$AE$15-1)*12)+1)=Calculo!C162,CapitalSeguro!$AH$15,0)+IF((((CapitalSeguro!$AE$16-1)*12)+1)=Calculo!C162,CapitalSeguro!$AH$16,0) -> 0 | F162: 600000 | G162: 0 | I162: 1961143.365 | J162: 980.5716825 | K162: 1960162.793 | L162: 0 | M162: 1960162.793 | N162: 1960162.793 | O162: 1360162.793 | P162: 1960162.793 | Q162: 3920325.587 | S162: 2493207.414 | T162: 1246.603707 | U162: 2491960.811 | V162: 0 | W162: 2491960.811 | X162: 2491960.811 | Y162: 2000000 | Z162: 4491960.811
B163: 14 | C163: 161 | D163: 58 | E163: =IF((((CapitalSeguro!$AE$13-1)*12)+1)=Calculo!C163,CapitalSeguro!$AH$13,0)+IF((((CapitalSeguro!$AE$14-1)*12)+1)=Calculo!C163,CapitalSeguro!$AH$14,0)+IF((((CapitalSeguro!$AE$15-1)*12)+1)=Calculo!C163,CapitalSeguro!$AH$15,0)+IF((((CapitalSeguro!$AE$16-1)*12)+1)=Calculo!C163,CapitalSeguro!$AH$16,0) -> 0 | F163: 600000 | G163: 0 | I163: 1975793.407 | J163: 987.8967033 | K163: 1974805.51 | L163: 0 | M163: 1974805.51 | N163: 1974805.51 | O163: 1374805.51 | P163: 1974805.51 | Q163: 3949611.02 | S163: 2515606.511 | T163: 1257.803255 | U163: 2514348.708 | V163: 0 | W163: 2514348.708 | X163: 2514348.708 | Y163: 2000000 | Z163: 4514348.708
B164: 14 | C164: 162 | D164: 58 | E164: =IF((((CapitalSeguro!$AE$13-1)*12)+1)=Calculo!C164,CapitalSeguro!$AH$13,0)+IF((((CapitalSeguro!$AE$14-1)*12)+1)=Calculo!C164,CapitalSeguro!$AH$14,0)+IF((((CapitalSeguro!$AE$15-1)*12)+1)=Calculo!C164,CapitalSeguro!$AH$15,0)+IF((((CapitalSeguro!$AE$16-1)*12)+1)=Calculo!C164,CapitalSeguro!$AH$16,0) -> 0 | F164: 600000 | G164: 0 | I164: 1990552.886 | J164: 995.2764432 | K164: 1989557.61 | L164: 0 | M164: 1989557.61 | N164: 1989557.61 | O164: 1389557.61 | P164: 1989557.61 | Q164: 3979115.22 | S164: 2538206.842 | T164: 1269.103421 | U164: 2536937.738 | V164: 0 | W164: 2536937.738 | X164: 2536937.738 | Y164: 2000000 | Z164: 4536937.738
B165: 14 | C165: 163 | D165: 58 | E165: =IF((((CapitalSeguro!$AE$13-1)*12)+1)=Calculo!C165,CapitalSeguro!$AH$13,0)+IF((((CapitalSeguro!$AE$14-1)*12)+1)=Calculo!C165,CapitalSeguro!$AH$14,0)+IF((((CapitalSeguro!$AE$15-1)*12)+1)=Calculo!C165,CapitalSeguro!$AH$15,0)+IF((((CapitalSeguro!$AE$16-1)*12)+1)=Calculo!C165,CapitalSeguro!$AH$16,0) -> 0 | F165: 600000 | G165: 0 | I165: 2005422.622 | J165: 1002.711311 | K165: 2004419.91 | L165: 0 | M165: 2004419.91 | N165: 2004419.91 | O165: 1404419.91 | P165: 2000000 | Q165: 4004419.91 | S165: 2561010.215 | T165: 1280.505108 | U165: 2559729.71 | V165: 0 | W165: 2559729.71 | X165: 2559729.71 | Y165: 2000000 | Z165: 4559729.71
B166: 14 | C166: 164 | D166: 58 | E166: =IF((((CapitalSeguro!$AE$13-1)*12)+1)=Calculo!C166,CapitalSeguro!$AH$13,0)+IF((((CapitalSeguro!$AE$14-1)*12)+1)=Calculo!C166,CapitalSeguro!$AH$14,0)+IF((((CapitalSeguro!$AE$15-1)*12)+1)=Calculo!C166,CapitalSeguro!$AH$15,0)+IF((((CapitalSeguro!$AE$16-1)*12)+1)=Calculo!C166,CapitalSeguro!$AH$16,0) -> 0 | F166: 600000 | G166: 0 | I166: 2020403.436 | J166: 1010.201718 | K166: 2019393.235 | L166: 0 | M166: 2019393.235 | N166: 2019393.235 | O166: 1419393.235 | P166: 2000000 | Q166: 4019393.235 | S166: 2584018.455 | T166: 1292.009228 | U166: 2582726.446 | V166: 0 | W166: 2582726.446 | X166: 2582726.446 | Y166: 2000000 | Z166: 4582726.446
B167: 14 | C167: 165 | D167: 58 | E167: =IF((((CapitalSeguro!$AE$13-1)*12)+1)=Calculo!C167,CapitalSeguro!$AH$13,0)+IF((((CapitalSeguro!$AE$14-1)*12)+1)=Calculo!C167,CapitalSeguro!$AH$14,0)+IF((((CapitalSeguro!$AE$15-1)*12)+1)=Calculo!C167,CapitalSeguro!$AH$15,0)+IF((((CapitalSeguro!$AE$16-1)*12)+1)=Calculo!C167,CapitalSeguro!$AH$16,0) -> 0 | F167: 600000 | G167: 0 | I167: 2035496.16 | J167: 1017.74808 | K167: 2034478.412 | L167: 0 | M167: 2034478.412 | N167: 2034478.412 | O167: 1434478.412 | P167: =MIN(2000000,IF(D167<$AU$4,N167*$AV$4,IF(AND(D167>=$AT$5,D167<=$AU$5),N167*$AV$5,IF(D167>$AT$6,N167*$AV$6,"")))) -> 2000000 | Q167: 4034478.412 | S167: 2607233.403 | T167: 1303.616701 | U167: 2605929.786 | V167: 0 | W167: 2605929.786 | X167: 2605929.786 | Y167: 2000000 | Z167: 4605929.786
B168: 14 | C168: 166 | D168: 58 | E168: =IF((((CapitalSeguro!$AE$13-1)*12)+1)=Calculo!C168,CapitalSeguro!$AH$13,0)+IF((((CapitalSeguro!$AE$14-1)*12)+1)=Calculo!C168,CapitalSeguro!$AH$14,0)+IF((((CapitalSeguro!$AE$15-1)*12)+1)=Calculo!C168,CapitalSeguro!$AH$15,0)+IF((((CapitalSeguro!$AE$16-1)*12)+1)=Calculo!C168,CapitalSeguro!$AH$16,0) -> 0 | F168: 600000 | G168: 0 | I168: 2050701.628 | J168: 1025.350814 | K168: 2049676.277 | L168: 0 | M168: 2049676.277 | N168: 2049676.277 | O168: 1449676.277 | P168: 2000000 | Q168: 4049676.277 | S168: 2630656.914 | T168: 1315.328457 | U168: 2629341.586 | V168: 0 | W168: 2629341.586 | X168: 2629341.586 | Y168: 2000000 | Z168: 4629341.586
B169: 14 | C169: 167 | D169: 58 | E169: =IF((((CapitalSeguro!$AE$13-1)*12)+1)=Calculo!C169,CapitalSeguro!$AH$13,0)+IF((((CapitalSeguro!$AE$14-1)*12)+1)=Calculo!C169,CapitalSeguro!$AH$14,0)+IF((((CapitalSeguro!$AE$15-1)*12)+1)=Calculo!C169,CapitalSeguro!$AH$15,0)+IF((((CapitalSeguro!$AE$16-1)*12)+1)=Calculo!C169,CapitalSeguro!$AH$16,0) -> 0 | F169: 600000 | G169: 0 | I169: 2066020.684 | J169: 1033.010342 | K169: 2064987.674 | L169: 0 | M169: 2064987.674 | N169: 2064987.674 | O169: 1464987.674 | P169: 2000000 | Q169: 4064987.674 | S169: 2654290.863 | T169: 1327.145432 | U169: 2652963.718 | V169: 0 | W169: 2652963.718 | X169: 2652963.718 | Y169: 2000000 | Z169: 4652963.718
B170: 14 | C170: 168 | D170: 58 | E170: =IF((((CapitalSeguro!$AE$13-1)*12)+1)=Calculo!C170,CapitalSeguro!$AH$13,0)+IF((((CapitalSeguro!$AE$14-1)*12)+1)=Calculo!C170,CapitalSeguro!$AH$14,0)+IF((((CapitalSeguro!$AE$15-1)*12)+1)=Calculo!C170,CapitalSeguro!$AH$15,0)+IF((((CapitalSeguro!$AE$16-1)*12)+1)=Calculo!C170,CapitalSeguro!$AH$16,0) -> 0 | F170: 600000 | G170: 0 | I170: 2081454.175 | J170: 1040.727088 | K170: 2080413.448 | L170: 274 | M170: 2080139.448 | N170: 2080139.448 | O170: 1480139.448 | P170: 2000000 | Q170: 4080139.448 | S170: 2678137.141 | T170: 1339.068571 | U170: 2676798.073 | V170: 274 | W170: 2676524.073 | X170: 2676524.073 | Y170: 2000000 | Z170: 4676524.073
A171: 15 | B171: 15 | C171: 169 | D171: 59 | E171: =IF((((CapitalSeguro!$AE$13-1)*12)+1)=Calculo!C171,CapitalSeguro!$AH$13,0)+IF((((CapitalSeguro!$AE$14-1)*12)+1)=Calculo!C171,CapitalSeguro!$AH$14,0)+IF((((CapitalSeguro!$AE$15-1)*12)+1)=Calculo!C171,CapitalSeguro!$AH$15,0)+IF((((CapitalSeguro!$AE$16-1)*12)+1)=Calculo!C171,CapitalSeguro!$AH$16,0) -> 0 | F171: 600000 | G171: 0 | I171: 2096726.772 | J171: 1048.363386 | K171: 2095678.409 | L171: 0 | M171: 2095678.409 | N171: 2095678.409 | O171: 1495678.409 | P171: 2000000 | Q171: 4095678.409 | S171: 2701921.056 | T171: 1350.960528 | U171: 2700570.095 | V171: 0 | W171: 2700570.095 | X171: 2700570.095 | Y171: 2000000 | Z171: 4700570.095
B172: 15 | C172: 170 | D172: 59 | E172: =IF((((CapitalSeguro!$AE$13-1)*12)+1)=Calculo!C172,CapitalSeguro!$AH$13,0)+IF((((CapitalSeguro!$AE$14-1)*12)+1)=Calculo!C172,CapitalSeguro!$AH$14,0)+IF((((CapitalSeguro!$AE$15-1)*12)+1)=Calculo!C172,CapitalSeguro!$AH$15,0)+IF((((CapitalSeguro!$AE$16-1)*12)+1)=Calculo!C172,CapitalSeguro!$AH$16,0) -> 0 | F172: 600000 | G172: 0 | I172: 2112389.643 | J172: 1056.194821 | K172: 2111333.448 | L172: 0 | M172: 2111333.448 | N172: 2111333.448 | O172: 1511333.448 | P172: 2000000 | Q172: 4111333.448 | S172: 2726195.245 | T172: 1363.097623 | U172: 2724832.148 | V172: 0 | W172: 2724832.148 | X172: 2724832.148 | Y172: 2000000 | Z172: 4724832.148
B173: 15 | C173: 171 | D173: 59 | E173: =IF((((CapitalSeguro!$AE$13-1)*12)+1)=Calculo!C173,CapitalSeguro!$AH$13,0)+IF((((CapitalSeguro!$AE$14-1)*12)+1)=Calculo!C173,CapitalSeguro!$AH$14,0)+IF((((CapitalSeguro!$AE$15-1)*12)+1)=Calculo!C173,CapitalSeguro!$AH$15,0)+IF((((CapitalSeguro!$AE$16-1)*12)+1)=Calculo!C173,CapitalSeguro!$AH$16,0) -> 0 | F173: 600000 | G173: 0 | I173: 2128169.517 | J173: 1064.084759 | K173: 2127105.433 | L173: 0 | M173: 2127105.433 | N173: 2127105.433 | O173: 1527105.433 | P173: 2000000 | Q173: 4127105.433 | S173: 2750687.516 | T173: 1375.343758 | U173: 2749312.172 | V173: 0 | W173: 2749312.172 | X173: 2749312.172 | Y173: 2000000 | Z173: 4749312.172
B174: 15 | C174: 172 | D174: 59 | E174: =IF((((CapitalSeguro!$AE$13-1)*12)+1)=Calculo!C174,CapitalSeguro!$AH$13,0)+IF((((CapitalSeguro!$AE$14-1)*12)+1)=Calculo!C174,CapitalSeguro!$AH$14,0)+IF((((CapitalSeguro!$AE$15-1)*12)+1)=Calculo!C174,CapitalSeguro!$AH$15,0)+IF((((CapitalSeguro!$AE$16-1)*12)+1)=Calculo!C174,CapitalSeguro!$AH$16,0) -> 0 | F174: 600000 | G174: 0 | I174: 2144067.27 | J174: 1072.033635 | K174: 2142995.236 | L174: 0 | M174: 2142995.236 | N174: 2142995.236 | O174: 1542995.236 | P174: 2000000 | Q174: 4142995.236 | S174: 2775399.826 | T174: 1387.699913 | U174: 2774012.126 | V174: 0 | W174: 2774012.126 | X174: 2774012.126 | Y174: 2000000 | Z174: 4774012.126
B175: 15 | C175: 173 | D175: 59 | E175: =IF((((CapitalSeguro!$AE$13-1)*12)+1)=Calculo!C175,CapitalSeguro!$AH$13,0)+IF((((CapitalSeguro!$AE$14-1)*12)+1)=Calculo!C175,CapitalSeguro!$AH$14,0)+IF((((CapitalSeguro!$AE$15-1)*12)+1)=Calculo!C175,CapitalSeguro!$AH$15,0)+IF((((CapitalSeguro!$AE$16-1)*12)+1)=Calculo!C175,CapitalSeguro!$AH$16,0) -> 0 | F175: 600000 | G175: 0 | I175: 2160083.781 | J175: 1080.041891 | K175: 2159003.739 | L175: 0 | M175: 2159003.739 | N175: 2159003.739 | O175: 1559003.739 | P175: 2000000 | Q175: 4159003.739 | S175: 2800334.153 | T175: 1400.167076 | U175: 2798933.986 | V175: 0 | W175: 2798933.986 | X175: 2798933.986 | Y175: 2000000 | Z175: 4798933.986
B176: 15 | C176: 174 | D176: 59 | E176: =IF((((CapitalSeguro!$AE$13-1)*12)+1)=Calculo!C176,CapitalSeguro!$AH$13,0)+IF((((CapitalSeguro!$AE$14-1)*12)+1)=Calculo!C176,CapitalSeguro!$AH$14,0)+IF((((CapitalSeguro!$AE$15-1)*12)+1)=Calculo!C176,CapitalSeguro!$AH$15,0)+IF((((CapitalSeguro!$AE$16-1)*12)+1)=Calculo!C176,CapitalSeguro!$AH$16,0) -> 0 | F176: 600000 | G176: 0 | I176: 2176219.938 | J176: 1088.109969 | K176: 2175131.829 | L176: 0 | M176: 2175131.829 | N176: 2175131.829 | O176: 1575131.829 | P176: 2000000 | Q176: 4175131.829 | S176: 2825492.491 | T176: 1412.746245 | U176: 2824079.744 | V176: 0 | W176: 2824079.744 | X176: 2824079.744 | Y176: 2000000 | Z176: 4824079.744
B177: 15 | C177: 175 | D177: 59 | E177: =IF((((CapitalSeguro!$AE$13-1)*12)+1)=Calculo!C177,CapitalSeguro!$AH$13,0)+IF((((CapitalSeguro!$AE$14-1)*12)+1)=Calculo!C177,CapitalSeguro!$AH$14,0)+IF((((CapitalSeguro!$AE$15-1)*12)+1)=Calculo!C177,CapitalSeguro!$AH$15,0)+IF((((CapitalSeguro!$AE$16-1)*12)+1)=Calculo!C177,CapitalSeguro!$AH$16,0) -> 0 | F177: 600000 | G177: 0 | I177: 2192476.635 | J177: 1096.238318 | K177: 2191380.397 | L177: 0 | M177: 2191380.397 | N177: 2191380.397 | O177: 1591380.397 | P177: 2000000 | Q177: 4191380.397 | S177: 2850876.852 | T177: 1425.438426 | U177: 2849451.414 | V177: 0 | W177: 2849451.414 | X177: 2849451.414 | Y177: 2000000 | Z177: 4849451.414
B178: 15 | C178: 176 | D178: 59 | E178: =IF((((CapitalSeguro!$AE$13-1)*12)+1)=Calculo!C178,CapitalSeguro!$AH$13,0)+IF((((CapitalSeguro!$AE$14-1)*12)+1)=Calculo!C178,CapitalSeguro!$AH$14,0)+IF((((CapitalSeguro!$AE$15-1)*12)+1)=Calculo!C178,CapitalSeguro!$AH$15,0)+IF((((CapitalSeguro!$AE$16-1)*12)+1)=Calculo!C178,CapitalSeguro!$AH$16,0) -> 0 | F178: 600000 | G178: 0 | I178: 2208854.772 | J178: 1104.427386 | K178: 2207750.344 | L178: 0 | M178: 2207750.344 | N178: 2207750.344 | O178: 1607750.344 | P178: 2000000 | Q178: 4207750.344 | S178: 2876489.268 | T178: 1438.244634 | U178: 2875051.024 | V178: 0 | W178: 2875051.024 | X178: 2875051.024 | Y178: 2000000 | Z178: 4875051.024
B179: 15 | C179: 177 | D179: 59 | E179: =IF((((CapitalSeguro!$AE$13-1)*12)+1)=Calculo!C179,CapitalSeguro!$AH$13,0)+IF((((CapitalSeguro!$AE$14-1)*12)+1)=Calculo!C179,CapitalSeguro!$AH$14,0)+IF((((CapitalSeguro!$AE$15-1)*12)+1)=Calculo!C179,CapitalSeguro!$AH$15,0)+IF((((CapitalSeguro!$AE$16-1)*12)+1)=Calculo!C179,CapitalSeguro!$AH$16,0) -> 0 | F179: 600000 | G179: 0 | I179: 2225355.256 | J179: 1112.677628 | K179: 2224242.578 | L179: 0 | M179: 2224242.578 | N179: 2224242.578 | O179: 1624242.578 | P179: 2000000 | Q179: 4224242.578 | S179: 2902331.788 | T179: 1451.165894 | U179: 2900880.622 | V179: 0 | W179: 2900880.622 | X179: 2900880.622 | Y179: 2000000 | Z179: 4900880.622
B180: 15 | C180: 178 | D180: 59 | E180: =IF((((CapitalSeguro!$AE$13-1)*12)+1)=Calculo!C180,CapitalSeguro!$AH$13,0)+IF((((CapitalSeguro!$AE$14-1)*12)+1)=Calculo!C180,CapitalSeguro!$AH$14,0)+IF((((CapitalSeguro!$AE$15-1)*12)+1)=Calculo!C180,CapitalSeguro!$AH$15,0)+IF((((CapitalSeguro!$AE$16-1)*12)+1)=Calculo!C180,CapitalSeguro!$AH$16,0) -> 0 | F180: 600000 | G180: 0 | I180: 2241979.001 | J180: 1120.9895 | K180: 2240858.011 | L180: 0 | M180: 2240858.011 | N180: 2240858.011 | O180: 1640858.011 | P180: 2000000 | Q180: 4240858.011 | S180: 2928406.477 | T180: 1464.203239 | U180: 2926942.274 | V180: 0 | W180: 2926942.274 | X180: 2926942.274 | Y180: 2000000 | Z180: 4926942.274
B181: 15 | C181: 179 | D181: 59 | E181: =IF((((CapitalSeguro!$AE$13-1)*12)+1)=Calculo!C181,CapitalSeguro!$AH$13,0)+IF((((CapitalSeguro!$AE$14-1)*12)+1)=Calculo!C181,CapitalSeguro!$AH$14,0)+IF((((CapitalSeguro!$AE$15-1)*12)+1)=Calculo!C181,CapitalSeguro!$AH$15,0)+IF((((CapitalSeguro!$AE$16-1)*12)+1)=Calculo!C181,CapitalSeguro!$AH$16,0) -> 0 | F181: 600000 | G181: 0 | I181: 2258726.928 | J181: 1129.363464 | K181: 2257597.564 | L181: 0 | M181: 2257597.564 | N181: 2257597.564 | O181: 1657597.564 | P181: 2000000 | Q181: 4257597.564 | S181: 2954715.423 | T181: 1477.357712 | U181: 2953238.065 | V181: 0 | W181: 2953238.065 | X181: 2953238.065 | Y181: 2000000 | Z181: 4953238.065
B182: 15 | C182: 180 | D182: 59 | E182: =IF((((CapitalSeguro!$AE$13-1)*12)+1)=Calculo!C182,CapitalSeguro!$AH$13,0)+IF((((CapitalSeguro!$AE$14-1)*12)+1)=Calculo!C182,CapitalSeguro!$AH$14,0)+IF((((CapitalSeguro!$AE$15-1)*12)+1)=Calculo!C182,CapitalSeguro!$AH$15,0)+IF((((CapitalSeguro!$AE$16-1)*12)+1)=Calculo!C182,CapitalSeguro!$AH$16,0) -> 0 | F182: 600000 | G182: 0 | I182: 2275599.964 | J182: 1137.799982 | K182: 2274462.164 | L182: 274 | M182: 2274188.164 | N182: 2274188.164 | O182: 1674188.164 | P182: 2000000 | Q182: 4274188.164 | S182: 2981260.73 | T182: 1490.630365 | U182: 2979770.1 | V182: 274 | W182: 2979496.1 | X182: 2979496.1 | Y182: 2000000 | Z182: 4979496.1
A183: 16 | B183: 16 | C183: 181 | D183: =$D$2+(B183-1) -> 60 | E183: =IF((((CapitalSeguro!$AE$13-1)*12)+1)=Calculo!C183,CapitalSeguro!$AH$13,0)+IF((((CapitalSeguro!$AE$14-1)*12)+1)=Calculo!C183,CapitalSeguro!$AH$14,0)+IF((((CapitalSeguro!$AE$15-1)*12)+1)=Calculo!C183,CapitalSeguro!$AH$15,0)+IF((((CapitalSeguro!$AE$16-1)*12)+1)=Calculo!C183,CapitalSeguro!$AH$16,0) -> 0 | F183: =E183+F182 -> 600000 | G183: 0 | I183: =(N182+E183-G183)*(1+$AL$3) -> 2292322.86 | J183: =IF(AND(invinicial>=$AE$7,invinicial<$AF$7),I183*$AH$7,IF(AND(invinicial>=$AE$8,invinicial<$AF$8),I183*$AH$8,IF(AND(invinicial>=$AE$9,invinicial<$AF$9),I183*$AH$9,IF(invinicial>=$AE$10,I183*$AH$10,"Error")))) -> 1146.16143 | K183: =I183-J183 -> 2291176.699 | L183: =IF(B183*12=C183,$AH$4,0) -> 0 | M183: =K183-L183 -> 2291176.699 | N183: =IF(C183=36,M183+bonopermconv,M183) -> 2291176.699 | O183: =N183-F183 -> 1691176.699 | P183: 2000000 | Q183: 4291176.699 | S183: =(X182+E183-G183)*(1+$AL$4) -> 3007767.921 | T183: =IF(AND(invinicial>=$AE$7,invinicial<$AF$7),S183*$AH$7,IF(AND(invinicial>=$AE$8,invinicial<$AF$8),S183*$AH$8,IF(AND(invinicial>=$AE$9,invinicial<$AF$9),S183*$AH$9,IF(invinicial>=$AE$10,S183*$AH$10,"Error")))) -> 1503.883961 | U183: =S183-T183 -> 3006264.037 | V183: =IF(C183=B183*12,$AH$4,0) -> 0 | W183: =U183-V183 -> 3006264.037 | X183: =IF(C183=36,W183+bonopermopt,W183) -> 3006264.037 | Y183: 2000000 | Z183: 5006264.037
B184: 16 | C184: 182 | D184: 60 | E184: =IF((((CapitalSeguro!$AE$13-1)*12)+1)=Calculo!C184,CapitalSeguro!$AH$13,0)+IF((((CapitalSeguro!$AE$14-1)*12)+1)=Calculo!C184,CapitalSeguro!$AH$14,0)+IF((((CapitalSeguro!$AE$15-1)*12)+1)=Calculo!C184,CapitalSeguro!$AH$15,0)+IF((((CapitalSeguro!$AE$16-1)*12)+1)=Calculo!C184,CapitalSeguro!$AH$16,0) -> 0 | F184: 600000 | G184: 0 | I184: 2309446.863 | J184: 1154.723432 | K184: 2308292.14 | L184: 0 | M184: 2308292.14 | N184: 2308292.14 | O184: 1708292.14 | P184: 2000000 | Q184: 4308292.14 | S184: 3034789.854 | T184: 1517.394927 | U184: 3033272.459 | V184: 0 | W184: 3033272.459 | X184: 3033272.459 | Y184: 2000000 | Z184: 5033272.459
B185: 16 | C185: 183 | D185: 60 | E185: =IF((((CapitalSeguro!$AE$13-1)*12)+1)=Calculo!C185,CapitalSeguro!$AH$13,0)+IF((((CapitalSeguro!$AE$14-1)*12)+1)=Calculo!C185,CapitalSeguro!$AH$14,0)+IF((((CapitalSeguro!$AE$15-1)*12)+1)=Calculo!C185,CapitalSeguro!$AH$15,0)+IF((((CapitalSeguro!$AE$16-1)*12)+1)=Calculo!C185,CapitalSeguro!$AH$16,0) -> 0 | F185: 600000 | G185: 0 | I185: 2326698.786 | J185: 1163.349393 | K185: 2325535.436 | L185: 0 | M185: 2325535.436 | N185: 2325535.436 | O185: 1725535.436 | P185: 2000000 | Q185: 4325535.436 | S185: 3062054.553 | T185: 1531.027277 | U185: 3060523.526 | V185: 0 | W185: 3060523.526 | X185: 3060523.526 | Y185: 2000000 | Z185: 5060523.526
B186: 16 | C186: 184 | D186: 60 | E186: =IF((((CapitalSeguro!$AE$13-1)*12)+1)=Calculo!C186,CapitalSeguro!$AH$13,0)+IF((((CapitalSeguro!$AE$14-1)*12)+1)=Calculo!C186,CapitalSeguro!$AH$14,0)+IF((((CapitalSeguro!$AE$15-1)*12)+1)=Calculo!C186,CapitalSeguro!$AH$15,0)+IF((((CapitalSeguro!$AE$16-1)*12)+1)=Calculo!C186,CapitalSeguro!$AH$16,0) -> 0 | F186: 600000 | G186: 0 | I186: 2344079.582 | J186: 1172.039791 | K186: 2342907.543 | L186: 0 | M186: 2342907.543 | N186: 2342907.543 | O186: 1742907.543 | P186: 2000000 | Q186: 4342907.543 | S186: 3089564.2 | T186: 1544.7821 | U186: 3088019.418 | V186: 0 | W186: 3088019.418 | X186: 3088019.418 | Y186: 2000000 | Z186: 5088019.418
B187: 16 | C187: 185 | D187: 60 | E187: =IF((((CapitalSeguro!$AE$13-1)*12)+1)=Calculo!C187,CapitalSeguro!$AH$13,0)+IF((((CapitalSeguro!$AE$14-1)*12)+1)=Calculo!C187,CapitalSeguro!$AH$14,0)+IF((((CapitalSeguro!$AE$15-1)*12)+1)=Calculo!C187,CapitalSeguro!$AH$15,0)+IF((((CapitalSeguro!$AE$16-1)*12)+1)=Calculo!C187,CapitalSeguro!$AH$16,0) -> 0 | F187: 600000 | G187: 0 | I187: 2361590.216 | J187: 1180.795108 | K187: 2360409.421 | L187: 0 | M187: 2360409.421 | N187: 2360409.421 | O187: 1760409.421 | P187: 2000000 | Q187: 4360409.421 | S187: 3117320.995 | T187: 1558.660497 | U187: 3115762.334 | V187: 0 | W187: 3115762.334 | X187: 3115762.334 | Y187: 2000000 | Z187: 5115762.334
B188: 16 | C188: 186 | D188: 60 | E188: =IF((((CapitalSeguro!$AE$13-1)*12)+1)=Calculo!C188,CapitalSeguro!$AH$13,0)+IF((((CapitalSeguro!$AE$14-1)*12)+1)=Calculo!C188,CapitalSeguro!$AH$14,0)+IF((((CapitalSeguro!$AE$15-1)*12)+1)=Calculo!C188,CapitalSeguro!$AH$15,0)+IF((((CapitalSeguro!$AE$16-1)*12)+1)=Calculo!C188,CapitalSeguro!$AH$16,0) -> 0 | F188: 600000 | G188: 0 | I188: 2379231.657 | J188: 1189.615829 | K188: 2378042.042 | L188: 0 | M188: 2378042.042 | N188: 2378042.042 | O188: 1778042.042 | P188: 2000000 | Q188: 4378042.042 | S188: 3145327.158 | T188: 1572.663579 | U188: 3143754.495 | V188: 0 | W188: 3143754.495 | X188: 3143754.495 | Y188: 2000000 | Z188: 5143754.495
B189: 16 | C189: 187 | D189: 60 | E189: =IF((((CapitalSeguro!$AE$13-1)*12)+1)=Calculo!C189,CapitalSeguro!$AH$13,0)+IF((((CapitalSeguro!$AE$14-1)*12)+1)=Calculo!C189,CapitalSeguro!$AH$14,0)+IF((((CapitalSeguro!$AE$15-1)*12)+1)=Calculo!C189,CapitalSeguro!$AH$15,0)+IF((((CapitalSeguro!$AE$16-1)*12)+1)=Calculo!C189,CapitalSeguro!$AH$16,0) -> 0 | F189: 600000 | G189: 0 | I189: 2397004.883 | J189: 1198.502441 | K189: 2395806.38 | L189: 0 | M189: 2395806.38 | N189: 2395806.38 | O189: 1795806.38 | P189: 2000000 | Q189: 4395806.38 | S189: 3173584.93 | T189: 1586.792465 | U189: 3171998.137 | V189: 0 | W189: 3171998.137 | X189: 3171998.137 | Y189: 2000000 | Z189: 5171998.137
B190: 16 | C190: 188 | D190: 60 | E190: =IF((((CapitalSeguro!$AE$13-1)*12)+1)=Calculo!C190,CapitalSeguro!$AH$13,0)+IF((((CapitalSeguro!$AE$14-1)*12)+1)=Calculo!C190,CapitalSeguro!$AH$14,0)+IF((((CapitalSeguro!$AE$15-1)*12)+1)=Calculo!C190,CapitalSeguro!$AH$15,0)+IF((((CapitalSeguro!$AE$16-1)*12)+1)=Calculo!C190,CapitalSeguro!$AH$16,0) -> 0 | F190: 600000 | G190: 0 | I190: 2414910.877 | J190: 1207.455438 | K190: 2413703.421 | L190: 0 | M190: 2413703.421 | N190: 2413703.421 | O190: 1813703.421 | P190: 2000000 | Q190: 4413703.421 | S190: 3202096.571 | T190: 1601.048285 | U190: 3200495.523 | V190: 0 | W190: 3200495.523 | X190: 3200495.523 | Y190: 2000000 | Z190: 5200495.523
B191: 16 | C191: 189 | D191: 60 | E191: =IF((((CapitalSeguro!$AE$13-1)*12)+1)=Calculo!C191,CapitalSeguro!$AH$13,0)+IF((((CapitalSeguro!$AE$14-1)*12)+1)=Calculo!C191,CapitalSeguro!$AH$14,0)+IF((((CapitalSeguro!$AE$15-1)*12)+1)=Calculo!C191,CapitalSeguro!$AH$15,0)+IF((((CapitalSeguro!$AE$16-1)*12)+1)=Calculo!C191,CapitalSeguro!$AH$16,0) -> 0 | F191: 600000 | G191: 0 | I191: 2432950.631 | J191: 1216.475316 | K191: 2431734.156 | L191: 0 | M191: 2431734.156 | N191: 2431734.156 | O191: 1831734.156 | P191: 2000000 | Q191: 4431734.156 | S191: 3230864.362 | T191: 1615.432181 | U191: 3229248.93 | V191: 0 | W191: 3229248.93 | X191: 3229248.93 | Y191: 2000000 | Z191: 5229248.93
B192: 16 | C192: 190 | D192: 60 | E192: =IF((((CapitalSeguro!$AE$13-1)*12)+1)=Calculo!C192,CapitalSeguro!$AH$13,0)+IF((((CapitalSeguro!$AE$14-1)*12)+1)=Calculo!C192,CapitalSeguro!$AH$14,0)+IF((((CapitalSeguro!$AE$15-1)*12)+1)=Calculo!C192,CapitalSeguro!$AH$15,0)+IF((((CapitalSeguro!$AE$16-1)*12)+1)=Calculo!C192,CapitalSeguro!$AH$16,0) -> 0 | F192: 600000 | G192: 0 | I192: 2451125.146 | J192: 1225.562573 | K192: 2449899.583 | L192: 0 | M192: 2449899.583 | N192: 2449899.583 | O192: 1849899.583 | P192: 2000000 | Q192: 4449899.583 | S192: 3259890.604 | T192: 1629.945302 | U192: 3258260.659 | V192: 0 | W192: 3258260.659 | X192: 3258260.659 | Y192: 2000000 | Z192: 5258260.659
B193: 16 | C193: 191 | D193: 60 | E193: =IF((((CapitalSeguro!$AE$13-1)*12)+1)=Calculo!C193,CapitalSeguro!$AH$13,0)+IF((((CapitalSeguro!$AE$14-1)*12)+1)=Calculo!C193,CapitalSeguro!$AH$14,0)+IF((((CapitalSeguro!$AE$15-1)*12)+1)=Calculo!C193,CapitalSeguro!$AH$15,0)+IF((((CapitalSeguro!$AE$16-1)*12)+1)=Calculo!C193,CapitalSeguro!$AH$16,0) -> 0 | F193: 600000 | G193: 0 | I193: 2469435.427 | J193: 1234.717713 | K193: 2468200.709 | L193: 0 | M193: 2468200.709 | N193: 2468200.709 | O193: 1868200.709 | P193: 2000000 | Q193: 4468200.709 | S193: 3289177.62 | T193: 1644.58881 | U193: 3287533.031 | V193: 0 | W193: 3287533.031 | X193: 3287533.031 | Y193: 2000000 | Z193: 5287533.031
B194: 16 | C194: 192 | D194: 60 | E194: =IF((((CapitalSeguro!$AE$13-1)*12)+1)=Calculo!C194,CapitalSeguro!$AH$13,0)+IF((((CapitalSeguro!$AE$14-1)*12)+1)=Calculo!C194,CapitalSeguro!$AH$14,0)+IF((((CapitalSeguro!$AE$15-1)*12)+1)=Calculo!C194,CapitalSeguro!$AH$15,0)+IF((((CapitalSeguro!$AE$16-1)*12)+1)=Calculo!C194,CapitalSeguro!$AH$16,0) -> 0 | F194: 600000 | G194: 0 | I194: 2487882.488 | J194: 1243.941244 | K194: 2486638.547 | L194: 274 | M194: 2486364.547 | N194: 2486364.547 | O194: 1886364.547 | P194: 2000000 | Q194: 4486364.547 | S194: 3318727.751 | T194: 1659.363876 | U194: 3317068.387 | V194: 274 | W194: 3316794.387 | X194: 3316794.387 | Y194: 2000000 | Z194: 5316794.387
A195: 17 | B195: 17 | C195: 193 | D195: 61 | E195: =IF((((CapitalSeguro!$AE$13-1)*12)+1)=Calculo!C195,CapitalSeguro!$AH$13,0)+IF((((CapitalSeguro!$AE$14-1)*12)+1)=Calculo!C195,CapitalSeguro!$AH$14,0)+IF((((CapitalSeguro!$AE$15-1)*12)+1)=Calculo!C195,CapitalSeguro!$AH$15,0)+IF((((CapitalSeguro!$AE$16-1)*12)+1)=Calculo!C195,CapitalSeguro!$AH$16,0) -> 0 | F195: 600000 | G195: 0 | I195: 2506191.167 | J195: 1253.095583 | K195: 2504938.071 | L195: 0 | M195: 2504938.071 | N195: 2504938.071 | O195: 1904938.071 | P195: 25049.38071 | Q195: 2529987.452 | S195: 3348266.762 | T195: 1674.133381 | U195: 3346592.629 | V195: 0 | W195: 3346592.629 | X195: 3346592.629 | Y195: 33465.92629 | Z195: 3380058.555
B196: 17 | C196: 194 | D196: 61 | E196: =IF((((CapitalSeguro!$AE$13-1)*12)+1)=Calculo!C196,CapitalSeguro!$AH$13,0)+IF((((CapitalSeguro!$AE$14-1)*12)+1)=Calculo!C196,CapitalSeguro!$AH$14,0)+IF((((CapitalSeguro!$AE$15-1)*12)+1)=Calculo!C196,CapitalSeguro!$AH$15,0)+IF((((CapitalSeguro!$AE$16-1)*12)+1)=Calculo!C196,CapitalSeguro!$AH$16,0) -> 0 | F196: 600000 | G196: 0 | I196: 2524912.799 | J196: 1262.4564 | K196: 2523650.343 | L196: 0 | M196: 2523650.343 | N196: 2523650.343 | O196: 1923650.343 | P196: 25236.50343 | Q196: =P196+N196 -> 2548886.846 | S196: 3378347.753 | T196: 1689.173877 | U196: 3376658.58 | V196: 0 | W196: 3376658.58 | X196: 3376658.58 | Y196: =MIN(2000000,IF(D196<$AU$4,X196*$AV$4,IF(AND(D196>=$AT$5,D196<=$AU$5),X196*$AV$5,IF(D196>$AT$6,X196*$AV$6,"")))) -> 33766.5858 | Z196: =Y196+X196 -> 3410425.165
B197: 17 | C197: =C196+1 -> 195 | D197: 61 | E197: =IF((((CapitalSeguro!$AE$13-1)*12)+1)=Calculo!C197,CapitalSeguro!$AH$13,0)+IF((((CapitalSeguro!$AE$14-1)*12)+1)=Calculo!C197,CapitalSeguro!$AH$14,0)+IF((((CapitalSeguro!$AE$15-1)*12)+1)=Calculo!C197,CapitalSeguro!$AH$15,0)+IF((((CapitalSeguro!$AE$16-1)*12)+1)=Calculo!C197,CapitalSeguro!$AH$16,0) -> 0 | F197: 600000 | G197: 0 | I197: 2543774.285 | J197: 1271.887142 | K197: 2542502.398 | L197: 0 | M197: 2542502.398 | N197: 2542502.398 | O197: 1942502.398 | P197: 25425.02398 | Q197: 2567927.422 | S197: 3408698.994 | T197: 1704.349497 | U197: 3406994.644 | V197: 0 | W197: 3406994.644 | X197: 3406994.644 | Y197: 34069.94644 | Z197: 3441064.591
B198: 17 | C198: 196 | D198: 61 | E198: =IF((((CapitalSeguro!$AE$13-1)*12)+1)=Calculo!C198,CapitalSeguro!$AH$13,0)+IF((((CapitalSeguro!$AE$14-1)*12)+1)=Calculo!C198,CapitalSeguro!$AH$14,0)+IF((((CapitalSeguro!$AE$15-1)*12)+1)=Calculo!C198,CapitalSeguro!$AH$15,0)+IF((((CapitalSeguro!$AE$16-1)*12)+1)=Calculo!C198,CapitalSeguro!$AH$16,0) -> 0 | F198: 600000 | G198: 0 | I198: 2562776.669 | J198: 1281.388334 | K198: 2561495.281 | L198: 0 | M198: 2561495.281 | N198: 2561495.281 | O198: 1961495.281 | P198: 25614.95281 | Q198: 2587110.233 | S198: 3439322.911 | T198: 1719.661455 | U198: 3437603.249 | V198: 0 | W198: 3437603.249 | X198: 3437603.249 | Y198: 34376.03249 | Z198: 3471979.282
B199: 17 | C199: 197 | D199: 61 | E199: =IF((((CapitalSeguro!$AE$13-1)*12)+1)=Calculo!C199,CapitalSeguro!$AH$13,0)+IF((((CapitalSeguro!$AE$14-1)*12)+1)=Calculo!C199,CapitalSeguro!$AH$14,0)+IF((((CapitalSeguro!$AE$15-1)*12)+1)=Calculo!C199,CapitalSeguro!$AH$15,0)+IF((((CapitalSeguro!$AE$16-1)*12)+1)=Calculo!C199,CapitalSeguro!$AH$16,0) -> 0 | F199: 600000 | G199: 0 | I199: 2581921.004 | J199: 1290.960502 | K199: 2580630.043 | L199: 0 | M199: 2580630.043 | N199: 2580630.043 | O199: 1980630.043 | P199: 25806.30043 | Q199: 2606436.344 | S199: 3470221.955 | T199: 1735.110977 | U199: 3468486.844 | V199: 0 | W199: 3468486.844 | X199: 3468486.844 | Y199: 34684.86844 | Z199: 3503171.712
B200: 17 | C200: 198 | D200: 61 | E200: =IF((((CapitalSeguro!$AE$13-1)*12)+1)=Calculo!C200,CapitalSeguro!$AH$13,0)+IF((((CapitalSeguro!$AE$14-1)*12)+1)=Calculo!C200,CapitalSeguro!$AH$14,0)+IF((((CapitalSeguro!$AE$15-1)*12)+1)=Calculo!C200,CapitalSeguro!$AH$15,0)+IF((((CapitalSeguro!$AE$16-1)*12)+1)=Calculo!C200,CapitalSeguro!$AH$16,0) -> 0 | F200: 600000 | G200: 0 | I200: 2601208.35 | J200: 1300.604175 | K200: 2599907.745 | L200: 0 | M200: 2599907.745 | N200: 2599907.745 | O200: 1999907.745 | P200: 25999.07745 | Q200: 2625906.823 | S200: 3501398.597 | T200: 1750.699299 | U200: 3499647.898 | V200: 0 | W200: 3499647.898 | X200: 3499647.898 | Y200: 34996.47898 | Z200: 3534644.377
... 102 more rows
